Workbook

Sheet Intro and Data Inputs
B1: GASB 75 Alternative Measurement Method for LEOFF 1
B3: Welcome to the Office of the State Actuary's (OSA) LEOFF 1 AMM Online Tool for FY 2024
C4: Intended Use
C5: This Alternative Measurement Method (AMM) Online Tool is intended to assist local government employers in Washington State with their Governmental Accounting Standards Board (GASB) Statement No. 75 reporting requirements for Other Postemployment Benefits (OPEB) healthcare obligations provided by local employers to members of the Law Enforcement Officers' and Fire Fighters' Retirement System (LEOFF) Plan 1. Please review the following explanation and directions below, along with the Additional Disclosures and Certification Letter, before proceeding.
C7: Requirements to Use this Tool
C8: (1) Employers must be local government entities in Washington State. Employers outside the State of Washington are not eligible to use this Tool.
C9: (2) Covered members must be active in or retired from LEOFF 1. Please see the Public Employees Benefits Board (PEBB) AMM Online Tool for reporting PEBB healthcare obligations.
C10: (3) Employers must have less than 100 total LEOFF 1 members.
C12: Steps to Calculate your Reporting Results
C13: (1) Enable Macros. For Excel versions 2010 or greater, there should be a tan strip across the top of the screen when you open Excel - please allow macros to run.
C14: (2) Gather member information on the age and annual payroll (if any) of active members and retirees. Please see the Additional Disclosures tab for further guidance.
C15: (3) Group active member and retiree information by the age divisions according to the Data Inputs table below.
C16: (4) Calculate and input the average age for each age division.
C17: (5) Copy your data into the Data Inputs table below. There has been an effort by OSA to screen unreasonable inputs into the Tool. However, the ultimate responsibility of the accuracy of the inputs, and in effect the results, falls on the user of the Tool.
C18: (6) Enter your ending Total OPEB Liability from the prior year reporting (if available). This will serve as the beginning Total OPEB Liability for this year. The tool will estimate a beginning OPEB liability if you did not report OPEB liabilities last year.
C19: (7) Press the Calculate button. Please print the entire workbook for your records (5 pages).
C22: Data Inputs
C23: LEOFF 1 Members (Actives and Retirees)
C24: Age Divisions | D24: Age Less than 75 | E24: 75 to 79 | F24: 80 to 85 | G24: Age Greater than 85
C25: Number of Members | D25: 0 | E25: 0 | F25: 0 | G25: 0
C26: Average Age | D26: 72 | E26: 77 | F26: 82 | G26: 89
C27: Annual Covered Employee Payroll* = | E27: 0
C28: Beginning Total OPEB Liability** = | E28: 0
C29: *Will be $0 if your data does not include any currently active LEOFF 1 members.
C30: **Enter $0 if you did not report OPEB liabilities last year; the Tool will estimate a beginning Total OPEB Liability for you.
I45: Page 1 of 5

Sheet GASB Results
B1: LEOFF 1 - GASB 75 Reporting Results and Required Disclosures
C3: Schedule of Changes in Total OPEB Liability and Related Ratios
C4: ="Measurement Date of June 30, "&Lookups!L17 -> Measurement Date of June 30, 2024
C5: Total OPEB Liability (TOL) | F5: What's New in this FY24 Tool?
C6: Service Cost1 | E6: =IF('Intro and Data Inputs'!E28>0, ROUND(Log!L5,0) * 'Intro and Data Inputs'!E28/Log!L6, ROUND(Log!L5,0)) -> 0 | F6: And how do these changes impact my resulting OPEB liabilities? ↑or↓
C7: Interest Cost | E7: =ROUND(((E6+E14)*Lookups!L1+E10*((1+Lookups!L1)^0.5-1)),0) -> 0
C8: Changes in Experience Data and Assumptions | E8: =E12-E6-E7-E10 -> 0 | F8: - Rolled-forward expected costs to align with new measurement date. ↑
C9: Changes in Benefit Terms | E9: 0
C10: Estimated Benefit Payments | E10: =IF('Intro and Data Inputs'!E28>0,-ROUND(SUM(Log!G7:J7)/AVERAGE(Trends!D4:H4) * 'Intro and Data Inputs'!E28/Log!L6,0), -ROUND(SUM(Log!G7:J7)/AVERAGE(Trends!D4:H4),0)) -> 0 | F10: - New discount rate as of June 30, 2024. ↓
C11: Other | E11: 0
C12: Net Change in Total OPEB Liability | E12: =E15-E14 -> 0
C14: Total OPEB Liability - Beginning | E14: =IF('Intro and Data Inputs'!E28>0,'Intro and Data Inputs'!E28,ROUND((Log!L6-E6-E10*(1+Lookups!L1)^0.5)/(1+Lookups!L1),0)) -> 0
C15: Total OPEB Liability - Ending | E15: =ROUND(Log!L11,0) -> 0
C17: Covered Employee Payroll | E17: ='Intro and Data Inputs'!E27 -> 0
C18: TOL as a Percentage of Covered Payroll | E18: =IFERROR(E15/E17, "N/A") -> N/A
C20: ="OPEB Expense for Fiscal Year Ending June 30, " & Lookups!L17 -> OPEB Expense for Fiscal Year Ending June 30, 2024
D21: Service Cost1 | E21: ='GASB Results'!E6 -> 0
D22: Interest Cost | E22: ='GASB Results'!E7 -> 0
D23: Changes in Experience Data and Assumptions | E23: ='GASB Results'!E8 -> 0
D24: Changes in Benefit Terms | E24: =E9 -> 0
D25: Other Changes in Fiduciary Net Position | E25: 0
D26: Total OPEB Expense | E26: =SUM(E21:E25) -> 0
D28: Transactions Subsequent to Measurement Date | E28: N/A1
C30: Sensitivity Analysis
C31: Total OPEB Liability | E31: 1% Decrease | F31: Current | G31: 1% Increase
C32: Discount Rate | E32: =ROUND(Log!L26,0) -> 0 | F32: ='GASB Results'!E15 -> 0 | G32: =ROUND(Log!L31,0) -> 0
C33: Healthcare Trend | E33: =ROUND(Log!L16,0) -> 0 | F33: ='GASB Results'!E15 -> 0 | G33: =ROUND(Log!L21,0) -> 0
C35: Methodology
C36: Actuarial Valuation Date | E36: ="6/30/"&Lookups!L17 -> 6/30/2024
C37: Actuarial Measurement Date | E37: ="6/30/"&Lookups!L17 -> 6/30/2024
C38: Actuarial Cost Method | E38: Entry Age1
C39: Amortization Method | E39: Recognized Immediately
C40: Asset Valuation Method | E40: N/A (No Assets)
C41: Assumptions
C42: Discount Rate2
C43: Beginning of Measurement Year | E43: =Lookups!L1 -> 0.0365
C44: End of Measurement Year | E44: =Lookups!L2 -> 0.0393
C45: Healthcare Trend Rates3
D46: Medical Costs | E46: Approximately 4.5%, varies by year
D47: Long-Term Care | E47: 0.0475
D48: Medicare Part B Premiums | E48: Approximately 5.0%, varies by year
C49: Mortality Rates (Assumes 100% Male Population)1
C50: Base Mortality Table | D50: Base Mortality Table | E50: PubS.H-2010 (Public Safety) Blended 50%/50% Healthy/Disabled
C51: Age Setback | D51: Age Setback | E51: -1 year Healthy / 0 years Disabled
C52: Mortality Improvements | D52: Mortality Improvements | E52: MP-2017 Long-Term Rates
C53: Projection Period | D53: Projection Period | E53: Generational
C54: Medicare Participation Rate | E54: 1
C55: 1See the Additional Disclosures tab for more details and guidance.
C56: 2Source: Bond Buyer General Obligation 20-Bond Municipal Index.
C57: 3For additional detail on the healthcare trend rates, please see OSA's 2022 LEOFF 1 OPEB Actuarial Valuation Report.
H59: Page 2 of 5

Sheet Additional Disclosures
B1: LEOFF 1 - AMM Online Tool Additional Disclosures
C3: This tab is intended to:
C4: (1) Provide guidance on concepts that require users to apply their judgment and/or consult with their auditor.
C5: (2) Document the assumptions and methods we employed for purposes of this AMM Online Tool that vary from the underlying actuarial valuation we performed at the plan-level.
C7: Data Inputs:
C9: ="We assume the inputs you provide are as of the measurement date of 6/30/"&ToolYear&". If you are not able to determine the counts and average ages as of that time, utilizing your current data or as of your reporting date may be reasonable. Please consult with your auditor for further guidance." -> We assume the inputs you provide are as of the measurement date of 6/30/2024. If you are not able to determine the counts and average ages as of that time, utilizing your current data or as of your reporting date may be reasonable. Please consult with your auditor for further guidance.
C11: GAAP-Basis only − Transactions Subsequent to Measurement Date (for GASB 75 Reporting):
C13: ="If your reporting date is after the 6/30/"&ToolYear&" measurement date, you will include the dollar amount of benefits paid between measurement and reporting date in your accounting results."&" You may use your actual benefit payments for this period (if known), or our estimate as provided below. Please see the BARS Manual from the State Auditor's Office for more information on how to incorporate this into your financial statements." -> If your reporting date is after the 6/30/2024 measurement date, you will include the dollar amount of benefits paid between measurement and reporting date in your accounting results. You may use your actual benefit payments for this period (if known), or our estimate as provided below. Please see the BARS Manual from the State Auditor's Office for more information on how to incorporate this into your financial statements.
C15: ="Based upon your data inputs, we estimate your first-year projected monthly benefits are "&TEXT(ROUND(Log!L12/12,0),"$#,##")&". If your reporting date is after the measurement date, multiply this amount by the number of months between your FYE and the measurement date. We believe this approach will serve as a reasonable estimate under this AMM Online Tool." -> Based upon your data inputs, we estimate your first-year projected monthly benefits are $. If your reporting date is after the measurement date, multiply this amount by the number of months between your FYE and the measurement date. We believe this approach will serve as a reasonable estimate under this AMM Online Tool.
C17: ="In other words, if you have a 12/31/"&ToolYear&" reporting date, your estimated transactions subsequent to the measurement date would be "&TEXT(ROUND(Log!L12/12,0),"$#,##")&" x 6 = "&TEXT(ROUND(Log!L12/2,0),"$#,##")&". Additionally, based upon guidance from the State Auditor's Office, the estimated current portion due of the Total OPEB Liability for the financial statement reporting would be "&TEXT(ROUND(Log!L12/12,0),"$#,##")&" x 12 = "&TEXT(ROUND(Log!L12,0),"$#,##")&". Other methods of determining these liabilities may also be reasonable." -> In other words, if you have a 12/31/2024 reporting date, your estimated transactions subsequent to the measurement date would be $ x 6 = $. Additionally, based upon guidance from the State Auditor's Office, the estimated current portion due of the Total OPEB Liability for the financial statement reporting would be $ x 12 = $. Other methods of determining these liabilities may also be reasonable.
C19: OSA actuarial reports relied upon for purposes of this AMM Online Tool:
C20: 2022 LEOFF 1 OPEB Actuarial Valuation Report (AVR)
C22: Specific assumptions we made when developing this AMM Online Tool:
C24: ◊ For consistency with the 2022 LEOFF 1 OPEB AVR, we assumed any remaining active members will retire immediately following the measurement date.
C25: ▪ This approach inherently assumes that all liabilities are fully earned and the Service Cost equals zero. In other words, the Entry Age Normal Total OPEB Liability is by definition equal to the Present Value of Future Benefits. Further, we implicitly do not need to make an assumption with respect to Projected Salary Changes.
C27: ◊ Each cohort is assumed to be 100 percent male.
C28: ▪ As of the most recent valuation report, greater than 98 percent of the eligible LEOFF 1 population is male. For purposes of this AMM Online Tool, we believe this simplification is reasonable and note that it only impacts the mortality assumptions selected (since the medical assumptions are already blended based upon the actual gender distribution within the eligible population). We will continue to monitor this assumption for future versions of the Tool.
C30: ◊ We selected the four age-based cohorts for this AMM Online Tool based upon the overall distribution of the LEOFF 1 eligible population. We believe this grouping approach is reasonable for purposes of the AMM.
C32: ="◊ Medical and long-term care costs were projected from June 30, 2022, to the measurement date of June 30, "&ToolYear&", using the healthcare trend rates detailed in the 2022 LEOFF 1 OPEB AVR." -> ◊ Medical and long-term care costs were projected from June 30, 2022, to the measurement date of June 30, 2024, using the healthcare trend rates detailed in the 2022 LEOFF 1 OPEB AVR.
C34: We believe these approaches and simplifying assumptions are reasonable for purposes of this AMM.
C37: For prior versions of this Tool, please contact the State Auditor's Office.
C39: We would like to hear your feedback if you used this Tool. Please send us an email at:
C40: State.Actuary@leg.wa.gov
C42: Glossary - Link to the OSA website that includes definitions for frequently used actuarial and OPEB terms.
D45: Page 3 of 5

Sheet Certification Letter
A1: ` | B1: LEOFF 1 - GASB 75 AMM Online Tool Actuarial Certification
D60: Page 4 of 5
B62: LEOFF 1 - GASB 75 AMM Online Tool Actuarial Certification (Continued)
D121: Page 5 of 5

Sheet Inactive (hidden)
A1: Inactives | B1: 0 | D1: Medical | E1: Medicare | G1: LTC - Inst. | H1: LTC - Non Inst. | J1: Medical - Age<65 | L1: Medical - Age>=65 | N1: Medicare | Q1: LTC - Inst. | T1: LTC - Non Inst. | X1: Medical | Y1: Medicare | AB1: LTC - Inst. | AC1: LTC - Non Inst. | AI1: Pct Male | AJ1: 1 | AP1: PV of
A2: Year | D2: Cost | E2: Cost | G2: Cost | H2: Cost | J2: Trend | K2: Rel Trend | L2: Trend | M2: Rel Trend | N2: Trend | O2: Rel Trend | Q2: Rate | R2: Trend | S2: Rel Trend | T2: Rate | U2: Trend | V2: Rel Trend | X2: Net Cost | Y2: Net Cost | Z2: Total | AB2: Net Cost | AC2: Net Cost | AD2: Total | AF2: Grand Total | AH2: Mort - M | AI2: Mort - F | AJ2: Mortality | AK2: Survive | AL2: Interest | AM2: Pay Timing | AP2: Benefits
A3: =ToolYear -> 2024 | B3: 92 | D3: =VLOOKUP(B3,Lookups!A:B,2) -> 17707.23977 | E3: =VLOOKUP(B3,Lookups!A:C,3) -> 2203.965 | G3: =VLOOKUP(B3,Lookups!A:D,4) -> 198286.2742 | H3: =VLOOKUP(B3,Lookups!A:E,5) -> 181251.1938 | J3: =VLOOKUP(A3,Trends!$A$3:$H$94,IF(ExFlg=0,4,2))+Sens -> 1.065 | K3: 1 | L3: =VLOOKUP(A3,Trends!$A$3:$H$94,IF(ExFlg=0,5,3))+Sens -> 1.065 | M3: 1 | N3: =VLOOKUP(A3,Trends!$A$3:$H$94,6)+Sens -> 1.084 | O3: 1 | Q3: =IF(B3<=120,VLOOKUP(B3,Lookups!$A$3:$I$103,8,FALSE),"") -> 0.1081857143 | R3: =VLOOKUP(A3,Trends!$A$3:$H$94,7)+Sens -> 1.0475 | S3: 1 | T3: =IF(B3<=120,VLOOKUP(B3,Lookups!$A$3:$I$103,9,FALSE),"") -> 0.0838 | U3: =VLOOKUP(A3,Trends!$A$3:$H$94,8)+Sens -> 1.0475 | V3: 1 | X3: =IF(B3<=120,IF(B3<65,D3*K3,D3*M3),"") -> 17707.23977 | Y3: =IF(B3<=120,E3*O3,"") -> 2203.965 | Z3: =IF(B3<=120,X3+Y3,"") -> 19911.20477 | AB3: =IF(B3<=120,G3*Q3*S3,"") -> 21451.74221 | AC3: =IF(B3<=120,H3*T3*V3,"") -> 15188.85004 | AD3: =IF(B3<=120,AB3+AC3,"") -> 36640.59225 | AF3: =IF(B3<=120,Z3+AD3, "") -> 56551.79701 | AH3: =IF($B3<121,VLOOKUP($B3,Lookups!A:F,6)*(1-VLOOKUP($B3,Lookups!$N$3:$P$103,2))^($A3-$A$3),"") -> 0.1698211396 | AI3: =IF($B3<121,VLOOKUP($B3,Lookups!A:G,7)*(1-VLOOKUP($B3,Lookups!$N$3:$P$103,3))^($A3-$A$3),"") -> 0.1303429122 | AJ3: =IF(B3<121,(PCTMALE*AH3+(1-PCTMALE)*AI3),"") -> 0.1698211396 | AK3: 1 | AL3: 1 | AM3: =IF(AJ3="","",ROUND((13/24)+(11/24)*(1/(1+IntRt))*(1-AJ3),6)) -> 0.908766 | AP3: =IF(B3<=120,AF3*AK3*AL3*AM3,"") -> 51392.35037
A4: =1+A3 -> 2025 | B4: =1+B3 -> 93 | D4: =VLOOKUP(B4,Lookups!A:B,2) -> 17707.23977 | E4: =VLOOKUP(B4,Lookups!A:C,3) -> 2203.965 | G4: =VLOOKUP(B4,Lookups!A:D,4) -> 192509.22 | H4: =VLOOKUP(B4,Lookups!A:E,5) -> 177710.8354 | J4: =VLOOKUP(A4,Trends!$A$3:$H$94,IF(ExFlg=0,4,2))+Sens -> 1.06 | K4: =K3*J3 -> 1.065 | L4: =VLOOKUP(A4,Trends!$A$3:$H$94,IF(ExFlg=0,5,3))+Sens -> 1.06 | M4: =M3*L3 -> 1.065 | N4: =VLOOKUP(A4,Trends!$A$3:$H$94,6)+Sens -> 1.086 | O4: =O3*N3 -> 1.084 | Q4: =IF(B4<=120,VLOOKUP(B4,Lookups!$A$3:$I$103,8,FALSE),"") -> 0.1166285714 | R4: =VLOOKUP(A4,Trends!$A$3:$H$94,7)+Sens -> 1.0475 | S4: =S3*R3 -> 1.0475 | T4: =IF(B4<=120,VLOOKUP(B4,Lookups!$A$3:$I$103,9,FALSE),"") -> 0.0865 | U4: =VLOOKUP(A4,Trends!$A$3:$H$94,8)+Sens -> 1.0475 | V4: =V3*U3 -> 1.0475 | X4: =IF(B4<=120,IF(B4<65,D4*K4,D4*M4),"") -> 18858.21035 | Y4: =IF(B4<=120,E4*O4,"") -> 2389.09806 | Z4: =IF(B4<=120,X4+Y4,"") -> 21247.30841 | AB4: =IF(B4<=120,G4*Q4*S4,"") -> 23518.5489 | AC4: =IF(B4<=120,H4*T4*V4,"") -> 16102.15665 | AD4: =IF(B4<=120,AB4+AC4,"") -> 39620.70555 | AF4: =IF(B4<=120,Z4+AD4, "") -> 60868.01396 | AH4: =IF($B4<121,VLOOKUP($B4,Lookups!A:F,6)*(1-VLOOKUP($B4,Lookups!$N$3:$P$103,2))^($A4-$A$3),"") -> 0.182584105 | AI4: =IF($B4<121,VLOOKUP($B4,Lookups!A:G,7)*(1-VLOOKUP($B4,Lookups!$N$3:$P$103,3))^($A4-$A$3),"") -> 0.1420200774 | AJ4: =IF(B4<121,(PCTMALE*AH4+(1-PCTMALE)*AI4),"") -> 0.182584105 | AK4: =IF(B4<121,AK3*(1-AJ3),"") -> 0.8301788604 | AL4: =IF(B4<121,AL3/(1+IntRt),"") -> 0.9647853353 | AM4: =IF(AJ4="","",ROUND((13/24)+(11/24)*(1/(1+IntRt))*(1-AJ4),6)) -> 0.903122 | AP4: =IF(B4<=120,AF4*AK4*AL4*AM4,"") -> 44028.90831
A5: 2026 | B5: 94 | D5: =VLOOKUP(B5,Lookups!A:B,2) -> 17707.23977 | E5: =VLOOKUP(B5,Lookups!A:C,3) -> 2203.965 | G5: =VLOOKUP(B5,Lookups!A:D,4) -> 186732.1659 | H5: =VLOOKUP(B5,Lookups!A:E,5) -> 174170.4769 | J5: =VLOOKUP(A5,Trends!$A$3:$H$94,IF(ExFlg=0,4,2))+Sens -> 1.054 | K5: =K4*J4 -> 1.1289 | L5: =VLOOKUP(A5,Trends!$A$3:$H$94,IF(ExFlg=0,5,3))+Sens -> 1.054 | M5: =M4*L4 -> 1.1289 | N5: =VLOOKUP(A5,Trends!$A$3:$H$94,6)+Sens -> 1.071 | O5: =O4*N4 -> 1.177224 | Q5: =IF(B5<=120,VLOOKUP(B5,Lookups!$A$3:$I$103,8,FALSE),"") -> 0.1250714286 | R5: =VLOOKUP(A5,Trends!$A$3:$H$94,7)+Sens -> 1.0475 | S5: =S4*R4 -> 1.09725625 | T5: =IF(B5<=120,VLOOKUP(B5,Lookups!$A$3:$I$103,9,FALSE),"") -> 0.0892 | U5: =VLOOKUP(A5,Trends!$A$3:$H$94,8)+Sens -> 1.0475 | V5: =V4*U4 -> 1.09725625 | X5: 19989.70298 | Y5: 2594.560493 | Z5: 22584.26347 | AB5: 25626.26473 | AC5: 17046.98028 | AD5: 42673.24501 | AF5: 65257.50848 | AH5: =IF($B5<121,VLOOKUP($B5,Lookups!A:F,6)*(1-VLOOKUP($B5,Lookups!$N$3:$P$103,2))^($A5-$A$3),"") -> 0.1948429941 | AI5: =IF($B5<121,VLOOKUP($B5,Lookups!A:G,7)*(1-VLOOKUP($B5,Lookups!$N$3:$P$103,3))^($A5-$A$3),"") -> 0.1541362163 | AJ5: 0.1948429941 | AK5: =IF(B5<121,AK4*(1-AJ4),"") -> 0.6786013962 | AL5: 0.9308107431 | AM5: 0.897702 | AP5: 37003.16031
A6: 2027 | B6: 95 | D6: =VLOOKUP(B6,Lookups!A:B,2) -> 17707.23977 | E6: =VLOOKUP(B6,Lookups!A:C,3) -> 2203.965 | G6: =VLOOKUP(B6,Lookups!A:D,4) -> 180955.1117 | H6: =VLOOKUP(B6,Lookups!A:E,5) -> 170630.1185 | J6: =VLOOKUP(A6,Trends!$A$3:$H$94,IF(ExFlg=0,4,2))+Sens -> 1.05 | K6: =K5*J5 -> 1.1898606 | L6: =VLOOKUP(A6,Trends!$A$3:$H$94,IF(ExFlg=0,5,3))+Sens -> 1.05 | M6: 1.1898606 | N6: =VLOOKUP(A6,Trends!$A$3:$H$94,6)+Sens -> 1.06 | O6: 1.260806904 | Q6: =IF(B6<=120,VLOOKUP(B6,Lookups!$A$3:$I$103,8,FALSE),"") -> 0.1335142857 | R6: =VLOOKUP(A6,Trends!$A$3:$H$94,7)+Sens -> 1.0475 | S6: =S5*R5 -> 1.149375922 | T6: =IF(B6<=120,VLOOKUP(B6,Lookups!$A$3:$I$103,9,FALSE),"") -> 0.0919 | U6: =VLOOKUP(A6,Trends!$A$3:$H$94,8)+Sens -> 1.0475 | V6: 1.149375922 | X6: 21069.14694 | Y6: 2778.774288 | Z6: 23847.92122 | AB6: 27769.02858 | AC6: 18023.25796 | AD6: 45792.28654 | AF6: 69640.20776 | AH6: =IF($B6<121,VLOOKUP($B6,Lookups!A:F,6)*(1-VLOOKUP($B6,Lookups!$N$3:$P$103,2))^($A6-$A$3),"") -> 0.2073214555 | AI6: =IF($B6<121,VLOOKUP($B6,Lookups!A:G,7)*(1-VLOOKUP($B6,Lookups!$N$3:$P$103,3))^($A6-$A$3),"") -> 0.1678594555 | AJ6: 0.2073214555 | AK6: 0.5463806684 | AL6: 0.8980325549 | AM6: 0.892184 | AP6: 30486.10172
A7: 2028 | B7: 96 | D7: =VLOOKUP(B7,Lookups!A:B,2) -> 17707.23977 | E7: =VLOOKUP(B7,Lookups!A:C,3) -> 2203.965 | G7: =VLOOKUP(B7,Lookups!A:D,4) -> 175178.0576 | H7: =VLOOKUP(B7,Lookups!A:E,5) -> 167089.7601 | J7: =VLOOKUP(A7,Trends!$A$3:$H$94,IF(ExFlg=0,4,2))+Sens -> 1.048 | K7: 1.24935363 | L7: =VLOOKUP(A7,Trends!$A$3:$H$94,IF(ExFlg=0,5,3))+Sens -> 1.048 | M7: 1.24935363 | N7: =VLOOKUP(A7,Trends!$A$3:$H$94,6)+Sens -> 1.056 | O7: =O6*N6 -> 1.336455318 | Q7: =IF(B7<=120,VLOOKUP(B7,Lookups!$A$3:$I$103,8,FALSE),"") -> 0.1419571429 | R7: =VLOOKUP(A7,Trends!$A$3:$H$94,7)+Sens -> 1.0475 | S7: 1.203971278 | T7: =IF(B7<=120,VLOOKUP(B7,Lookups!$A$3:$I$103,9,FALSE),"") -> 0.0946 | U7: =VLOOKUP(A7,Trends!$A$3:$H$94,8)+Sens -> 1.0475 | V7: 1.203971278 | X7: 22122.60428 | Y7: 2945.500745 | Z7: 25068.10503 | AB7: 29940.08871 | AC7: 19030.80233 | AD7: 48970.89104 | AF7: 74038.99607 | AH7: =IF($B7<121,VLOOKUP($B7,Lookups!A:F,6)*(1-VLOOKUP($B7,Lookups!$N$3:$P$103,2))^($A7-$A$3),"") -> 0.2207615329 | AI7: =IF($B7<121,VLOOKUP($B7,Lookups!A:G,7)*(1-VLOOKUP($B7,Lookups!$N$3:$P$103,3))^($A7-$A$3),"") -> 0.1837253553 | AJ7: 0.2207615329 | AK7: 0.4331042329 | AL7: 0.8664086395 | AM7: 0.886241 | AP7: 24622.24009
A8: 2029 | B8: 97 | D8: =VLOOKUP(B8,Lookups!A:B,2) -> 17707.23977 | E8: =VLOOKUP(B8,Lookups!A:C,3) -> 2203.965 | G8: =VLOOKUP(B8,Lookups!A:D,4) -> 169401.0034 | H8: =VLOOKUP(B8,Lookups!A:E,5) -> 163549.4017 | J8: =VLOOKUP(A8,Trends!$A$3:$H$94,IF(ExFlg=0,4,2))+Sens -> 1.046 | K8: 1.309322604 | L8: =VLOOKUP(A8,Trends!$A$3:$H$94,IF(ExFlg=0,5,3))+Sens -> 1.046 | M8: 1.309322604 | N8: =VLOOKUP(A8,Trends!$A$3:$H$94,6)+Sens -> 1.057 | O8: 1.411296816 | Q8: =IF(B8<=120,VLOOKUP(B8,Lookups!$A$3:$I$103,8,FALSE),"") -> 0.1504 | R8: =VLOOKUP(A8,Trends!$A$3:$H$94,7)+Sens -> 1.0475 | S8: 1.261159914 | T8: =IF(B8<=120,VLOOKUP(B8,Lookups!$A$3:$I$103,9,FALSE),"") -> 0.0973 | U8: =VLOOKUP(A8,Trends!$A$3:$H$94,8)+Sens -> 1.0475 | V8: 1.261159914 | X8: 23184.48929 | Y8: 3110.448787 | Z8: 26294.93808 | AB8: 32131.71993 | AC8: 20069.28767 | AD8: 52201.0076 | AF8: 78495.94568 | AH8: =IF($B8<121,VLOOKUP($B8,Lookups!A:F,6)*(1-VLOOKUP($B8,Lookups!$N$3:$P$103,2))^($A8-$A$3),"") -> 0.2348085376 | AI8: =IF($B8<121,VLOOKUP($B8,Lookups!A:G,7)*(1-VLOOKUP($B8,Lookups!$N$3:$P$103,3))^($A8-$A$3),"") -> 0.2005009601 | AJ8: 0.2348085376 | AK8: 0.3374914785 | AL8: 0.8358983498 | AM8: 0.880029 | AP8: 19487.69569
A9: 2030 | B9: 98 | D9: =VLOOKUP(B9,Lookups!A:B,2) -> 17707.23977 | E9: =VLOOKUP(B9,Lookups!A:C,3) -> 2203.965 | G9: =VLOOKUP(B9,Lookups!A:D,4) -> 169401.0034 | H9: =VLOOKUP(B9,Lookups!A:E,5) -> 163549.4017 | J9: =VLOOKUP(A9,Trends!$A$3:$H$94,IF(ExFlg=0,4,2))+Sens -> 1.044 | K9: 1.369551444 | L9: =VLOOKUP(A9,Trends!$A$3:$H$94,IF(ExFlg=0,5,3))+Sens -> 1.044 | M9: 1.369551444 | N9: =VLOOKUP(A9,Trends!$A$3:$H$94,6)+Sens -> 1.059 | O9: 1.491740735 | Q9: =IF(B9<=120,VLOOKUP(B9,Lookups!$A$3:$I$103,8,FALSE),"") -> 0.1504 | R9: =VLOOKUP(A9,Trends!$A$3:$H$94,7)+Sens -> 1.0475 | S9: 1.32106501 | T9: =IF(B9<=120,VLOOKUP(B9,Lookups!$A$3:$I$103,9,FALSE),"") -> 0.0973 | U9: =VLOOKUP(A9,Trends!$A$3:$H$94,8)+Sens -> 1.0475 | V9: 1.32106501 | X9: 24250.9758 | Y9: 3287.744368 | Z9: 27538.72016 | AB9: 33657.97663 | AC9: 21022.57883 | AD9: 54680.55546 | AF9: 82219.27563 | AH9: =IF($B9<121,VLOOKUP($B9,Lookups!A:F,6)*(1-VLOOKUP($B9,Lookups!$N$3:$P$103,2))^($A9-$A$3),"") -> 0.2502194214 | AI9: =IF($B9<121,VLOOKUP($B9,Lookups!A:G,7)*(1-VLOOKUP($B9,Lookups!$N$3:$P$103,3))^($A9-$A$3),"") -> 0.2185011619 | AJ9: 0.2502194214 | AK9: 0.258245598 | AL9: 0.8064624696 | AM9: 0.873215 | AP9: 14952.43497
A10: 2031 | B10: 99 | D10: =VLOOKUP(B10,Lookups!A:B,2) -> 17707.23977 | E10: =VLOOKUP(B10,Lookups!A:C,3) -> 2203.965 | G10: =VLOOKUP(B10,Lookups!A:D,4) -> 169401.0034 | H10: =VLOOKUP(B10,Lookups!A:E,5) -> 163549.4017 | J10: =VLOOKUP(A10,Trends!$A$3:$H$94,IF(ExFlg=0,4,2))+Sens -> 1.043 | K10: 1.429811708 | L10: =VLOOKUP(A10,Trends!$A$3:$H$94,IF(ExFlg=0,5,3))+Sens -> 1.043 | M10: 1.429811708 | N10: =VLOOKUP(A10,Trends!$A$3:$H$94,6)+Sens -> 1.057 | O10: 1.579753438 | Q10: =IF(B10<=120,VLOOKUP(B10,Lookups!$A$3:$I$103,8,FALSE),"") -> 0.1504 | R10: =VLOOKUP(A10,Trends!$A$3:$H$94,7)+Sens -> 1.0475 | S10: 1.383815598 | T10: =IF(B10<=120,VLOOKUP(B10,Lookups!$A$3:$I$103,9,FALSE),"") -> 0.0973 | U10: =VLOOKUP(A10,Trends!$A$3:$H$94,8)+Sens -> 1.0475 | V10: 1.383815598 | X10: 25318.01873 | Y10: 3481.721286 | Z10: 28799.74002 | AB10: 35256.73052 | AC10: 22021.15133 | AD10: 57277.88185 | AF10: 86077.62186 | AH10: =IF($B10<121,VLOOKUP($B10,Lookups!A:F,6)*(1-VLOOKUP($B10,Lookups!$N$3:$P$103,2))^($A10-$A$3),"") -> 0.266203245 | AI10: =IF($B10<121,VLOOKUP($B10,Lookups!A:G,7)*(1-VLOOKUP($B10,Lookups!$N$3:$P$103,3))^($A10-$A$3),"") -> 0.2367724125 | AJ10: 0.266203245 | AK10: 0.1936275339 | AL10: 0.7780631641 | AM10: 0.866147 | AP10: 11232.17431
A11: 2032 | B11: 100 | D11: =VLOOKUP(B11,Lookups!A:B,2) -> 17707.23977 | E11: =VLOOKUP(B11,Lookups!A:C,3) -> 2203.965 | G11: =VLOOKUP(B11,Lookups!A:D,4) -> 169401.0034 | H11: =VLOOKUP(B11,Lookups!A:E,5) -> 163549.4017 | J11: =VLOOKUP(A11,Trends!$A$3:$H$94,IF(ExFlg=0,4,2))+Sens -> 1.042 | K11: 1.491293611 | L11: =VLOOKUP(A11,Trends!$A$3:$H$94,IF(ExFlg=0,5,3))+Sens -> 1.042 | M11: 1.491293611 | N11: =VLOOKUP(A11,Trends!$A$3:$H$94,6)+Sens -> 1.057 | O11: 1.669799384 | Q11: =IF(B11<=120,VLOOKUP(B11,Lookups!$A$3:$I$103,8,FALSE),"") -> 0.1504 | R11: =VLOOKUP(A11,Trends!$A$3:$H$94,7)+Sens -> 1.0475 | S11: 1.449546839 | T11: =IF(B11<=120,VLOOKUP(B11,Lookups!$A$3:$I$103,9,FALSE),"") -> 0.0973 | U11: =VLOOKUP(A11,Trends!$A$3:$H$94,8)+Sens -> 1.0475 | V11: 1.449546839 | X11: 26406.69354 | Y11: 3680.179399 | Z11: 30086.87293 | AB11: 36931.42522 | AC11: 23067.15602 | AD11: 59998.58124 | AF11: 90085.45417 | AH11: =IF($B11<121,VLOOKUP($B11,Lookups!A:F,6)*(1-VLOOKUP($B11,Lookups!$N$3:$P$103,2))^($A11-$A$3),"") -> 0.2832340327 | AI11: =IF($B11<121,VLOOKUP($B11,Lookups!A:G,7)*(1-VLOOKUP($B11,Lookups!$N$3:$P$103,3))^($A11-$A$3),"") -> 0.2555839728 | AJ11: 0.2832340327 | AK11: 0.1420832561 | AL11: 0.7506639307 | AM11: 0.858616 | AP11: 8249.774909
A12: 2033 | B12: 101 | D12: =VLOOKUP(B12,Lookups!A:B,2) -> 17707.23977 | E12: =VLOOKUP(B12,Lookups!A:C,3) -> 2203.965 | G12: =VLOOKUP(B12,Lookups!A:D,4) -> 169401.0034 | H12: =VLOOKUP(B12,Lookups!A:E,5) -> 163549.4017 | J12: =VLOOKUP(A12,Trends!$A$3:$H$94,IF(ExFlg=0,4,2))+Sens -> 1.042 | K12: 1.553927943 | L12: =VLOOKUP(A12,Trends!$A$3:$H$94,IF(ExFlg=0,5,3))+Sens -> 1.042 | M12: 1.553927943 | N12: =VLOOKUP(A12,Trends!$A$3:$H$94,6)+Sens -> 1.057 | O12: 1.764977949 | Q12: =IF(B12<=120,VLOOKUP(B12,Lookups!$A$3:$I$103,8,FALSE),"") -> 0.1504 | R12: =VLOOKUP(A12,Trends!$A$3:$H$94,7)+Sens -> 1.0475 | S12: 1.518400313 | T12: =IF(B12<=120,VLOOKUP(B12,Lookups!$A$3:$I$103,9,FALSE),"") -> 0.0973 | U12: =VLOOKUP(A12,Trends!$A$3:$H$94,8)+Sens -> 1.0475 | V12: 1.518400313 | X12: 27515.77466 | Y12: 3889.949625 | Z12: 31405.72429 | AB12: 38685.66792 | AC12: 24162.84593 | AD12: 62848.51384 | AF12: 94254.23813 | AH12: =IF($B12<121,VLOOKUP($B12,Lookups!A:F,6)*(1-VLOOKUP($B12,Lookups!$N$3:$P$103,2))^($A12-$A$3),"") -> 0.3011355745 | AI12: =IF($B12<121,VLOOKUP($B12,Lookups!A:G,7)*(1-VLOOKUP($B12,Lookups!$N$3:$P$103,3))^($A12-$A$3),"") -> 0.2748219119 | AJ12: 0.3011355745 | AK12: 0.1018404425 | AL12: 0.724229552 | AM12: 0.8507 | AP12: 5913.898137
A13: 2034 | B13: 102 | D13: =VLOOKUP(B13,Lookups!A:B,2) -> 17707.23977 | E13: =VLOOKUP(B13,Lookups!A:C,3) -> 2203.965 | G13: =VLOOKUP(B13,Lookups!A:D,4) -> 169401.0034 | H13: =VLOOKUP(B13,Lookups!A:E,5) -> 163549.4017 | J13: =VLOOKUP(A13,Trends!$A$3:$H$94,IF(ExFlg=0,4,2))+Sens -> 1.042 | K13: 1.619192916 | L13: =VLOOKUP(A13,Trends!$A$3:$H$94,IF(ExFlg=0,5,3))+Sens -> 1.042 | M13: 1.619192916 | N13: =VLOOKUP(A13,Trends!$A$3:$H$94,6)+Sens -> 1.057 | O13: 1.865581692 | Q13: =IF(B13<=120,VLOOKUP(B13,Lookups!$A$3:$I$103,8,FALSE),"") -> 0.1504 | R13: =VLOOKUP(A13,Trends!$A$3:$H$94,7)+Sens -> 1.0475 | S13: 1.590524328 | T13: =IF(B13<=120,VLOOKUP(B13,Lookups!$A$3:$I$103,9,FALSE),"") -> 0.0973 | U13: =VLOOKUP(A13,Trends!$A$3:$H$94,8)+Sens -> 1.0475 | V13: 1.590524328 | X13: 28671.4372 | Y13: 4111.676753 | Z13: 32783.11395 | AB13: 40523.23714 | AC13: 25310.58111 | AD13: 65833.81825 | AF13: 98616.93221 | AH13: =IF($B13<121,VLOOKUP($B13,Lookups!A:F,6)*(1-VLOOKUP($B13,Lookups!$N$3:$P$103,2))^($A13-$A$3),"") -> 0.3202209979 | AI13: =IF($B13<121,VLOOKUP($B13,Lookups!A:G,7)*(1-VLOOKUP($B13,Lookups!$N$3:$P$103,3))^($A13-$A$3),"") -> 0.2951317344 | AJ13: 0.3202209979 | AK13: 0.07117266232 | AL13: 0.6987260512 | AM13: 0.84226 | AP13: 4130.644425
A14: 2035 | B14: 103 | D14: =VLOOKUP(B14,Lookups!A:B,2) -> 17707.23977 | E14: =VLOOKUP(B14,Lookups!A:C,3) -> 2203.965 | G14: =VLOOKUP(B14,Lookups!A:D,4) -> 169401.0034 | H14: =VLOOKUP(B14,Lookups!A:E,5) -> 163549.4017 | J14: =VLOOKUP(A14,Trends!$A$3:$H$94,IF(ExFlg=0,4,2))+Sens -> 1.042 | K14: 1.687199019 | L14: =VLOOKUP(A14,Trends!$A$3:$H$94,IF(ExFlg=0,5,3))+Sens -> 1.042 | M14: 1.687199019 | N14: =VLOOKUP(A14,Trends!$A$3:$H$94,6)+Sens -> 1.057 | O14: 1.971919848 | Q14: =IF(B14<=120,VLOOKUP(B14,Lookups!$A$3:$I$103,8,FALSE),"") -> 0.1504 | R14: =VLOOKUP(A14,Trends!$A$3:$H$94,7)+Sens -> 1.0475 | S14: 1.666074234 | T14: =IF(B14<=120,VLOOKUP(B14,Lookups!$A$3:$I$103,9,FALSE),"") -> 0.0973 | U14: =VLOOKUP(A14,Trends!$A$3:$H$94,8)+Sens -> 1.0475 | V14: 1.666074234 | X14: 29875.63756 | Y14: 4346.042328 | Z14: 34221.67989 | AB14: 42448.09091 | AC14: 26512.83371 | AD14: 68960.92462 | AF14: 103182.6045 | AH14: =IF($B14<121,VLOOKUP($B14,Lookups!A:F,6)*(1-VLOOKUP($B14,Lookups!$N$3:$P$103,2))^($A14-$A$3),"") -> 0.3386748171 | AI14: =IF($B14<121,VLOOKUP($B14,Lookups!A:G,7)*(1-VLOOKUP($B14,Lookups!$N$3:$P$103,3))^($A14-$A$3),"") -> 0.3150422484 | AJ14: 0.3386748171 | AK14: 0.04838168137 | AL14: 0.6741206475 | AM14: 0.8341 | AP14: 2807.005047
A15: 2036 | B15: 104 | D15: =VLOOKUP(B15,Lookups!A:B,2) -> 17707.23977 | E15: =VLOOKUP(B15,Lookups!A:C,3) -> 2203.965 | G15: =VLOOKUP(B15,Lookups!A:D,4) -> 169401.0034 | H15: =VLOOKUP(B15,Lookups!A:E,5) -> 163549.4017 | J15: =VLOOKUP(A15,Trends!$A$3:$H$94,IF(ExFlg=0,4,2))+Sens -> 1.042 | K15: 1.758061378 | L15: =VLOOKUP(A15,Trends!$A$3:$H$94,IF(ExFlg=0,5,3))+Sens -> 1.042 | M15: 1.758061378 | N15: =VLOOKUP(A15,Trends!$A$3:$H$94,6)+Sens -> 1.057 | O15: 2.08431928 | Q15: =IF(B15<=120,VLOOKUP(B15,Lookups!$A$3:$I$103,8,FALSE),"") -> 0.1504 | R15: =VLOOKUP(A15,Trends!$A$3:$H$94,7)+Sens -> 1.0475 | S15: 1.74521276 | T15: =IF(B15<=120,VLOOKUP(B15,Lookups!$A$3:$I$103,9,FALSE),"") -> 0.0973 | U15: =VLOOKUP(A15,Trends!$A$3:$H$94,8)+Sens -> 1.0475 | V15: 1.74521276 | X15: 31130.41434 | Y15: 4593.766741 | Z15: 35724.18108 | AB15: 44464.37523 | AC15: 27772.19331 | AD15: 72236.56854 | AF15: 107960.7496 | AH15: =IF($B15<121,VLOOKUP($B15,Lookups!A:F,6)*(1-VLOOKUP($B15,Lookups!$N$3:$P$103,2))^($A15-$A$3),"") -> 0.3571157978 | AI15: =IF($B15<121,VLOOKUP($B15,Lookups!A:G,7)*(1-VLOOKUP($B15,Lookups!$N$3:$P$103,3))^($A15-$A$3),"") -> 0.3350686637 | AJ15: 0.3571157978 | AK15: 0.03199602428 | AL15: 0.6503817149 | AM15: 0.825946 | AP15: 1855.589414
A16: 2037 | B16: 105 | D16: =VLOOKUP(B16,Lookups!A:B,2) -> 17707.23977 | E16: =VLOOKUP(B16,Lookups!A:C,3) -> 2203.965 | G16: =VLOOKUP(B16,Lookups!A:D,4) -> 169401.0034 | H16: =VLOOKUP(B16,Lookups!A:E,5) -> 163549.4017 | J16: =VLOOKUP(A16,Trends!$A$3:$H$94,IF(ExFlg=0,4,2))+Sens -> 1.042 | K16: 1.831899955 | L16: =VLOOKUP(A16,Trends!$A$3:$H$94,IF(ExFlg=0,5,3))+Sens -> 1.042 | M16: 1.831899955 | N16: =VLOOKUP(A16,Trends!$A$3:$H$94,6)+Sens -> 1.057 | O16: 2.203125479 | Q16: =IF(B16<=120,VLOOKUP(B16,Lookups!$A$3:$I$103,8,FALSE),"") -> 0.1504 | R16: =VLOOKUP(A16,Trends!$A$3:$H$94,7)+Sens -> 1.0475 | S16: 1.828110366 | T16: =IF(B16<=120,VLOOKUP(B16,Lookups!$A$3:$I$103,9,FALSE),"") -> 0.0973 | U16: =VLOOKUP(A16,Trends!$A$3:$H$94,8)+Sens -> 1.0475 | V16: 1.828110366 | X16: 32437.89174 | Y16: 4855.611445 | Z16: 37293.50319 | AB16: 46576.43305 | AC16: 29091.37249 | AD16: 75667.80554 | AF16: 112961.3087 | AH16: =IF($B16<121,VLOOKUP($B16,Lookups!A:F,6)*(1-VLOOKUP($B16,Lookups!$N$3:$P$103,2))^($A16-$A$3),"") -> 0.3754664355 | AI16: =IF($B16<121,VLOOKUP($B16,Lookups!A:G,7)*(1-VLOOKUP($B16,Lookups!$N$3:$P$103,3))^($A16-$A$3),"") -> 0.3551039497 | AJ16: 0.3754664355 | AK16: 0.02056973854 | AL16: 0.6274787409 | AM16: 0.817831 | AP16: 1192.397541
A17: 2038 | B17: 106 | D17: =VLOOKUP(B17,Lookups!A:B,2) -> 17707.23977 | E17: =VLOOKUP(B17,Lookups!A:C,3) -> 2203.965 | G17: =VLOOKUP(B17,Lookups!A:D,4) -> 169401.0034 | H17: =VLOOKUP(B17,Lookups!A:E,5) -> 163549.4017 | J17: =VLOOKUP(A17,Trends!$A$3:$H$94,IF(ExFlg=0,4,2))+Sens -> 1.042 | K17: 1.908839754 | L17: =VLOOKUP(A17,Trends!$A$3:$H$94,IF(ExFlg=0,5,3))+Sens -> 1.042 | M17: 1.908839754 | N17: =VLOOKUP(A17,Trends!$A$3:$H$94,6)+Sens -> 1.057 | O17: 2.328703631 | Q17: =IF(B17<=120,VLOOKUP(B17,Lookups!$A$3:$I$103,8,FALSE),"") -> 0.1504 | R17: =VLOOKUP(A17,Trends!$A$3:$H$94,7)+Sens -> 1.0475 | S17: 1.914945609 | T17: =IF(B17<=120,VLOOKUP(B17,Lookups!$A$3:$I$103,9,FALSE),"") -> 0.0973 | U17: =VLOOKUP(A17,Trends!$A$3:$H$94,8)+Sens -> 1.0475 | V17: 1.914945609 | X17: 33800.2832 | Y17: 5132.381298 | Z17: 38932.66449 | AB17: 48788.81362 | AC17: 30473.21269 | AD17: 79262.02631 | AF17: 118194.6908 | AH17: =IF($B17<121,VLOOKUP($B17,Lookups!A:F,6)*(1-VLOOKUP($B17,Lookups!$N$3:$P$103,2))^($A17-$A$3),"") -> 0.3947758214 | AI17: =IF($B17<121,VLOOKUP($B17,Lookups!A:G,7)*(1-VLOOKUP($B17,Lookups!$N$3:$P$103,3))^($A17-$A$3),"") -> 0.3761015322 | AJ17: 0.3947758214 | AK17: 0.01284649213 | AL17: 0.6053822874 | AM17: 0.809293 | AP17: 743.9059256
A18: 2039 | B18: 107 | D18: =VLOOKUP(B18,Lookups!A:B,2) -> 17707.23977 | E18: =VLOOKUP(B18,Lookups!A:C,3) -> 2203.965 | G18: =VLOOKUP(B18,Lookups!A:D,4) -> 169401.0034 | H18: =VLOOKUP(B18,Lookups!A:E,5) -> 163549.4017 | J18: =VLOOKUP(A18,Trends!$A$3:$H$94,IF(ExFlg=0,4,2))+Sens -> 1.042 | K18: 1.989011023 | L18: =VLOOKUP(A18,Trends!$A$3:$H$94,IF(ExFlg=0,5,3))+Sens -> 1.042 | M18: 1.989011023 | N18: =VLOOKUP(A18,Trends!$A$3:$H$94,6)+Sens -> 1.049 | O18: 2.461439738 | Q18: =IF(B18<=120,VLOOKUP(B18,Lookups!$A$3:$I$103,8,FALSE),"") -> 0.1504 | R18: =VLOOKUP(A18,Trends!$A$3:$H$94,7)+Sens -> 1.0475 | S18: 2.005905525 | T18: =IF(B18<=120,VLOOKUP(B18,Lookups!$A$3:$I$103,9,FALSE),"") -> 0.0973 | U18: =VLOOKUP(A18,Trends!$A$3:$H$94,8)+Sens -> 1.0475 | V18: 2.005905525 | X18: 35219.89509 | Y18: 5424.927032 | Z18: 40644.82212 | AB18: 51106.28227 | AC18: 31920.69029 | AD18: 83026.97256 | AF18: 123671.7947 | AH18: =IF($B18<121,VLOOKUP($B18,Lookups!A:F,6)*(1-VLOOKUP($B18,Lookups!$N$3:$P$103,2))^($A18-$A$3),"") -> 0.4128744284 | AI18: =IF($B18<121,VLOOKUP($B18,Lookups!A:G,7)*(1-VLOOKUP($B18,Lookups!$N$3:$P$103,3))^($A18-$A$3),"") -> 0.3959557587 | AJ18: 0.4128744284 | AK18: 0.00777500765 | AL18: 0.5840639531 | AM18: 0.80129 | AP18: 450.00943
A19: 2040 | B19: 108 | D19: =VLOOKUP(B19,Lookups!A:B,2) -> 17707.23977 | E19: =VLOOKUP(B19,Lookups!A:C,3) -> 2203.965 | G19: =VLOOKUP(B19,Lookups!A:D,4) -> 169401.0034 | H19: =VLOOKUP(B19,Lookups!A:E,5) -> 163549.4017 | J19: =VLOOKUP(A19,Trends!$A$3:$H$94,IF(ExFlg=0,4,2))+Sens -> 1.042 | K19: 2.072549486 | L19: =VLOOKUP(A19,Trends!$A$3:$H$94,IF(ExFlg=0,5,3))+Sens -> 1.042 | M19: 2.072549486 | N19: =VLOOKUP(A19,Trends!$A$3:$H$94,6)+Sens -> 1.042 | O19: 2.582050285 | Q19: =IF(B19<=120,VLOOKUP(B19,Lookups!$A$3:$I$103,8,FALSE),"") -> 0.1504 | R19: =VLOOKUP(A19,Trends!$A$3:$H$94,7)+Sens -> 1.0475 | S19: 2.101186037 | T19: =IF(B19<=120,VLOOKUP(B19,Lookups!$A$3:$I$103,9,FALSE),"") -> 0.0973 | U19: =VLOOKUP(A19,Trends!$A$3:$H$94,8)+Sens -> 1.0475 | V19: 2.101186037 | X19: 36699.13068 | Y19: 5690.748456 | Z19: 42389.87914 | AB19: 53533.83067 | AC19: 33436.92308 | AD19: 86970.75375 | AF19: 129360.6329 | AH19: =IF($B19<121,VLOOKUP($B19,Lookups!A:F,6)*(1-VLOOKUP($B19,Lookups!$N$3:$P$103,2))^($A19-$A$3),"") -> 0.4307460412 | AI19: =IF($B19<121,VLOOKUP($B19,Lookups!A:G,7)*(1-VLOOKUP($B19,Lookups!$N$3:$P$103,3))^($A19-$A$3),"") -> 0.4155722666 | AJ19: 0.4307460412 | AK19: 0.00456490581 | AL19: 0.5634963368 | AM19: 0.793387 | AP19: 264.0037707
A20: 2041 | B20: 109 | D20: =VLOOKUP(B20,Lookups!A:B,2) -> 17707.23977 | E20: =VLOOKUP(B20,Lookups!A:C,3) -> 2203.965 | G20: =VLOOKUP(B20,Lookups!A:D,4) -> 169401.0034 | H20: =VLOOKUP(B20,Lookups!A:E,5) -> 163549.4017 | J20: =VLOOKUP(A20,Trends!$A$3:$H$94,IF(ExFlg=0,4,2))+Sens -> 1.042 | K20: 2.159596565 | L20: =VLOOKUP(A20,Trends!$A$3:$H$94,IF(ExFlg=0,5,3))+Sens -> 1.042 | M20: 2.159596565 | N20: =VLOOKUP(A20,Trends!$A$3:$H$94,6)+Sens -> 1.042 | O20: 2.690496397 | Q20: =IF(B20<=120,VLOOKUP(B20,Lookups!$A$3:$I$103,8,FALSE),"") -> 0.1504 | R20: =VLOOKUP(A20,Trends!$A$3:$H$94,7)+Sens -> 1.0475 | S20: 2.200992374 | T20: =IF(B20<=120,VLOOKUP(B20,Lookups!$A$3:$I$103,9,FALSE),"") -> 0.0973 | U20: =VLOOKUP(A20,Trends!$A$3:$H$94,8)+Sens -> 1.0475 | V20: 2.200992374 | X20: 38240.49417 | Y20: 5929.759891 | Z20: 44170.25406 | AB20: 56076.68763 | AC20: 35025.17693 | AD20: 91101.86456 | AF20: 135272.1186 | AH20: =IF($B20<121,VLOOKUP($B20,Lookups!A:F,6)*(1-VLOOKUP($B20,Lookups!$N$3:$P$103,2))^($A20-$A$3),"") -> 0.4483783458 | AI20: =IF($B20<121,VLOOKUP($B20,Lookups!A:G,7)*(1-VLOOKUP($B20,Lookups!$N$3:$P$103,3))^($A20-$A$3),"") -> 0.4348965079 | AJ20: 0.4483783458 | AK20: 0.002598590704 | AL20: 0.5436530022 | AM20: 0.78559 | AP20: 150.1287642
A21: 2042 | B21: 110 | D21: =VLOOKUP(B21,Lookups!A:B,2) -> 17707.23977 | E21: =VLOOKUP(B21,Lookups!A:C,3) -> 2203.965 | G21: =VLOOKUP(B21,Lookups!A:D,4) -> 169401.0034 | H21: =VLOOKUP(B21,Lookups!A:E,5) -> 163549.4017 | J21: =VLOOKUP(A21,Trends!$A$3:$H$94,IF(ExFlg=0,4,2))+Sens -> 1.042 | K21: 2.25029962 | L21: =VLOOKUP(A21,Trends!$A$3:$H$94,IF(ExFlg=0,5,3))+Sens -> 1.042 | M21: 2.25029962 | N21: =VLOOKUP(A21,Trends!$A$3:$H$94,6)+Sens -> 1.042 | O21: 2.803497246 | Q21: =IF(B21<=120,VLOOKUP(B21,Lookups!$A$3:$I$103,8,FALSE),"") -> 0.1504 | R21: =VLOOKUP(A21,Trends!$A$3:$H$94,7)+Sens -> 1.0475 | S21: 2.305539512 | T21: =IF(B21<=120,VLOOKUP(B21,Lookups!$A$3:$I$103,9,FALSE),"") -> 0.0973 | U21: =VLOOKUP(A21,Trends!$A$3:$H$94,8)+Sens -> 1.0475 | V21: 2.305539512 | X21: 39846.59493 | Y21: 6178.809807 | Z21: 46025.40473 | AB21: 58740.33029 | AC21: 36688.87283 | AD21: 95429.20312 | AF21: 141454.6079 | AH21: =IF($B21<121,VLOOKUP($B21,Lookups!A:F,6)*(1-VLOOKUP($B21,Lookups!$N$3:$P$103,2))^($A21-$A$3),"") -> 0.464278231 | AI21: =IF($B21<121,VLOOKUP($B21,Lookups!A:G,7)*(1-VLOOKUP($B21,Lookups!$N$3:$P$103,3))^($A21-$A$3),"") -> 0.4553635579 | AJ21: 0.464278231 | AK21: 0.001433438903 | AL21: 0.524508444 | AM21: 0.778559 | AP21: 82.80189947
A22: 2043 | B22: 111 | D22: =VLOOKUP(B22,Lookups!A:B,2) -> 17707.23977 | E22: =VLOOKUP(B22,Lookups!A:C,3) -> 2203.965 | G22: =VLOOKUP(B22,Lookups!A:D,4) -> 169401.0034 | H22: =VLOOKUP(B22,Lookups!A:E,5) -> 163549.4017 | J22: =VLOOKUP(A22,Trends!$A$3:$H$94,IF(ExFlg=0,4,2))+Sens -> 1.042 | K22: 2.344812204 | L22: =VLOOKUP(A22,Trends!$A$3:$H$94,IF(ExFlg=0,5,3))+Sens -> 1.042 | M22: 2.344812204 | N22: =VLOOKUP(A22,Trends!$A$3:$H$94,6)+Sens -> 1.042 | O22: 2.92124413 | Q22: =IF(B22<=120,VLOOKUP(B22,Lookups!$A$3:$I$103,8,FALSE),"") -> 0.1504 | R22: =VLOOKUP(A22,Trends!$A$3:$H$94,7)+Sens -> 1.0475 | S22: 2.415052639 | T22: =IF(B22<=120,VLOOKUP(B22,Lookups!$A$3:$I$103,9,FALSE),"") -> 0.0973 | U22: =VLOOKUP(A22,Trends!$A$3:$H$94,8)+Sens -> 1.0475 | V22: 2.415052639 | X22: 41520.15191 | Y22: 6438.319819 | Z22: 47958.47173 | AB22: 61530.49598 | AC22: 38431.59429 | AD22: 99962.09027 | AF22: 147920.562 | AH22: =IF($B22<121,VLOOKUP($B22,Lookups!A:F,6)*(1-VLOOKUP($B22,Lookups!$N$3:$P$103,2))^($A22-$A$3),"") -> 0.4726997265 | AI22: =IF($B22<121,VLOOKUP($B22,Lookups!A:G,7)*(1-VLOOKUP($B22,Lookups!$N$3:$P$103,3))^($A22-$A$3),"") -> 0.4726997265 | AJ22: 0.4726997265 | AK22: 0.0007679244247 | AL22: 0.506038055 | AM22: 0.774835 | AP22: 44.53889489
A23: 2044 | B23: 112 | D23: =VLOOKUP(B23,Lookups!A:B,2) -> 17707.23977 | E23: =VLOOKUP(B23,Lookups!A:C,3) -> 2203.965 | G23: =VLOOKUP(B23,Lookups!A:D,4) -> 169401.0034 | H23: =VLOOKUP(B23,Lookups!A:E,5) -> 163549.4017 | J23: =VLOOKUP(A23,Trends!$A$3:$H$94,IF(ExFlg=0,4,2))+Sens -> 1.042 | K23: 2.443294317 | L23: =VLOOKUP(A23,Trends!$A$3:$H$94,IF(ExFlg=0,5,3))+Sens -> 1.042 | M23: 2.443294317 | N23: =VLOOKUP(A23,Trends!$A$3:$H$94,6)+Sens -> 1.042 | O23: 3.043936383 | Q23: =IF(B23<=120,VLOOKUP(B23,Lookups!$A$3:$I$103,8,FALSE),"") -> 0.1504 | R23: =VLOOKUP(A23,Trends!$A$3:$H$94,7)+Sens -> 1.0475 | S23: 2.529767639 | T23: =IF(B23<=120,VLOOKUP(B23,Lookups!$A$3:$I$103,9,FALSE),"") -> 0.0973 | U23: =VLOOKUP(A23,Trends!$A$3:$H$94,8)+Sens -> 1.0475 | V23: 2.529767639 | X23: 43263.9983 | Y23: 6708.729251 | Z23: 49972.72755 | AB23: 64453.19454 | AC23: 40257.09502 | AD23: 104710.2896 | AF23: 154683.0171 | AH23: =IF($B23<121,VLOOKUP($B23,Lookups!A:F,6)*(1-VLOOKUP($B23,Lookups!$N$3:$P$103,2))^($A23-$A$3),"") -> 0.4783675373 | AI23: =IF($B23<121,VLOOKUP($B23,Lookups!A:G,7)*(1-VLOOKUP($B23,Lookups!$N$3:$P$103,3))^($A23-$A$3),"") -> 0.4783675373 | AJ23: 0.4783675373 | AK23: 0.0004049267591 | AL23: 0.4882180946 | AM23: 0.772329 | AP23: 23.61757623
A24: 2045 | B24: 113 | D24: =VLOOKUP(B24,Lookups!A:B,2) -> 17707.23977 | E24: =VLOOKUP(B24,Lookups!A:C,3) -> 2203.965 | G24: =VLOOKUP(B24,Lookups!A:D,4) -> 169401.0034 | H24: =VLOOKUP(B24,Lookups!A:E,5) -> 163549.4017 | J24: =VLOOKUP(A24,Trends!$A$3:$H$94,IF(ExFlg=0,4,2))+Sens -> 1.042 | K24: 2.545912678 | L24: =VLOOKUP(A24,Trends!$A$3:$H$94,IF(ExFlg=0,5,3))+Sens -> 1.042 | M24: 2.545912678 | N24: =VLOOKUP(A24,Trends!$A$3:$H$94,6)+Sens -> 1.042 | O24: 3.171781711 | Q24: =IF(B24<=120,VLOOKUP(B24,Lookups!$A$3:$I$103,8,FALSE),"") -> 0.1504 | R24: =VLOOKUP(A24,Trends!$A$3:$H$94,7)+Sens -> 1.0475 | S24: 2.649931602 | T24: =IF(B24<=120,VLOOKUP(B24,Lookups!$A$3:$I$103,9,FALSE),"") -> 0.0973 | U24: =VLOOKUP(A24,Trends!$A$3:$H$94,8)+Sens -> 1.0475 | V24: 2.649931602 | X24: 45081.08622 | Y24: 6990.49588 | Z24: 52071.5821 | AB24: 67514.72128 | AC24: 42169.30703 | AD24: 109684.0283 | AF24: 161755.6104 | AH24: =IF($B24<121,VLOOKUP($B24,Lookups!A:F,6)*(1-VLOOKUP($B24,Lookups!$N$3:$P$103,2))^($A24-$A$3),"") -> 0.4844886064 | AI24: =IF($B24<121,VLOOKUP($B24,Lookups!A:G,7)*(1-VLOOKUP($B24,Lookups!$N$3:$P$103,3))^($A24-$A$3),"") -> 0.4844886064 | AJ24: 0.4844886064 | AK24: 0.0002112229426 | AL24: 0.471025658 | AM24: 0.769622 | AP24: 12.38575486
A25: 2046 | B25: 114 | D25: =VLOOKUP(B25,Lookups!A:B,2) -> 17707.23977 | E25: =VLOOKUP(B25,Lookups!A:C,3) -> 2203.965 | G25: =VLOOKUP(B25,Lookups!A:D,4) -> 169401.0034 | H25: =VLOOKUP(B25,Lookups!A:E,5) -> 163549.4017 | J25: =VLOOKUP(A25,Trends!$A$3:$H$94,IF(ExFlg=0,4,2))+Sens -> 1.042 | K25: 2.652841011 | L25: =VLOOKUP(A25,Trends!$A$3:$H$94,IF(ExFlg=0,5,3))+Sens -> 1.042 | M25: 2.652841011 | N25: =VLOOKUP(A25,Trends!$A$3:$H$94,6)+Sens -> 1.042 | O25: 3.304996543 | Q25: =IF(B25<=120,VLOOKUP(B25,Lookups!$A$3:$I$103,8,FALSE),"") -> 0.1504 | R25: =VLOOKUP(A25,Trends!$A$3:$H$94,7)+Sens -> 1.0475 | S25: 2.775803353 | T25: =IF(B25<=120,VLOOKUP(B25,Lookups!$A$3:$I$103,9,FALSE),"") -> 0.0973 | U25: =VLOOKUP(A25,Trends!$A$3:$H$94,8)+Sens -> 1.0475 | V25: 2.775803353 | X25: 46974.49184 | Y25: 7284.096707 | Z25: 54258.58855 | AB25: 70721.67054 | AC25: 44172.34911 | AD25: 114894.0197 | AF25: 169152.6082 | AH25: =IF($B25<121,VLOOKUP($B25,Lookups!A:F,6)*(1-VLOOKUP($B25,Lookups!$N$3:$P$103,2))^($A25-$A$3),"") -> 0.4928501723 | AI25: =IF($B25<121,VLOOKUP($B25,Lookups!A:G,7)*(1-VLOOKUP($B25,Lookups!$N$3:$P$103,3))^($A25-$A$3),"") -> 0.4928501723 | AJ25: 0.4928501723 | AK25: 0.0001088878335 | AL25: 0.4544386474 | AM25: 0.765925 | AP25: 6.410908218
A26: 2047 | B26: 115 | D26: =VLOOKUP(B26,Lookups!A:B,2) -> 17707.23977 | E26: =VLOOKUP(B26,Lookups!A:C,3) -> 2203.965 | G26: =VLOOKUP(B26,Lookups!A:D,4) -> 169401.0034 | H26: =VLOOKUP(B26,Lookups!A:E,5) -> 163549.4017 | J26: =VLOOKUP(A26,Trends!$A$3:$H$94,IF(ExFlg=0,4,2))+Sens -> 1.042 | K26: 2.764260333 | L26: =VLOOKUP(A26,Trends!$A$3:$H$94,IF(ExFlg=0,5,3))+Sens -> 1.042 | M26: 2.764260333 | N26: =VLOOKUP(A26,Trends!$A$3:$H$94,6)+Sens -> 1.042 | O26: 3.443806398 | Q26: =IF(B26<=120,VLOOKUP(B26,Lookups!$A$3:$I$103,8,FALSE),"") -> 0.1504 | R26: =VLOOKUP(A26,Trends!$A$3:$H$94,7)+Sens -> 1.0475 | S26: 2.907654012 | T26: =IF(B26<=120,VLOOKUP(B26,Lookups!$A$3:$I$103,9,FALSE),"") -> 0.0973 | U26: =VLOOKUP(A26,Trends!$A$3:$H$94,8)+Sens -> 1.0475 | V26: 2.907654012 | X26: 48947.4205 | Y26: 7590.028768 | Z26: 56537.44927 | AB26: 74080.94989 | AC26: 46270.5357 | AD26: 120351.4856 | AF26: 176888.9349 | AH26: =IF($B26<121,VLOOKUP($B26,Lookups!A:F,6)*(1-VLOOKUP($B26,Lookups!$N$3:$P$103,2))^($A26-$A$3),"") -> 0.5 | AI26: =IF($B26<121,VLOOKUP($B26,Lookups!A:G,7)*(1-VLOOKUP($B26,Lookups!$N$3:$P$103,3))^($A26-$A$3),"") -> 0.5 | AJ26: 0.5 | AK26: 5.5222446e-05 | AL26: 0.4384357428 | AM26: 0.762763 | AP26: 3.266719736
A27: 2048 | B27: 116 | D27: =VLOOKUP(B27,Lookups!A:B,2) -> 17707.23977 | E27: =VLOOKUP(B27,Lookups!A:C,3) -> 2203.965 | G27: =VLOOKUP(B27,Lookups!A:D,4) -> 169401.0034 | H27: =VLOOKUP(B27,Lookups!A:E,5) -> 163549.4017 | J27: =VLOOKUP(A27,Trends!$A$3:$H$94,IF(ExFlg=0,4,2))+Sens -> 1.042 | K27: 2.880359267 | L27: =VLOOKUP(A27,Trends!$A$3:$H$94,IF(ExFlg=0,5,3))+Sens -> 1.042 | M27: 2.880359267 | N27: =VLOOKUP(A27,Trends!$A$3:$H$94,6)+Sens -> 1.042 | O27: 3.588446267 | Q27: =IF(B27<=120,VLOOKUP(B27,Lookups!$A$3:$I$103,8,FALSE),"") -> 0.1504 | R27: =VLOOKUP(A27,Trends!$A$3:$H$94,7)+Sens -> 1.0475 | S27: 3.045767578 | T27: =IF(B27<=120,VLOOKUP(B27,Lookups!$A$3:$I$103,9,FALSE),"") -> 0.0973 | U27: =VLOOKUP(A27,Trends!$A$3:$H$94,8)+Sens -> 1.0475 | V27: 3.045767578 | X27: 51003.21216 | Y27: 7908.809977 | Z27: 58912.02214 | AB27: 77599.79501 | AC27: 48468.38614 | AD27: 126068.1812 | AF27: 184980.2033 | AH27: =IF($B27<121,VLOOKUP($B27,Lookups!A:F,6)*(1-VLOOKUP($B27,Lookups!$N$3:$P$103,2))^($A27-$A$3),"") -> 0.5 | AI27: =IF($B27<121,VLOOKUP($B27,Lookups!A:G,7)*(1-VLOOKUP($B27,Lookups!$N$3:$P$103,3))^($A27-$A$3),"") -> 0.5 | AJ27: 0.5 | AK27: 2.7611223e-05 | AL27: 0.4229963751 | AM27: 0.762763 | AP27: 1.647923928
A28: 2049 | B28: 117 | D28: =VLOOKUP(B28,Lookups!A:B,2) -> 17707.23977 | E28: =VLOOKUP(B28,Lookups!A:C,3) -> 2203.965 | G28: =VLOOKUP(B28,Lookups!A:D,4) -> 169401.0034 | H28: =VLOOKUP(B28,Lookups!A:E,5) -> 163549.4017 | J28: =VLOOKUP(A28,Trends!$A$3:$H$94,IF(ExFlg=0,4,2))+Sens -> 1.042 | K28: 3.001334356 | L28: =VLOOKUP(A28,Trends!$A$3:$H$94,IF(ExFlg=0,5,3))+Sens -> 1.042 | M28: 3.001334356 | N28: =VLOOKUP(A28,Trends!$A$3:$H$94,6)+Sens -> 1.04 | O28: 3.73916101 | Q28: =IF(B28<=120,VLOOKUP(B28,Lookups!$A$3:$I$103,8,FALSE),"") -> 0.1504 | R28: =VLOOKUP(A28,Trends!$A$3:$H$94,7)+Sens -> 1.0475 | S28: 3.190441538 | T28: =IF(B28<=120,VLOOKUP(B28,Lookups!$A$3:$I$103,9,FALSE),"") -> 0.0973 | U28: =VLOOKUP(A28,Trends!$A$3:$H$94,8)+Sens -> 1.0475 | V28: 3.190441538 | X28: 53145.34707 | Y28: 8240.979996 | Z28: 61386.32707 | AB28: 81285.78528 | AC28: 50770.63449 | AD28: 132056.4198 | AF28: 193442.7468 | AH28: =IF($B28<121,VLOOKUP($B28,Lookups!A:F,6)*(1-VLOOKUP($B28,Lookups!$N$3:$P$103,2))^($A28-$A$3),"") -> 0.5 | AI28: =IF($B28<121,VLOOKUP($B28,Lookups!A:G,7)*(1-VLOOKUP($B28,Lookups!$N$3:$P$103,3))^($A28-$A$3),"") -> 0.5 | AJ28: 0.5 | AK28: 1.38056115e-05 | AL28: 0.4081006996 | AM28: 0.762763 | AP28: 0.8313139258
A29: 2050 | B29: 118 | D29: =VLOOKUP(B29,Lookups!A:B,2) -> 17707.23977 | E29: =VLOOKUP(B29,Lookups!A:C,3) -> 2203.965 | G29: =VLOOKUP(B29,Lookups!A:D,4) -> 169401.0034 | H29: =VLOOKUP(B29,Lookups!A:E,5) -> 163549.4017 | J29: =VLOOKUP(A29,Trends!$A$3:$H$94,IF(ExFlg=0,4,2))+Sens -> 1.042 | K29: 3.127390399 | L29: =VLOOKUP(A29,Trends!$A$3:$H$94,IF(ExFlg=0,5,3))+Sens -> 1.042 | M29: 3.127390399 | N29: =VLOOKUP(A29,Trends!$A$3:$H$94,6)+Sens -> 1.039 | O29: 3.888727451 | Q29: =IF(B29<=120,VLOOKUP(B29,Lookups!$A$3:$I$103,8,FALSE),"") -> 0.1504 | R29: =VLOOKUP(A29,Trends!$A$3:$H$94,7)+Sens -> 1.0475 | S29: 3.341987511 | T29: =IF(B29<=120,VLOOKUP(B29,Lookups!$A$3:$I$103,9,FALSE),"") -> 0.0973 | U29: =VLOOKUP(A29,Trends!$A$3:$H$94,8)+Sens -> 1.0475 | V29: 3.341987511 | X29: 55377.45165 | Y29: 8570.619195 | Z29: 63948.07085 | AB29: 85146.86008 | AC29: 53182.23962 | AD29: 138329.0997 | AF29: 202277.1705 | AH29: =IF($B29<121,VLOOKUP($B29,Lookups!A:F,6)*(1-VLOOKUP($B29,Lookups!$N$3:$P$103,2))^($A29-$A$3),"") -> 0.5 | AI29: =IF($B29<121,VLOOKUP($B29,Lookups!A:G,7)*(1-VLOOKUP($B29,Lookups!$N$3:$P$103,3))^($A29-$A$3),"") -> 0.5 | AJ29: 0.5 | AK29: 6.902805749e-06 | AL29: 0.3937295703 | AM29: 0.762763 | AP29: 0.4193340931
A30: 2051 | B30: 119 | D30: =VLOOKUP(B30,Lookups!A:B,2) -> 17707.23977 | E30: =VLOOKUP(B30,Lookups!A:C,3) -> 2203.965 | G30: =VLOOKUP(B30,Lookups!A:D,4) -> 169401.0034 | H30: =VLOOKUP(B30,Lookups!A:E,5) -> 163549.4017 | J30: =VLOOKUP(A30,Trends!$A$3:$H$94,IF(ExFlg=0,4,2))+Sens -> 1.042 | K30: 3.258740796 | L30: =VLOOKUP(A30,Trends!$A$3:$H$94,IF(ExFlg=0,5,3))+Sens -> 1.042 | M30: 3.258740796 | N30: =VLOOKUP(A30,Trends!$A$3:$H$94,6)+Sens -> 1.039 | O30: 4.040387821 | Q30: =IF(B30<=120,VLOOKUP(B30,Lookups!$A$3:$I$103,8,FALSE),"") -> 0.1504 | R30: =VLOOKUP(A30,Trends!$A$3:$H$94,7)+Sens -> 1.0475 | S30: 3.500731918 | T30: =IF(B30<=120,VLOOKUP(B30,Lookups!$A$3:$I$103,9,FALSE),"") -> 0.0973 | U30: =VLOOKUP(A30,Trends!$A$3:$H$94,8)+Sens -> 1.0475 | V30: 3.500731918 | X30: 57703.30462 | Y30: 8904.873344 | Z30: 66608.17796 | AB30: 89191.33593 | AC30: 55708.39601 | AD30: 144899.7319 | AF30: 211507.9099 | AH30: =IF($B30<121,VLOOKUP($B30,Lookups!A:F,6)*(1-VLOOKUP($B30,Lookups!$N$3:$P$103,2))^($A30-$A$3),"") -> 0.5 | AI30: =IF($B30<121,VLOOKUP($B30,Lookups!A:G,7)*(1-VLOOKUP($B30,Lookups!$N$3:$P$103,3))^($A30-$A$3),"") -> 0.5 | AJ30: 0.5 | AK30: 3.451402875e-06 | AL30: 0.3798645154 | AM30: 0.762763 | AP30: 0.2115147287
A31: 2052 | B31: 120 | D31: =VLOOKUP(B31,Lookups!A:B,2) -> 17707.23977 | E31: =VLOOKUP(B31,Lookups!A:C,3) -> 2203.965 | G31: =VLOOKUP(B31,Lookups!A:D,4) -> 169401.0034 | H31: =VLOOKUP(B31,Lookups!A:E,5) -> 163549.4017 | J31: =VLOOKUP(A31,Trends!$A$3:$H$94,IF(ExFlg=0,4,2))+Sens -> 1.042 | K31: 3.39560791 | L31: =VLOOKUP(A31,Trends!$A$3:$H$94,IF(ExFlg=0,5,3))+Sens -> 1.042 | M31: 3.39560791 | N31: =VLOOKUP(A31,Trends!$A$3:$H$94,6)+Sens -> 1.039 | O31: 4.197962946 | Q31: =IF(B31<=120,VLOOKUP(B31,Lookups!$A$3:$I$103,8,FALSE),"") -> 0.1504 | R31: =VLOOKUP(A31,Trends!$A$3:$H$94,7)+Sens -> 1.0475 | S31: 3.667016684 | T31: =IF(B31<=120,VLOOKUP(B31,Lookups!$A$3:$I$103,9,FALSE),"") -> 0.0973 | U31: =VLOOKUP(A31,Trends!$A$3:$H$94,8)+Sens -> 1.0475 | V31: 3.667016684 | X31: 60126.84341 | Y31: 9252.163404 | Z31: 69379.00682 | AB31: 93427.92439 | AC31: 58354.54482 | AD31: 151782.4692 | AF31: 221161.476 | AH31: =IF($B31<121,VLOOKUP($B31,Lookups!A:F,6)*(1-VLOOKUP($B31,Lookups!$N$3:$P$103,2))^($A31-$A$3),"") -> 1 | AI31: =IF($B31<121,VLOOKUP($B31,Lookups!A:G,7)*(1-VLOOKUP($B31,Lookups!$N$3:$P$103,3))^($A31-$A$3),"") -> 1 | AJ31: 1 | AK31: 1.725701437e-06 | AL31: 0.3664877139 | AM31: 0.541667 | AP31: 0.07576470531
A32: 2053 | B32: 121 | D32: =VLOOKUP(B32,Lookups!A:B,2) -> 17707.23977 | E32: =VLOOKUP(B32,Lookups!A:C,3) -> 2203.965 | G32: =VLOOKUP(B32,Lookups!A:D,4) -> 169401.0034 | H32: =VLOOKUP(B32,Lookups!A:E,5) -> 163549.4017 | J32: =VLOOKUP(A32,Trends!$A$3:$H$94,IF(ExFlg=0,4,2))+Sens -> 1.042 | K32: 3.538223442 | L32: =VLOOKUP(A32,Trends!$A$3:$H$94,IF(ExFlg=0,5,3))+Sens -> 1.042 | M32: 3.538223442 | N32: =VLOOKUP(A32,Trends!$A$3:$H$94,6)+Sens -> 1.039 | O32: 4.361683501 | Q32: =IF(B32<=120,VLOOKUP(B32,Lookups!$A$3:$I$103,8,FALSE),"") ->  | R32: =VLOOKUP(A32,Trends!$A$3:$H$94,7)+Sens -> 1.0475 | S32: 3.841199976 | T32: =IF(B32<=120,VLOOKUP(B32,Lookups!$A$3:$I$103,9,FALSE),"") ->  | U32: =VLOOKUP(A32,Trends!$A$3:$H$94,8)+Sens -> 1.0475 | V32: 3.841199976 | AH32: =IF($B32<121,VLOOKUP($B32,Lookups!A:F,6)*(1-VLOOKUP($B32,Lookups!$N$3:$P$103,2))^($A32-$A$3),"") ->  | AI32: =IF($B32<121,VLOOKUP($B32,Lookups!A:G,7)*(1-VLOOKUP($B32,Lookups!$N$3:$P$103,3))^($A32-$A$3),"") -> 
A33: 2054 | B33: 122 | D33: =VLOOKUP(B33,Lookups!A:B,2) -> 17707.23977 | E33: =VLOOKUP(B33,Lookups!A:C,3) -> 2203.965 | G33: =VLOOKUP(B33,Lookups!A:D,4) -> 169401.0034 | H33: =VLOOKUP(B33,Lookups!A:E,5) -> 163549.4017 | J33: =VLOOKUP(A33,Trends!$A$3:$H$94,IF(ExFlg=0,4,2))+Sens -> 1.042 | K33: 3.686828826 | L33: =VLOOKUP(A33,Trends!$A$3:$H$94,IF(ExFlg=0,5,3))+Sens -> 1.042 | M33: 3.686828826 | N33: =VLOOKUP(A33,Trends!$A$3:$H$94,6)+Sens -> 1.039 | O33: 4.531789158 | Q33: =IF(B33<=120,VLOOKUP(B33,Lookups!$A$3:$I$103,8,FALSE),"") ->  | R33: =VLOOKUP(A33,Trends!$A$3:$H$94,7)+Sens -> 1.0475 | S33: 4.023656975 | T33: =IF(B33<=120,VLOOKUP(B33,Lookups!$A$3:$I$103,9,FALSE),"") ->  | U33: =VLOOKUP(A33,Trends!$A$3:$H$94,8)+Sens -> 1.0475 | V33: 4.023656975 | AH33: =IF($B33<121,VLOOKUP($B33,Lookups!A:F,6)*(1-VLOOKUP($B33,Lookups!$N$3:$P$103,2))^($A33-$A$3),"") ->  | AI33: =IF($B33<121,VLOOKUP($B33,Lookups!A:G,7)*(1-VLOOKUP($B33,Lookups!$N$3:$P$103,3))^($A33-$A$3),"") -> 
A34: 2055 | B34: 123 | D34: =VLOOKUP(B34,Lookups!A:B,2) -> 17707.23977 | E34: =VLOOKUP(B34,Lookups!A:C,3) -> 2203.965 | G34: =VLOOKUP(B34,Lookups!A:D,4) -> 169401.0034 | H34: =VLOOKUP(B34,Lookups!A:E,5) -> 163549.4017 | J34: =VLOOKUP(A34,Trends!$A$3:$H$94,IF(ExFlg=0,4,2))+Sens -> 1.042 | K34: 3.841675637 | L34: =VLOOKUP(A34,Trends!$A$3:$H$94,IF(ExFlg=0,5,3))+Sens -> 1.042 | M34: 3.841675637 | N34: =VLOOKUP(A34,Trends!$A$3:$H$94,6)+Sens -> 1.039 | O34: 4.708528935 | Q34: =IF(B34<=120,VLOOKUP(B34,Lookups!$A$3:$I$103,8,FALSE),"") ->  | R34: =VLOOKUP(A34,Trends!$A$3:$H$94,7)+Sens -> 1.0475 | S34: 4.214780681 | T34: =IF(B34<=120,VLOOKUP(B34,Lookups!$A$3:$I$103,9,FALSE),"") ->  | U34: =VLOOKUP(A34,Trends!$A$3:$H$94,8)+Sens -> 1.0475 | V34: 4.214780681 | AH34: =IF($B34<121,VLOOKUP($B34,Lookups!A:F,6)*(1-VLOOKUP($B34,Lookups!$N$3:$P$103,2))^($A34-$A$3),"") ->  | AI34: =IF($B34<121,VLOOKUP($B34,Lookups!A:G,7)*(1-VLOOKUP($B34,Lookups!$N$3:$P$103,3))^($A34-$A$3),"") -> 
A35: 2056 | B35: 124 | D35: =VLOOKUP(B35,Lookups!A:B,2) -> 17707.23977 | E35: =VLOOKUP(B35,Lookups!A:C,3) -> 2203.965 | G35: =VLOOKUP(B35,Lookups!A:D,4) -> 169401.0034 | H35: =VLOOKUP(B35,Lookups!A:E,5) -> 163549.4017 | J35: =VLOOKUP(A35,Trends!$A$3:$H$94,IF(ExFlg=0,4,2))+Sens -> 1.042 | K35: 4.003026014 | L35: =VLOOKUP(A35,Trends!$A$3:$H$94,IF(ExFlg=0,5,3))+Sens -> 1.042 | M35: 4.003026014 | N35: =VLOOKUP(A35,Trends!$A$3:$H$94,6)+Sens -> 1.039 | O35: 4.892161563 | Q35: =IF(B35<=120,VLOOKUP(B35,Lookups!$A$3:$I$103,8,FALSE),"") ->  | R35: =VLOOKUP(A35,Trends!$A$3:$H$94,7)+Sens -> 1.0475 | S35: 4.414982764 | T35: =IF(B35<=120,VLOOKUP(B35,Lookups!$A$3:$I$103,9,FALSE),"") ->  | U35: =VLOOKUP(A35,Trends!$A$3:$H$94,8)+Sens -> 1.0475 | V35: 4.414982764 | AH35: =IF($B35<121,VLOOKUP($B35,Lookups!A:F,6)*(1-VLOOKUP($B35,Lookups!$N$3:$P$103,2))^($A35-$A$3),"") ->  | AI35: =IF($B35<121,VLOOKUP($B35,Lookups!A:G,7)*(1-VLOOKUP($B35,Lookups!$N$3:$P$103,3))^($A35-$A$3),"") ->  | AJ35: =IF(B35<121,(PCTMALE*AH35+(1-PCTMALE)*AI35),"") ->  | AM35: =IF(AJ35="","",ROUND((13/24)+(11/24)*(1/(1+IntRt))*(1-AJ35),6)) -> 
A36: =1+A35 -> 2057 | B36: =1+B35 -> 125 | D36: =VLOOKUP(B36,Lookups!A:B,2) -> 17707.23977 | E36: =VLOOKUP(B36,Lookups!A:C,3) -> 2203.965 | G36: =VLOOKUP(B36,Lookups!A:D,4) -> 169401.0034 | H36: =VLOOKUP(B36,Lookups!A:E,5) -> 163549.4017 | J36: =VLOOKUP(A36,Trends!$A$3:$H$94,IF(ExFlg=0,4,2))+Sens -> 1.042 | K36: 4.171153106 | L36: =VLOOKUP(A36,Trends!$A$3:$H$94,IF(ExFlg=0,5,3))+Sens -> 1.042 | M36: 4.171153106 | N36: =VLOOKUP(A36,Trends!$A$3:$H$94,6)+Sens -> 1.039 | O36: 5.082955864 | Q36: =IF(B36<=120,VLOOKUP(B36,Lookups!$A$3:$I$103,8,FALSE),"") ->  | R36: =VLOOKUP(A36,Trends!$A$3:$H$94,7)+Sens -> 1.0475 | S36: 4.624694445 | T36: =IF(B36<=120,VLOOKUP(B36,Lookups!$A$3:$I$103,9,FALSE),"") ->  | U36: =VLOOKUP(A36,Trends!$A$3:$H$94,8)+Sens -> 1.0475 | V36: 4.624694445 | AH36: =IF($B36<121,VLOOKUP($B36,Lookups!A:F,6)*(1-VLOOKUP($B36,Lookups!$N$3:$P$103,2))^($A36-$A$3),"") ->  | AI36: =IF($B36<121,VLOOKUP($B36,Lookups!A:G,7)*(1-VLOOKUP($B36,Lookups!$N$3:$P$103,3))^($A36-$A$3),"") ->  | AL36: =IF(B36<121,AL35/(1+IntRt),"") -> 
A37: 2058 | B37: 126 | D37: =VLOOKUP(B37,Lookups!A:B,2) -> 17707.23977 | E37: =VLOOKUP(B37,Lookups!A:C,3) -> 2203.965 | G37: =VLOOKUP(B37,Lookups!A:D,4) -> 169401.0034 | H37: =VLOOKUP(B37,Lookups!A:E,5) -> 163549.4017 | J37: =VLOOKUP(A37,Trends!$A$3:$H$94,IF(ExFlg=0,4,2))+Sens -> 1.042 | K37: 4.346341537 | L37: =VLOOKUP(A37,Trends!$A$3:$H$94,IF(ExFlg=0,5,3))+Sens -> 1.042 | M37: 4.346341537 | N37: =VLOOKUP(A37,Trends!$A$3:$H$94,6)+Sens -> 1.039 | O37: 5.281191143 | Q37: =IF(B37<=120,VLOOKUP(B37,Lookups!$A$3:$I$103,8,FALSE),"") ->  | R37: =VLOOKUP(A37,Trends!$A$3:$H$94,7)+Sens -> 1.0475 | S37: 4.844367431 | T37: =IF(B37<=120,VLOOKUP(B37,Lookups!$A$3:$I$103,9,FALSE),"") ->  | U37: =VLOOKUP(A37,Trends!$A$3:$H$94,8)+Sens -> 1.0475 | V37: 4.844367431 | AH37: =IF($B37<121,VLOOKUP($B37,Lookups!A:F,6)*(1-VLOOKUP($B37,Lookups!$N$3:$P$103,2))^($A37-$A$3),"") ->  | AI37: =IF($B37<121,VLOOKUP($B37,Lookups!A:G,7)*(1-VLOOKUP($B37,Lookups!$N$3:$P$103,3))^($A37-$A$3),"") -> 
A38: 2059 | B38: 127 | D38: =VLOOKUP(B38,Lookups!A:B,2) -> 17707.23977 | E38: =VLOOKUP(B38,Lookups!A:C,3) -> 2203.965 | G38: =VLOOKUP(B38,Lookups!A:D,4) -> 169401.0034 | H38: =VLOOKUP(B38,Lookups!A:E,5) -> 163549.4017 | J38: =VLOOKUP(A38,Trends!$A$3:$H$94,IF(ExFlg=0,4,2))+Sens -> 1.042 | K38: 4.528887881 | L38: =VLOOKUP(A38,Trends!$A$3:$H$94,IF(ExFlg=0,5,3))+Sens -> 1.042 | M38: 4.528887881 | N38: =VLOOKUP(A38,Trends!$A$3:$H$94,6)+Sens -> 1.038 | O38: 5.487157597 | Q38: =IF(B38<=120,VLOOKUP(B38,Lookups!$A$3:$I$103,8,FALSE),"") ->  | R38: =VLOOKUP(A38,Trends!$A$3:$H$94,7)+Sens -> 1.0475 | S38: 5.074474884 | T38: =IF(B38<=120,VLOOKUP(B38,Lookups!$A$3:$I$103,9,FALSE),"") ->  | U38: =VLOOKUP(A38,Trends!$A$3:$H$94,8)+Sens -> 1.0475 | V38: 5.074474884 | AH38: =IF($B38<121,VLOOKUP($B38,Lookups!A:F,6)*(1-VLOOKUP($B38,Lookups!$N$3:$P$103,2))^($A38-$A$3),"") ->  | AI38: =IF($B38<121,VLOOKUP($B38,Lookups!A:G,7)*(1-VLOOKUP($B38,Lookups!$N$3:$P$103,3))^($A38-$A$3),"") -> 
A39: 2060 | B39: 128 | D39: =VLOOKUP(B39,Lookups!A:B,2) -> 17707.23977 | E39: =VLOOKUP(B39,Lookups!A:C,3) -> 2203.965 | G39: =VLOOKUP(B39,Lookups!A:D,4) -> 169401.0034 | H39: =VLOOKUP(B39,Lookups!A:E,5) -> 163549.4017 | J39: =VLOOKUP(A39,Trends!$A$3:$H$94,IF(ExFlg=0,4,2))+Sens -> 1.042 | K39: 4.719101172 | L39: =VLOOKUP(A39,Trends!$A$3:$H$94,IF(ExFlg=0,5,3))+Sens -> 1.042 | M39: 4.719101172 | N39: =VLOOKUP(A39,Trends!$A$3:$H$94,6)+Sens -> 1.038 | O39: 5.695669586 | Q39: =IF(B39<=120,VLOOKUP(B39,Lookups!$A$3:$I$103,8,FALSE),"") ->  | R39: =VLOOKUP(A39,Trends!$A$3:$H$94,7)+Sens -> 1.0475 | S39: 5.315512441 | T39: =IF(B39<=120,VLOOKUP(B39,Lookups!$A$3:$I$103,9,FALSE),"") ->  | U39: =VLOOKUP(A39,Trends!$A$3:$H$94,8)+Sens -> 1.0475 | V39: 5.315512441 | AH39: =IF($B39<121,VLOOKUP($B39,Lookups!A:F,6)*(1-VLOOKUP($B39,Lookups!$N$3:$P$103,2))^($A39-$A$3),"") ->  | AI39: =IF($B39<121,VLOOKUP($B39,Lookups!A:G,7)*(1-VLOOKUP($B39,Lookups!$N$3:$P$103,3))^($A39-$A$3),"") -> 
A40: 2061 | B40: 129 | D40: =VLOOKUP(B40,Lookups!A:B,2) -> 17707.23977 | E40: =VLOOKUP(B40,Lookups!A:C,3) -> 2203.965 | G40: =VLOOKUP(B40,Lookups!A:D,4) -> 169401.0034 | H40: =VLOOKUP(B40,Lookups!A:E,5) -> 163549.4017 | J40: =VLOOKUP(A40,Trends!$A$3:$H$94,IF(ExFlg=0,4,2))+Sens -> 1.042 | K40: 4.917303422 | L40: =VLOOKUP(A40,Trends!$A$3:$H$94,IF(ExFlg=0,5,3))+Sens -> 1.042 | M40: 4.917303422 | N40: =VLOOKUP(A40,Trends!$A$3:$H$94,6)+Sens -> 1.038 | O40: 5.91210503 | Q40: =IF(B40<=120,VLOOKUP(B40,Lookups!$A$3:$I$103,8,FALSE),"") ->  | R40: =VLOOKUP(A40,Trends!$A$3:$H$94,7)+Sens -> 1.0475 | S40: 5.567999282 | T40: =IF(B40<=120,VLOOKUP(B40,Lookups!$A$3:$I$103,9,FALSE),"") ->  | U40: =VLOOKUP(A40,Trends!$A$3:$H$94,8)+Sens -> 1.0475 | V40: 5.567999282 | AH40: =IF($B40<121,VLOOKUP($B40,Lookups!A:F,6)*(1-VLOOKUP($B40,Lookups!$N$3:$P$103,2))^($A40-$A$3),"") ->  | AI40: =IF($B40<121,VLOOKUP($B40,Lookups!A:G,7)*(1-VLOOKUP($B40,Lookups!$N$3:$P$103,3))^($A40-$A$3),"") -> 
A41: 2062 | B41: 130 | D41: =VLOOKUP(B41,Lookups!A:B,2) -> 17707.23977 | E41: =VLOOKUP(B41,Lookups!A:C,3) -> 2203.965 | G41: =VLOOKUP(B41,Lookups!A:D,4) -> 169401.0034 | H41: =VLOOKUP(B41,Lookups!A:E,5) -> 163549.4017 | J41: =VLOOKUP(A41,Trends!$A$3:$H$94,IF(ExFlg=0,4,2))+Sens -> 1.042 | K41: 5.123830165 | L41: =VLOOKUP(A41,Trends!$A$3:$H$94,IF(ExFlg=0,5,3))+Sens -> 1.042 | M41: 5.123830165 | N41: =VLOOKUP(A41,Trends!$A$3:$H$94,6)+Sens -> 1.038 | O41: 6.136765021 | Q41: =IF(B41<=120,VLOOKUP(B41,Lookups!$A$3:$I$103,8,FALSE),"") ->  | R41: =VLOOKUP(A41,Trends!$A$3:$H$94,7)+Sens -> 1.0475 | S41: 5.832479248 | T41: =IF(B41<=120,VLOOKUP(B41,Lookups!$A$3:$I$103,9,FALSE),"") ->  | U41: =VLOOKUP(A41,Trends!$A$3:$H$94,8)+Sens -> 1.0475 | V41: 5.832479248 | AH41: =IF($B41<121,VLOOKUP($B41,Lookups!A:F,6)*(1-VLOOKUP($B41,Lookups!$N$3:$P$103,2))^($A41-$A$3),"") ->  | AI41: =IF($B41<121,VLOOKUP($B41,Lookups!A:G,7)*(1-VLOOKUP($B41,Lookups!$N$3:$P$103,3))^($A41-$A$3),"") -> 
A42: 2063 | B42: 131 | D42: =VLOOKUP(B42,Lookups!A:B,2) -> 17707.23977 | E42: =VLOOKUP(B42,Lookups!A:C,3) -> 2203.965 | G42: =VLOOKUP(B42,Lookups!A:D,4) -> 169401.0034 | H42: =VLOOKUP(B42,Lookups!A:E,5) -> 163549.4017 | J42: =VLOOKUP(A42,Trends!$A$3:$H$94,IF(ExFlg=0,4,2))+Sens -> 1.042 | K42: 5.339031032 | L42: =VLOOKUP(A42,Trends!$A$3:$H$94,IF(ExFlg=0,5,3))+Sens -> 1.042 | M42: 5.339031032 | N42: =VLOOKUP(A42,Trends!$A$3:$H$94,6)+Sens -> 1.038 | O42: 6.369962092 | Q42: =IF(B42<=120,VLOOKUP(B42,Lookups!$A$3:$I$103,8,FALSE),"") ->  | R42: =VLOOKUP(A42,Trends!$A$3:$H$94,7)+Sens -> 1.0475 | S42: 6.109522012 | T42: =IF(B42<=120,VLOOKUP(B42,Lookups!$A$3:$I$103,9,FALSE),"") ->  | U42: =VLOOKUP(A42,Trends!$A$3:$H$94,8)+Sens -> 1.0475 | V42: 6.109522012 | AH42: =IF($B42<121,VLOOKUP($B42,Lookups!A:F,6)*(1-VLOOKUP($B42,Lookups!$N$3:$P$103,2))^($A42-$A$3),"") ->  | AI42: =IF($B42<121,VLOOKUP($B42,Lookups!A:G,7)*(1-VLOOKUP($B42,Lookups!$N$3:$P$103,3))^($A42-$A$3),"") -> 
A43: 2064 | B43: 132 | D43: =VLOOKUP(B43,Lookups!A:B,2) -> 17707.23977 | E43: =VLOOKUP(B43,Lookups!A:C,3) -> 2203.965 | G43: =VLOOKUP(B43,Lookups!A:D,4) -> 169401.0034 | H43: =VLOOKUP(B43,Lookups!A:E,5) -> 163549.4017 | J43: =VLOOKUP(A43,Trends!$A$3:$H$94,IF(ExFlg=0,4,2))+Sens -> 1.042 | K43: 5.563270336 | L43: =VLOOKUP(A43,Trends!$A$3:$H$94,IF(ExFlg=0,5,3))+Sens -> 1.042 | M43: 5.563270336 | N43: =VLOOKUP(A43,Trends!$A$3:$H$94,6)+Sens -> 1.038 | O43: 6.612020652 | Q43: =IF(B43<=120,VLOOKUP(B43,Lookups!$A$3:$I$103,8,FALSE),"") ->  | R43: =VLOOKUP(A43,Trends!$A$3:$H$94,7)+Sens -> 1.0475 | S43: 6.399724308 | T43: =IF(B43<=120,VLOOKUP(B43,Lookups!$A$3:$I$103,9,FALSE),"") ->  | U43: =VLOOKUP(A43,Trends!$A$3:$H$94,8)+Sens -> 1.0475 | V43: 6.399724308 | AH43: =IF($B43<121,VLOOKUP($B43,Lookups!A:F,6)*(1-VLOOKUP($B43,Lookups!$N$3:$P$103,2))^($A43-$A$3),"") ->  | AI43: =IF($B43<121,VLOOKUP($B43,Lookups!A:G,7)*(1-VLOOKUP($B43,Lookups!$N$3:$P$103,3))^($A43-$A$3),"") -> 
A44: 2065 | B44: 133 | D44: =VLOOKUP(B44,Lookups!A:B,2) -> 17707.23977 | E44: =VLOOKUP(B44,Lookups!A:C,3) -> 2203.965 | G44: =VLOOKUP(B44,Lookups!A:D,4) -> 169401.0034 | H44: =VLOOKUP(B44,Lookups!A:E,5) -> 163549.4017 | J44: =VLOOKUP(A44,Trends!$A$3:$H$94,IF(ExFlg=0,4,2))+Sens -> 1.041 | K44: 5.79692769 | L44: =VLOOKUP(A44,Trends!$A$3:$H$94,IF(ExFlg=0,5,3))+Sens -> 1.041 | M44: 5.79692769 | N44: =VLOOKUP(A44,Trends!$A$3:$H$94,6)+Sens -> 1.038 | O44: 6.863277437 | Q44: =IF(B44<=120,VLOOKUP(B44,Lookups!$A$3:$I$103,8,FALSE),"") ->  | R44: =VLOOKUP(A44,Trends!$A$3:$H$94,7)+Sens -> 1.0475 | S44: 6.703711213 | T44: =IF(B44<=120,VLOOKUP(B44,Lookups!$A$3:$I$103,9,FALSE),"") ->  | U44: =VLOOKUP(A44,Trends!$A$3:$H$94,8)+Sens -> 1.0475 | V44: 6.703711213 | AH44: =IF($B44<121,VLOOKUP($B44,Lookups!A:F,6)*(1-VLOOKUP($B44,Lookups!$N$3:$P$103,2))^($A44-$A$3),"") ->  | AI44: =IF($B44<121,VLOOKUP($B44,Lookups!A:G,7)*(1-VLOOKUP($B44,Lookups!$N$3:$P$103,3))^($A44-$A$3),"") -> 
A45: 2066 | B45: 134 | D45: =VLOOKUP(B45,Lookups!A:B,2) -> 17707.23977 | E45: =VLOOKUP(B45,Lookups!A:C,3) -> 2203.965 | G45: =VLOOKUP(B45,Lookups!A:D,4) -> 169401.0034 | H45: =VLOOKUP(B45,Lookups!A:E,5) -> 163549.4017 | J45: =VLOOKUP(A45,Trends!$A$3:$H$94,IF(ExFlg=0,4,2))+Sens -> 1.041 | K45: 6.034601725 | L45: =VLOOKUP(A45,Trends!$A$3:$H$94,IF(ExFlg=0,5,3))+Sens -> 1.041 | M45: 6.034601725 | N45: =VLOOKUP(A45,Trends!$A$3:$H$94,6)+Sens -> 1.038 | O45: 7.124081979 | Q45: =IF(B45<=120,VLOOKUP(B45,Lookups!$A$3:$I$103,8,FALSE),"") ->  | R45: =VLOOKUP(A45,Trends!$A$3:$H$94,7)+Sens -> 1.0475 | S45: 7.022137495 | T45: =IF(B45<=120,VLOOKUP(B45,Lookups!$A$3:$I$103,9,FALSE),"") ->  | U45: =VLOOKUP(A45,Trends!$A$3:$H$94,8)+Sens -> 1.0475 | V45: 7.022137495 | AH45: =IF($B45<121,VLOOKUP($B45,Lookups!A:F,6)*(1-VLOOKUP($B45,Lookups!$N$3:$P$103,2))^($A45-$A$3),"") ->  | AI45: =IF($B45<121,VLOOKUP($B45,Lookups!A:G,7)*(1-VLOOKUP($B45,Lookups!$N$3:$P$103,3))^($A45-$A$3),"") -> 
A46: 2067 | B46: 135 | D46: =VLOOKUP(B46,Lookups!A:B,2) -> 17707.23977 | E46: =VLOOKUP(B46,Lookups!A:C,3) -> 2203.965 | G46: =VLOOKUP(B46,Lookups!A:D,4) -> 169401.0034 | H46: =VLOOKUP(B46,Lookups!A:E,5) -> 163549.4017 | J46: =VLOOKUP(A46,Trends!$A$3:$H$94,IF(ExFlg=0,4,2))+Sens -> 1.04 | K46: 6.282020396 | L46: =VLOOKUP(A46,Trends!$A$3:$H$94,IF(ExFlg=0,5,3))+Sens -> 1.04 | M46: 6.282020396 | N46: =VLOOKUP(A46,Trends!$A$3:$H$94,6)+Sens -> 1.038 | O46: 7.394797094 | Q46: =IF(B46<=120,VLOOKUP(B46,Lookups!$A$3:$I$103,8,FALSE),"") ->  | R46: =VLOOKUP(A46,Trends!$A$3:$H$94,7)+Sens -> 1.0475 | S46: 7.355689026 | T46: =IF(B46<=120,VLOOKUP(B46,Lookups!$A$3:$I$103,9,FALSE),"") ->  | U46: =VLOOKUP(A46,Trends!$A$3:$H$94,8)+Sens -> 1.0475 | V46: 7.355689026 | AH46: =IF($B46<121,VLOOKUP($B46,Lookups!A:F,6)*(1-VLOOKUP($B46,Lookups!$N$3:$P$103,2))^($A46-$A$3),"") ->  | AI46: =IF($B46<121,VLOOKUP($B46,Lookups!A:G,7)*(1-VLOOKUP($B46,Lookups!$N$3:$P$103,3))^($A46-$A$3),"") -> 
A47: 2068 | B47: 136 | D47: =VLOOKUP(B47,Lookups!A:B,2) -> 17707.23977 | E47: =VLOOKUP(B47,Lookups!A:C,3) -> 2203.965 | G47: =VLOOKUP(B47,Lookups!A:D,4) -> 169401.0034 | H47: =VLOOKUP(B47,Lookups!A:E,5) -> 163549.4017 | J47: =VLOOKUP(A47,Trends!$A$3:$H$94,IF(ExFlg=0,4,2))+Sens -> 1.04 | K47: 6.533301211 | L47: =VLOOKUP(A47,Trends!$A$3:$H$94,IF(ExFlg=0,5,3))+Sens -> 1.04 | M47: 6.533301211 | N47: =VLOOKUP(A47,Trends!$A$3:$H$94,6)+Sens -> 1.038 | O47: 7.675799384 | Q47: =IF(B47<=120,VLOOKUP(B47,Lookups!$A$3:$I$103,8,FALSE),"") ->  | R47: =VLOOKUP(A47,Trends!$A$3:$H$94,7)+Sens -> 1.0475 | S47: 7.705084255 | T47: =IF(B47<=120,VLOOKUP(B47,Lookups!$A$3:$I$103,9,FALSE),"") ->  | U47: =VLOOKUP(A47,Trends!$A$3:$H$94,8)+Sens -> 1.0475 | V47: 7.705084255 | AH47: =IF($B47<121,VLOOKUP($B47,Lookups!A:F,6)*(1-VLOOKUP($B47,Lookups!$N$3:$P$103,2))^($A47-$A$3),"") ->  | AI47: =IF($B47<121,VLOOKUP($B47,Lookups!A:G,7)*(1-VLOOKUP($B47,Lookups!$N$3:$P$103,3))^($A47-$A$3),"") -> 
A48: 2069 | B48: 137 | D48: =VLOOKUP(B48,Lookups!A:B,2) -> 17707.23977 | E48: =VLOOKUP(B48,Lookups!A:C,3) -> 2203.965 | G48: =VLOOKUP(B48,Lookups!A:D,4) -> 169401.0034 | H48: =VLOOKUP(B48,Lookups!A:E,5) -> 163549.4017 | J48: =VLOOKUP(A48,Trends!$A$3:$H$94,IF(ExFlg=0,4,2))+Sens -> 1.039 | K48: 6.79463326 | L48: =VLOOKUP(A48,Trends!$A$3:$H$94,IF(ExFlg=0,5,3))+Sens -> 1.039 | M48: 6.79463326 | N48: =VLOOKUP(A48,Trends!$A$3:$H$94,6)+Sens -> 1.038 | O48: 7.967479761 | Q48: =IF(B48<=120,VLOOKUP(B48,Lookups!$A$3:$I$103,8,FALSE),"") ->  | R48: =VLOOKUP(A48,Trends!$A$3:$H$94,7)+Sens -> 1.0475 | S48: 8.071075757 | T48: =IF(B48<=120,VLOOKUP(B48,Lookups!$A$3:$I$103,9,FALSE),"") ->  | U48: =VLOOKUP(A48,Trends!$A$3:$H$94,8)+Sens -> 1.0475 | V48: 8.071075757 | AH48: =IF($B48<121,VLOOKUP($B48,Lookups!A:F,6)*(1-VLOOKUP($B48,Lookups!$N$3:$P$103,2))^($A48-$A$3),"") ->  | AI48: =IF($B48<121,VLOOKUP($B48,Lookups!A:G,7)*(1-VLOOKUP($B48,Lookups!$N$3:$P$103,3))^($A48-$A$3),"") -> 
A49: 2070 | B49: 138 | D49: =VLOOKUP(B49,Lookups!A:B,2) -> 17707.23977 | E49: =VLOOKUP(B49,Lookups!A:C,3) -> 2203.965 | G49: =VLOOKUP(B49,Lookups!A:D,4) -> 169401.0034 | H49: =VLOOKUP(B49,Lookups!A:E,5) -> 163549.4017 | J49: =VLOOKUP(A49,Trends!$A$3:$H$94,IF(ExFlg=0,4,2))+Sens -> 1.039 | K49: 7.059623957 | L49: =VLOOKUP(A49,Trends!$A$3:$H$94,IF(ExFlg=0,5,3))+Sens -> 1.039 | M49: 7.059623957 | N49: =VLOOKUP(A49,Trends!$A$3:$H$94,6)+Sens -> 1.038 | O49: 8.270243991 | Q49: =IF(B49<=120,VLOOKUP(B49,Lookups!$A$3:$I$103,8,FALSE),"") ->  | R49: =VLOOKUP(A49,Trends!$A$3:$H$94,7)+Sens -> 1.0475 | S49: 8.454451856 | T49: =IF(B49<=120,VLOOKUP(B49,Lookups!$A$3:$I$103,9,FALSE),"") ->  | U49: =VLOOKUP(A49,Trends!$A$3:$H$94,8)+Sens -> 1.0475 | V49: 8.454451856 | AH49: =IF($B49<121,VLOOKUP($B49,Lookups!A:F,6)*(1-VLOOKUP($B49,Lookups!$N$3:$P$103,2))^($A49-$A$3),"") ->  | AI49: =IF($B49<121,VLOOKUP($B49,Lookups!A:G,7)*(1-VLOOKUP($B49,Lookups!$N$3:$P$103,3))^($A49-$A$3),"") -> 
A50: 2071 | B50: 139 | D50: =VLOOKUP(B50,Lookups!A:B,2) -> 17707.23977 | E50: =VLOOKUP(B50,Lookups!A:C,3) -> 2203.965 | G50: =VLOOKUP(B50,Lookups!A:D,4) -> 169401.0034 | H50: =VLOOKUP(B50,Lookups!A:E,5) -> 163549.4017 | J50: =VLOOKUP(A50,Trends!$A$3:$H$94,IF(ExFlg=0,4,2))+Sens -> 1.039 | K50: 7.334949291 | L50: =VLOOKUP(A50,Trends!$A$3:$H$94,IF(ExFlg=0,5,3))+Sens -> 1.039 | M50: 7.334949291 | N50: =VLOOKUP(A50,Trends!$A$3:$H$94,6)+Sens -> 1.038 | O50: 8.584513263 | Q50: =IF(B50<=120,VLOOKUP(B50,Lookups!$A$3:$I$103,8,FALSE),"") ->  | R50: =VLOOKUP(A50,Trends!$A$3:$H$94,7)+Sens -> 1.0475 | S50: 8.856038319 | T50: =IF(B50<=120,VLOOKUP(B50,Lookups!$A$3:$I$103,9,FALSE),"") ->  | U50: =VLOOKUP(A50,Trends!$A$3:$H$94,8)+Sens -> 1.0475 | V50: 8.856038319 | AH50: =IF($B50<121,VLOOKUP($B50,Lookups!A:F,6)*(1-VLOOKUP($B50,Lookups!$N$3:$P$103,2))^($A50-$A$3),"") ->  | AI50: =IF($B50<121,VLOOKUP($B50,Lookups!A:G,7)*(1-VLOOKUP($B50,Lookups!$N$3:$P$103,3))^($A50-$A$3),"") -> 
A51: 2072 | B51: 140 | D51: =VLOOKUP(B51,Lookups!A:B,2) -> 17707.23977 | E51: =VLOOKUP(B51,Lookups!A:C,3) -> 2203.965 | G51: =VLOOKUP(B51,Lookups!A:D,4) -> 169401.0034 | H51: =VLOOKUP(B51,Lookups!A:E,5) -> 163549.4017 | J51: =VLOOKUP(A51,Trends!$A$3:$H$94,IF(ExFlg=0,4,2))+Sens -> 1.038 | K51: 7.621012314 | L51: =VLOOKUP(A51,Trends!$A$3:$H$94,IF(ExFlg=0,5,3))+Sens -> 1.038 | M51: 7.621012314 | N51: =VLOOKUP(A51,Trends!$A$3:$H$94,6)+Sens -> 1.038 | O51: 8.910724767 | Q51: =IF(B51<=120,VLOOKUP(B51,Lookups!$A$3:$I$103,8,FALSE),"") ->  | R51: =VLOOKUP(A51,Trends!$A$3:$H$94,7)+Sens -> 1.0475 | S51: 9.276700139 | T51: =IF(B51<=120,VLOOKUP(B51,Lookups!$A$3:$I$103,9,FALSE),"") ->  | U51: =VLOOKUP(A51,Trends!$A$3:$H$94,8)+Sens -> 1.0475 | V51: 9.276700139 | AH51: =IF($B51<121,VLOOKUP($B51,Lookups!A:F,6)*(1-VLOOKUP($B51,Lookups!$N$3:$P$103,2))^($A51-$A$3),"") ->  | AI51: =IF($B51<121,VLOOKUP($B51,Lookups!A:G,7)*(1-VLOOKUP($B51,Lookups!$N$3:$P$103,3))^($A51-$A$3),"") -> 
A52: 2073 | B52: 141 | D52: =VLOOKUP(B52,Lookups!A:B,2) -> 17707.23977 | E52: =VLOOKUP(B52,Lookups!A:C,3) -> 2203.965 | G52: =VLOOKUP(B52,Lookups!A:D,4) -> 169401.0034 | H52: =VLOOKUP(B52,Lookups!A:E,5) -> 163549.4017 | J52: =VLOOKUP(A52,Trends!$A$3:$H$94,IF(ExFlg=0,4,2))+Sens -> 1.038 | K52: 7.910610782 | L52: =VLOOKUP(A52,Trends!$A$3:$H$94,IF(ExFlg=0,5,3))+Sens -> 1.038 | M52: 7.910610782 | N52: =VLOOKUP(A52,Trends!$A$3:$H$94,6)+Sens -> 1.038 | O52: 9.249332308 | Q52: =IF(B52<=120,VLOOKUP(B52,Lookups!$A$3:$I$103,8,FALSE),"") ->  | R52: =VLOOKUP(A52,Trends!$A$3:$H$94,7)+Sens -> 1.0475 | S52: 9.717343395 | T52: =IF(B52<=120,VLOOKUP(B52,Lookups!$A$3:$I$103,9,FALSE),"") ->  | U52: =VLOOKUP(A52,Trends!$A$3:$H$94,8)+Sens -> 1.0475 | V52: 9.717343395 | AH52: =IF($B52<121,VLOOKUP($B52,Lookups!A:F,6)*(1-VLOOKUP($B52,Lookups!$N$3:$P$103,2))^($A52-$A$3),"") ->  | AI52: =IF($B52<121,VLOOKUP($B52,Lookups!A:G,7)*(1-VLOOKUP($B52,Lookups!$N$3:$P$103,3))^($A52-$A$3),"") -> 
A53: 2074 | B53: 142 | D53: =VLOOKUP(B53,Lookups!A:B,2) -> 17707.23977 | E53: =VLOOKUP(B53,Lookups!A:C,3) -> 2203.965 | G53: =VLOOKUP(B53,Lookups!A:D,4) -> 169401.0034 | H53: =VLOOKUP(B53,Lookups!A:E,5) -> 163549.4017 | J53: =VLOOKUP(A53,Trends!$A$3:$H$94,IF(ExFlg=0,4,2))+Sens -> 1.038 | K53: 8.211213991 | L53: =VLOOKUP(A53,Trends!$A$3:$H$94,IF(ExFlg=0,5,3))+Sens -> 1.038 | M53: 8.211213991 | N53: =VLOOKUP(A53,Trends!$A$3:$H$94,6)+Sens -> 1.038 | O53: 9.600806936 | Q53: =IF(B53<=120,VLOOKUP(B53,Lookups!$A$3:$I$103,8,FALSE),"") ->  | R53: =VLOOKUP(A53,Trends!$A$3:$H$94,7)+Sens -> 1.0475 | S53: 10.17891721 | T53: =IF(B53<=120,VLOOKUP(B53,Lookups!$A$3:$I$103,9,FALSE),"") ->  | U53: =VLOOKUP(A53,Trends!$A$3:$H$94,8)+Sens -> 1.0475 | V53: 10.17891721 | AH53: =IF($B53<121,VLOOKUP($B53,Lookups!A:F,6)*(1-VLOOKUP($B53,Lookups!$N$3:$P$103,2))^($A53-$A$3),"") ->  | AI53: =IF($B53<121,VLOOKUP($B53,Lookups!A:G,7)*(1-VLOOKUP($B53,Lookups!$N$3:$P$103,3))^($A53-$A$3),"") -> 
A54: 2075 | B54: 143 | D54: =VLOOKUP(B54,Lookups!A:B,2) -> 17707.23977 | E54: =VLOOKUP(B54,Lookups!A:C,3) -> 2203.965 | G54: =VLOOKUP(B54,Lookups!A:D,4) -> 169401.0034 | H54: =VLOOKUP(B54,Lookups!A:E,5) -> 163549.4017 | J54: =VLOOKUP(A54,Trends!$A$3:$H$94,IF(ExFlg=0,4,2))+Sens -> 1.038 | K54: 8.523240123 | L54: =VLOOKUP(A54,Trends!$A$3:$H$94,IF(ExFlg=0,5,3))+Sens -> 1.038 | M54: 8.523240123 | N54: =VLOOKUP(A54,Trends!$A$3:$H$94,6)+Sens -> 1.038 | O54: 9.9656376 | Q54: =IF(B54<=120,VLOOKUP(B54,Lookups!$A$3:$I$103,8,FALSE),"") ->  | R54: =VLOOKUP(A54,Trends!$A$3:$H$94,7)+Sens -> 1.0475 | S54: 10.66241577 | T54: =IF(B54<=120,VLOOKUP(B54,Lookups!$A$3:$I$103,9,FALSE),"") ->  | U54: =VLOOKUP(A54,Trends!$A$3:$H$94,8)+Sens -> 1.0475 | V54: 10.66241577 | AH54: =IF($B54<121,VLOOKUP($B54,Lookups!A:F,6)*(1-VLOOKUP($B54,Lookups!$N$3:$P$103,2))^($A54-$A$3),"") ->  | AI54: =IF($B54<121,VLOOKUP($B54,Lookups!A:G,7)*(1-VLOOKUP($B54,Lookups!$N$3:$P$103,3))^($A54-$A$3),"") -> 
A55: 2076 | B55: 144 | D55: =VLOOKUP(B55,Lookups!A:B,2) -> 17707.23977 | E55: =VLOOKUP(B55,Lookups!A:C,3) -> 2203.965 | G55: =VLOOKUP(B55,Lookups!A:D,4) -> 169401.0034 | H55: =VLOOKUP(B55,Lookups!A:E,5) -> 163549.4017 | J55: =VLOOKUP(A55,Trends!$A$3:$H$94,IF(ExFlg=0,4,2))+Sens -> 1.038 | K55: 8.847123248 | L55: =VLOOKUP(A55,Trends!$A$3:$H$94,IF(ExFlg=0,5,3))+Sens -> 1.038 | M55: 8.847123248 | N55: =VLOOKUP(A55,Trends!$A$3:$H$94,6)+Sens -> 1.038 | O55: 10.34433183 | Q55: =IF(B55<=120,VLOOKUP(B55,Lookups!$A$3:$I$103,8,FALSE),"") ->  | R55: =VLOOKUP(A55,Trends!$A$3:$H$94,7)+Sens -> 1.0475 | S55: 11.16888052 | T55: =IF(B55<=120,VLOOKUP(B55,Lookups!$A$3:$I$103,9,FALSE),"") ->  | U55: =VLOOKUP(A55,Trends!$A$3:$H$94,8)+Sens -> 1.0475 | V55: 11.16888052 | AH55: =IF($B55<121,VLOOKUP($B55,Lookups!A:F,6)*(1-VLOOKUP($B55,Lookups!$N$3:$P$103,2))^($A55-$A$3),"") ->  | AI55: =IF($B55<121,VLOOKUP($B55,Lookups!A:G,7)*(1-VLOOKUP($B55,Lookups!$N$3:$P$103,3))^($A55-$A$3),"") -> 
A56: 2077 | B56: 145 | D56: =VLOOKUP(B56,Lookups!A:B,2) -> 17707.23977 | E56: =VLOOKUP(B56,Lookups!A:C,3) -> 2203.965 | G56: =VLOOKUP(B56,Lookups!A:D,4) -> 169401.0034 | H56: =VLOOKUP(B56,Lookups!A:E,5) -> 163549.4017 | J56: =VLOOKUP(A56,Trends!$A$3:$H$94,IF(ExFlg=0,4,2))+Sens -> 1.038 | K56: 9.183313931 | L56: =VLOOKUP(A56,Trends!$A$3:$H$94,IF(ExFlg=0,5,3))+Sens -> 1.038 | M56: 9.183313931 | N56: =VLOOKUP(A56,Trends!$A$3:$H$94,6)+Sens -> 1.038 | O56: 10.73741644 | Q56: =IF(B56<=120,VLOOKUP(B56,Lookups!$A$3:$I$103,8,FALSE),"") ->  | R56: =VLOOKUP(A56,Trends!$A$3:$H$94,7)+Sens -> 1.0475 | S56: 11.69940235 | T56: =IF(B56<=120,VLOOKUP(B56,Lookups!$A$3:$I$103,9,FALSE),"") ->  | U56: =VLOOKUP(A56,Trends!$A$3:$H$94,8)+Sens -> 1.0475 | V56: 11.69940235 | AH56: =IF($B56<121,VLOOKUP($B56,Lookups!A:F,6)*(1-VLOOKUP($B56,Lookups!$N$3:$P$103,2))^($A56-$A$3),"") ->  | AI56: =IF($B56<121,VLOOKUP($B56,Lookups!A:G,7)*(1-VLOOKUP($B56,Lookups!$N$3:$P$103,3))^($A56-$A$3),"") -> 
A57: 2078 | B57: 146 | D57: =VLOOKUP(B57,Lookups!A:B,2) -> 17707.23977 | E57: =VLOOKUP(B57,Lookups!A:C,3) -> 2203.965 | G57: =VLOOKUP(B57,Lookups!A:D,4) -> 169401.0034 | H57: =VLOOKUP(B57,Lookups!A:E,5) -> 163549.4017 | J57: =VLOOKUP(A57,Trends!$A$3:$H$94,IF(ExFlg=0,4,2))+Sens -> 1.038 | K57: 9.532279861 | L57: =VLOOKUP(A57,Trends!$A$3:$H$94,IF(ExFlg=0,5,3))+Sens -> 1.038 | M57: 9.532279861 | N57: =VLOOKUP(A57,Trends!$A$3:$H$94,6)+Sens -> 1.038 | O57: 11.14543826 | Q57: =IF(B57<=120,VLOOKUP(B57,Lookups!$A$3:$I$103,8,FALSE),"") ->  | R57: =VLOOKUP(A57,Trends!$A$3:$H$94,7)+Sens -> 1.0475 | S57: 12.25512396 | T57: =IF(B57<=120,VLOOKUP(B57,Lookups!$A$3:$I$103,9,FALSE),"") ->  | U57: =VLOOKUP(A57,Trends!$A$3:$H$94,8)+Sens -> 1.0475 | V57: 12.25512396 | AH57: =IF($B57<121,VLOOKUP($B57,Lookups!A:F,6)*(1-VLOOKUP($B57,Lookups!$N$3:$P$103,2))^($A57-$A$3),"") ->  | AI57: =IF($B57<121,VLOOKUP($B57,Lookups!A:G,7)*(1-VLOOKUP($B57,Lookups!$N$3:$P$103,3))^($A57-$A$3),"") -> 
A58: 2079 | B58: 147 | D58: =VLOOKUP(B58,Lookups!A:B,2) -> 17707.23977 | E58: =VLOOKUP(B58,Lookups!A:C,3) -> 2203.965 | G58: =VLOOKUP(B58,Lookups!A:D,4) -> 169401.0034 | H58: =VLOOKUP(B58,Lookups!A:E,5) -> 163549.4017 | J58: =VLOOKUP(A58,Trends!$A$3:$H$94,IF(ExFlg=0,4,2))+Sens -> 1.038 | K58: 9.894506495 | L58: =VLOOKUP(A58,Trends!$A$3:$H$94,IF(ExFlg=0,5,3))+Sens -> 1.038 | M58: 9.894506495 | N58: =VLOOKUP(A58,Trends!$A$3:$H$94,6)+Sens -> 1.038 | O58: 11.56896492 | Q58: =IF(B58<=120,VLOOKUP(B58,Lookups!$A$3:$I$103,8,FALSE),"") ->  | R58: =VLOOKUP(A58,Trends!$A$3:$H$94,7)+Sens -> 1.0475 | S58: 12.83724235 | T58: =IF(B58<=120,VLOOKUP(B58,Lookups!$A$3:$I$103,9,FALSE),"") ->  | U58: =VLOOKUP(A58,Trends!$A$3:$H$94,8)+Sens -> 1.0475 | V58: 12.83724235 | AH58: =IF($B58<121,VLOOKUP($B58,Lookups!A:F,6)*(1-VLOOKUP($B58,Lookups!$N$3:$P$103,2))^($A58-$A$3),"") ->  | AI58: =IF($B58<121,VLOOKUP($B58,Lookups!A:G,7)*(1-VLOOKUP($B58,Lookups!$N$3:$P$103,3))^($A58-$A$3),"") -> 
A59: 2080 | B59: 148 | D59: =VLOOKUP(B59,Lookups!A:B,2) -> 17707.23977 | E59: =VLOOKUP(B59,Lookups!A:C,3) -> 2203.965 | G59: =VLOOKUP(B59,Lookups!A:D,4) -> 169401.0034 | H59: =VLOOKUP(B59,Lookups!A:E,5) -> 163549.4017 | J59: =VLOOKUP(A59,Trends!$A$3:$H$94,IF(ExFlg=0,4,2))+Sens -> 1.038 | K59: 10.27049774 | L59: =VLOOKUP(A59,Trends!$A$3:$H$94,IF(ExFlg=0,5,3))+Sens -> 1.038 | M59: 10.27049774 | N59: =VLOOKUP(A59,Trends!$A$3:$H$94,6)+Sens -> 1.038 | O59: 12.00858558 | Q59: =IF(B59<=120,VLOOKUP(B59,Lookups!$A$3:$I$103,8,FALSE),"") ->  | R59: =VLOOKUP(A59,Trends!$A$3:$H$94,7)+Sens -> 1.0475 | S59: 13.44701136 | T59: =IF(B59<=120,VLOOKUP(B59,Lookups!$A$3:$I$103,9,FALSE),"") ->  | U59: =VLOOKUP(A59,Trends!$A$3:$H$94,8)+Sens -> 1.0475 | V59: 13.44701136 | AH59: =IF($B59<121,VLOOKUP($B59,Lookups!A:F,6)*(1-VLOOKUP($B59,Lookups!$N$3:$P$103,2))^($A59-$A$3),"") ->  | AI59: =IF($B59<121,VLOOKUP($B59,Lookups!A:G,7)*(1-VLOOKUP($B59,Lookups!$N$3:$P$103,3))^($A59-$A$3),"") -> 
A60: 2081 | B60: 149 | D60: =VLOOKUP(B60,Lookups!A:B,2) -> 17707.23977 | E60: =VLOOKUP(B60,Lookups!A:C,3) -> 2203.965 | G60: =VLOOKUP(B60,Lookups!A:D,4) -> 169401.0034 | H60: =VLOOKUP(B60,Lookups!A:E,5) -> 163549.4017 | J60: =VLOOKUP(A60,Trends!$A$3:$H$94,IF(ExFlg=0,4,2))+Sens -> 1.038 | K60: 10.66077666 | L60: =VLOOKUP(A60,Trends!$A$3:$H$94,IF(ExFlg=0,5,3))+Sens -> 1.038 | M60: 10.66077666 | N60: =VLOOKUP(A60,Trends!$A$3:$H$94,6)+Sens -> 1.038 | O60: 12.46491184 | Q60: =IF(B60<=120,VLOOKUP(B60,Lookups!$A$3:$I$103,8,FALSE),"") ->  | R60: =VLOOKUP(A60,Trends!$A$3:$H$94,7)+Sens -> 1.0475 | S60: 14.0857444 | T60: =IF(B60<=120,VLOOKUP(B60,Lookups!$A$3:$I$103,9,FALSE),"") ->  | U60: =VLOOKUP(A60,Trends!$A$3:$H$94,8)+Sens -> 1.0475 | V60: 14.0857444 | AH60: =IF($B60<121,VLOOKUP($B60,Lookups!A:F,6)*(1-VLOOKUP($B60,Lookups!$N$3:$P$103,2))^($A60-$A$3),"") ->  | AI60: =IF($B60<121,VLOOKUP($B60,Lookups!A:G,7)*(1-VLOOKUP($B60,Lookups!$N$3:$P$103,3))^($A60-$A$3),"") -> 
A61: 2082 | B61: 150 | D61: =VLOOKUP(B61,Lookups!A:B,2) -> 17707.23977 | E61: =VLOOKUP(B61,Lookups!A:C,3) -> 2203.965 | G61: =VLOOKUP(B61,Lookups!A:D,4) -> 169401.0034 | H61: =VLOOKUP(B61,Lookups!A:E,5) -> 163549.4017 | J61: =VLOOKUP(A61,Trends!$A$3:$H$94,IF(ExFlg=0,4,2))+Sens -> 1.038 | K61: 11.06588617 | L61: =VLOOKUP(A61,Trends!$A$3:$H$94,IF(ExFlg=0,5,3))+Sens -> 1.038 | M61: 11.06588617 | N61: =VLOOKUP(A61,Trends!$A$3:$H$94,6)+Sens -> 1.038 | O61: 12.93857849 | Q61: =IF(B61<=120,VLOOKUP(B61,Lookups!$A$3:$I$103,8,FALSE),"") ->  | R61: =VLOOKUP(A61,Trends!$A$3:$H$94,7)+Sens -> 1.0475 | S61: 14.75481726 | T61: =IF(B61<=120,VLOOKUP(B61,Lookups!$A$3:$I$103,9,FALSE),"") ->  | U61: =VLOOKUP(A61,Trends!$A$3:$H$94,8)+Sens -> 1.0475 | V61: 14.75481726 | AH61: =IF($B61<121,VLOOKUP($B61,Lookups!A:F,6)*(1-VLOOKUP($B61,Lookups!$N$3:$P$103,2))^($A61-$A$3),"") ->  | AI61: =IF($B61<121,VLOOKUP($B61,Lookups!A:G,7)*(1-VLOOKUP($B61,Lookups!$N$3:$P$103,3))^($A61-$A$3),"") -> 
A62: 2083 | B62: 151 | D62: =VLOOKUP(B62,Lookups!A:B,2) -> 17707.23977 | E62: =VLOOKUP(B62,Lookups!A:C,3) -> 2203.965 | G62: =VLOOKUP(B62,Lookups!A:D,4) -> 169401.0034 | H62: =VLOOKUP(B62,Lookups!A:E,5) -> 163549.4017 | J62: =VLOOKUP(A62,Trends!$A$3:$H$94,IF(ExFlg=0,4,2))+Sens -> 1.038 | K62: 11.48638984 | L62: =VLOOKUP(A62,Trends!$A$3:$H$94,IF(ExFlg=0,5,3))+Sens -> 1.038 | M62: 11.48638984 | N62: =VLOOKUP(A62,Trends!$A$3:$H$94,6)+Sens -> 1.038 | O62: 13.43024447 | Q62: =IF(B62<=120,VLOOKUP(B62,Lookups!$A$3:$I$103,8,FALSE),"") ->  | R62: =VLOOKUP(A62,Trends!$A$3:$H$94,7)+Sens -> 1.0475 | S62: 15.45567108 | T62: =IF(B62<=120,VLOOKUP(B62,Lookups!$A$3:$I$103,9,FALSE),"") ->  | U62: =VLOOKUP(A62,Trends!$A$3:$H$94,8)+Sens -> 1.0475 | V62: 15.45567108 | AH62: =IF($B62<121,VLOOKUP($B62,Lookups!A:F,6)*(1-VLOOKUP($B62,Lookups!$N$3:$P$103,2))^($A62-$A$3),"") ->  | AI62: =IF($B62<121,VLOOKUP($B62,Lookups!A:G,7)*(1-VLOOKUP($B62,Lookups!$N$3:$P$103,3))^($A62-$A$3),"") -> 
A63: 2084 | B63: 152 | D63: =VLOOKUP(B63,Lookups!A:B,2) -> 17707.23977 | E63: =VLOOKUP(B63,Lookups!A:C,3) -> 2203.965 | G63: =VLOOKUP(B63,Lookups!A:D,4) -> 169401.0034 | H63: =VLOOKUP(B63,Lookups!A:E,5) -> 163549.4017 | J63: =VLOOKUP(A63,Trends!$A$3:$H$94,IF(ExFlg=0,4,2))+Sens -> 1.038 | K63: 11.92287266 | L63: =VLOOKUP(A63,Trends!$A$3:$H$94,IF(ExFlg=0,5,3))+Sens -> 1.038 | M63: 11.92287266 | N63: =VLOOKUP(A63,Trends!$A$3:$H$94,6)+Sens -> 1.038 | O63: 13.94059376 | Q63: =IF(B63<=120,VLOOKUP(B63,Lookups!$A$3:$I$103,8,FALSE),"") ->  | R63: =VLOOKUP(A63,Trends!$A$3:$H$94,7)+Sens -> 1.0475 | S63: 16.18981545 | T63: =IF(B63<=120,VLOOKUP(B63,Lookups!$A$3:$I$103,9,FALSE),"") ->  | U63: =VLOOKUP(A63,Trends!$A$3:$H$94,8)+Sens -> 1.0475 | V63: 16.18981545 | AH63: =IF($B63<121,VLOOKUP($B63,Lookups!A:F,6)*(1-VLOOKUP($B63,Lookups!$N$3:$P$103,2))^($A63-$A$3),"") ->  | AI63: =IF($B63<121,VLOOKUP($B63,Lookups!A:G,7)*(1-VLOOKUP($B63,Lookups!$N$3:$P$103,3))^($A63-$A$3),"") -> 
A64: 2085 | B64: 153 | D64: =VLOOKUP(B64,Lookups!A:B,2) -> 17707.23977 | E64: =VLOOKUP(B64,Lookups!A:C,3) -> 2203.965 | G64: =VLOOKUP(B64,Lookups!A:D,4) -> 169401.0034 | H64: =VLOOKUP(B64,Lookups!A:E,5) -> 163549.4017 | J64: =VLOOKUP(A64,Trends!$A$3:$H$94,IF(ExFlg=0,4,2))+Sens -> 1.038 | K64: 12.37594182 | L64: =VLOOKUP(A64,Trends!$A$3:$H$94,IF(ExFlg=0,5,3))+Sens -> 1.038 | M64: 12.37594182 | N64: =VLOOKUP(A64,Trends!$A$3:$H$94,6)+Sens -> 1.038 | O64: 14.47033632 | Q64: =IF(B64<=120,VLOOKUP(B64,Lookups!$A$3:$I$103,8,FALSE),"") ->  | R64: =VLOOKUP(A64,Trends!$A$3:$H$94,7)+Sens -> 1.0475 | S64: 16.95883169 | T64: =IF(B64<=120,VLOOKUP(B64,Lookups!$A$3:$I$103,9,FALSE),"") ->  | U64: =VLOOKUP(A64,Trends!$A$3:$H$94,8)+Sens -> 1.0475 | V64: 16.95883169 | AH64: =IF($B64<121,VLOOKUP($B64,Lookups!A:F,6)*(1-VLOOKUP($B64,Lookups!$N$3:$P$103,2))^($A64-$A$3),"") ->  | AI64: =IF($B64<121,VLOOKUP($B64,Lookups!A:G,7)*(1-VLOOKUP($B64,Lookups!$N$3:$P$103,3))^($A64-$A$3),"") -> 
A65: 2086 | B65: 154 | D65: =VLOOKUP(B65,Lookups!A:B,2) -> 17707.23977 | E65: =VLOOKUP(B65,Lookups!A:C,3) -> 2203.965 | G65: =VLOOKUP(B65,Lookups!A:D,4) -> 169401.0034 | H65: =VLOOKUP(B65,Lookups!A:E,5) -> 163549.4017 | J65: =VLOOKUP(A65,Trends!$A$3:$H$94,IF(ExFlg=0,4,2))+Sens -> 1.038 | K65: 12.84622761 | L65: =VLOOKUP(A65,Trends!$A$3:$H$94,IF(ExFlg=0,5,3))+Sens -> 1.038 | M65: 12.84622761 | N65: =VLOOKUP(A65,Trends!$A$3:$H$94,6)+Sens -> 1.038 | O65: 15.0202091 | Q65: =IF(B65<=120,VLOOKUP(B65,Lookups!$A$3:$I$103,8,FALSE),"") ->  | R65: =VLOOKUP(A65,Trends!$A$3:$H$94,7)+Sens -> 1.0475 | S65: 17.76437619 | T65: =IF(B65<=120,VLOOKUP(B65,Lookups!$A$3:$I$103,9,FALSE),"") ->  | U65: =VLOOKUP(A65,Trends!$A$3:$H$94,8)+Sens -> 1.0475 | V65: 17.76437619 | AH65: =IF($B65<121,VLOOKUP($B65,Lookups!A:F,6)*(1-VLOOKUP($B65,Lookups!$N$3:$P$103,2))^($A65-$A$3),"") ->  | AI65: =IF($B65<121,VLOOKUP($B65,Lookups!A:G,7)*(1-VLOOKUP($B65,Lookups!$N$3:$P$103,3))^($A65-$A$3),"") -> 
A66: 2087 | B66: 155 | D66: =VLOOKUP(B66,Lookups!A:B,2) -> 17707.23977 | E66: =VLOOKUP(B66,Lookups!A:C,3) -> 2203.965 | G66: =VLOOKUP(B66,Lookups!A:D,4) -> 169401.0034 | H66: =VLOOKUP(B66,Lookups!A:E,5) -> 163549.4017 | J66: =VLOOKUP(A66,Trends!$A$3:$H$94,IF(ExFlg=0,4,2))+Sens -> 1.038 | K66: 13.33438426 | L66: =VLOOKUP(A66,Trends!$A$3:$H$94,IF(ExFlg=0,5,3))+Sens -> 1.038 | M66: 13.33438426 | N66: =VLOOKUP(A66,Trends!$A$3:$H$94,6)+Sens -> 1.038 | O66: 15.59097705 | Q66: =IF(B66<=120,VLOOKUP(B66,Lookups!$A$3:$I$103,8,FALSE),"") ->  | R66: =VLOOKUP(A66,Trends!$A$3:$H$94,7)+Sens -> 1.0475 | S66: 18.60818406 | T66: =IF(B66<=120,VLOOKUP(B66,Lookups!$A$3:$I$103,9,FALSE),"") ->  | U66: =VLOOKUP(A66,Trends!$A$3:$H$94,8)+Sens -> 1.0475 | V66: 18.60818406 | AH66: =IF($B66<121,VLOOKUP($B66,Lookups!A:F,6)*(1-VLOOKUP($B66,Lookups!$N$3:$P$103,2))^($A66-$A$3),"") ->  | AI66: =IF($B66<121,VLOOKUP($B66,Lookups!A:G,7)*(1-VLOOKUP($B66,Lookups!$N$3:$P$103,3))^($A66-$A$3),"") -> 
A67: 2088 | B67: 156 | D67: =VLOOKUP(B67,Lookups!A:B,2) -> 17707.23977 | E67: =VLOOKUP(B67,Lookups!A:C,3) -> 2203.965 | G67: =VLOOKUP(B67,Lookups!A:D,4) -> 169401.0034 | H67: =VLOOKUP(B67,Lookups!A:E,5) -> 163549.4017 | J67: =VLOOKUP(A67,Trends!$A$3:$H$94,IF(ExFlg=0,4,2))+Sens -> 1.038 | K67: 13.84109086 | L67: =VLOOKUP(A67,Trends!$A$3:$H$94,IF(ExFlg=0,5,3))+Sens -> 1.038 | M67: 13.84109086 | N67: =VLOOKUP(A67,Trends!$A$3:$H$94,6)+Sens -> 1.038 | O67: 16.18343417 | Q67: =IF(B67<=120,VLOOKUP(B67,Lookups!$A$3:$I$103,8,FALSE),"") ->  | R67: =VLOOKUP(A67,Trends!$A$3:$H$94,7)+Sens -> 1.0475 | S67: 19.49207281 | T67: =IF(B67<=120,VLOOKUP(B67,Lookups!$A$3:$I$103,9,FALSE),"") ->  | U67: =VLOOKUP(A67,Trends!$A$3:$H$94,8)+Sens -> 1.0475 | V67: 19.49207281 | AH67: =IF($B67<121,VLOOKUP($B67,Lookups!A:F,6)*(1-VLOOKUP($B67,Lookups!$N$3:$P$103,2))^($A67-$A$3),"") ->  | AI67: =IF($B67<121,VLOOKUP($B67,Lookups!A:G,7)*(1-VLOOKUP($B67,Lookups!$N$3:$P$103,3))^($A67-$A$3),"") ->  | AJ67: =IF(B67<121,(PCTMALE*AH67+(1-PCTMALE)*AI67),"") ->  | AM67: =IF(AJ67="","",ROUND((13/24)+(11/24)*(1/(1+IntRt))*(1-AJ67),6)) -> 
A68: =1+A67 -> 2089 | B68: =1+B67 -> 157 | D68: =VLOOKUP(B68,Lookups!A:B,2) -> 17707.23977 | E68: =VLOOKUP(B68,Lookups!A:C,3) -> 2203.965 | G68: =VLOOKUP(B68,Lookups!A:D,4) -> 169401.0034 | H68: =VLOOKUP(B68,Lookups!A:E,5) -> 163549.4017 | J68: =VLOOKUP(A68,Trends!$A$3:$H$94,IF(ExFlg=0,4,2))+Sens -> 1.038 | K68: 14.36705231 | L68: =VLOOKUP(A68,Trends!$A$3:$H$94,IF(ExFlg=0,5,3))+Sens -> 1.038 | M68: 14.36705231 | N68: =VLOOKUP(A68,Trends!$A$3:$H$94,6)+Sens -> 1.037 | O68: 16.79840467 | Q68: =IF(B68<=120,VLOOKUP(B68,Lookups!$A$3:$I$103,8,FALSE),"") ->  | R68: =VLOOKUP(A68,Trends!$A$3:$H$94,7)+Sens -> 1.0475 | S68: 20.41794626 | T68: =IF(B68<=120,VLOOKUP(B68,Lookups!$A$3:$I$103,9,FALSE),"") ->  | U68: =VLOOKUP(A68,Trends!$A$3:$H$94,8)+Sens -> 1.0475 | V68: 20.41794626 | X68: =IF(B68<=120,IF(B68<65,D68*K68,D68*M68),"") ->  | Y68: =IF(B68<=120,E68*O68,"") ->  | Z68: =IF(B68<=120,X68+Y68,"") ->  | AB68: =IF(B68<=120,G68*Q68*S68,"") ->  | AC68: =IF(B68<=120,H68*T68*V68,"") ->  | AD68: =IF(B68<=120,AB68+AC68,"") ->  | AF68: =IF(B68<=120,Z68+AD68, "") ->  | AH68: =IF($B68<121,VLOOKUP($B68,Lookups!A:F,6)*(1-VLOOKUP($B68,Lookups!$N$3:$P$103,2))^($A68-$A$3),"") ->  | AI68: =IF($B68<121,VLOOKUP($B68,Lookups!A:G,7)*(1-VLOOKUP($B68,Lookups!$N$3:$P$103,3))^($A68-$A$3),"") ->  | AL68: =IF(B68<121,AL67/(1+IntRt),"") ->  | AP68: =IF(B68<=120,AF68*AK68*AL68*AM68,"") -> 
A69: 2090 | B69: 158 | D69: =VLOOKUP(B69,Lookups!A:B,2) -> 17707.23977 | E69: =VLOOKUP(B69,Lookups!A:C,3) -> 2203.965 | G69: =VLOOKUP(B69,Lookups!A:D,4) -> 169401.0034 | H69: =VLOOKUP(B69,Lookups!A:E,5) -> 163549.4017 | J69: =VLOOKUP(A69,Trends!$A$3:$H$94,IF(ExFlg=0,4,2))+Sens -> 1.038 | K69: =K68*J68 -> 14.9130003 | L69: =VLOOKUP(A69,Trends!$A$3:$H$94,IF(ExFlg=0,5,3))+Sens -> 1.038 | M69: 14.9130003 | N69: =VLOOKUP(A69,Trends!$A$3:$H$94,6)+Sens -> 1.036 | O69: =O68*N68 -> 17.41994565 | Q69: =IF(B69<=120,VLOOKUP(B69,Lookups!$A$3:$I$103,8,FALSE),"") ->  | R69: =VLOOKUP(A69,Trends!$A$3:$H$94,7)+Sens -> 1.0475 | S69: =S68*R68 -> 21.38779871 | T69: =IF(B69<=120,VLOOKUP(B69,Lookups!$A$3:$I$103,9,FALSE),"") ->  | U69: =VLOOKUP(A69,Trends!$A$3:$H$94,8)+Sens -> 1.0475 | V69: =V68*U68 -> 21.38779871 | AH69: =IF($B69<121,VLOOKUP($B69,Lookups!A:F,6)*(1-VLOOKUP($B69,Lookups!$N$3:$P$103,2))^($A69-$A$3),"") ->  | AI69: =IF($B69<121,VLOOKUP($B69,Lookups!A:G,7)*(1-VLOOKUP($B69,Lookups!$N$3:$P$103,3))^($A69-$A$3),"") ->  | AK69: =IF(B69<121,AK68*(1-AJ68),"") -> 
A70: 2091 | B70: 159 | D70: =VLOOKUP(B70,Lookups!A:B,2) -> 17707.23977 | E70: =VLOOKUP(B70,Lookups!A:C,3) -> 2203.965 | G70: =VLOOKUP(B70,Lookups!A:D,4) -> 169401.0034 | H70: =VLOOKUP(B70,Lookups!A:E,5) -> 163549.4017 | J70: =VLOOKUP(A70,Trends!$A$3:$H$94,IF(ExFlg=0,4,2))+Sens -> 1.038 | K70: 15.47969431 | L70: =VLOOKUP(A70,Trends!$A$3:$H$94,IF(ExFlg=0,5,3))+Sens -> 1.038 | M70: 15.47969431 | N70: =VLOOKUP(A70,Trends!$A$3:$H$94,6)+Sens -> 1.036 | O70: 18.04706369 | Q70: =IF(B70<=120,VLOOKUP(B70,Lookups!$A$3:$I$103,8,FALSE),"") ->  | R70: =VLOOKUP(A70,Trends!$A$3:$H$94,7)+Sens -> 1.0475 | S70: 22.40371915 | T70: =IF(B70<=120,VLOOKUP(B70,Lookups!$A$3:$I$103,9,FALSE),"") ->  | U70: =VLOOKUP(A70,Trends!$A$3:$H$94,8)+Sens -> 1.0475 | V70: 22.40371915 | AH70: =IF($B70<121,VLOOKUP($B70,Lookups!A:F,6)*(1-VLOOKUP($B70,Lookups!$N$3:$P$103,2))^($A70-$A$3),"") ->  | AI70: =IF($B70<121,VLOOKUP($B70,Lookups!A:G,7)*(1-VLOOKUP($B70,Lookups!$N$3:$P$103,3))^($A70-$A$3),"") -> 
A71: 2092 | B71: 160 | D71: =VLOOKUP(B71,Lookups!A:B,2) -> 17707.23977 | E71: =VLOOKUP(B71,Lookups!A:C,3) -> 2203.965 | G71: =VLOOKUP(B71,Lookups!A:D,4) -> 169401.0034 | H71: =VLOOKUP(B71,Lookups!A:E,5) -> 163549.4017 | J71: =VLOOKUP(A71,Trends!$A$3:$H$94,IF(ExFlg=0,4,2))+Sens -> 1.038 | K71: 16.06792269 | L71: =VLOOKUP(A71,Trends!$A$3:$H$94,IF(ExFlg=0,5,3))+Sens -> 1.038 | M71: 16.06792269 | N71: =VLOOKUP(A71,Trends!$A$3:$H$94,6)+Sens -> 1.036 | O71: 18.69675798 | Q71: =IF(B71<=120,VLOOKUP(B71,Lookups!$A$3:$I$103,8,FALSE),"") ->  | R71: =VLOOKUP(A71,Trends!$A$3:$H$94,7)+Sens -> 1.0475 | S71: 23.46789581 | T71: =IF(B71<=120,VLOOKUP(B71,Lookups!$A$3:$I$103,9,FALSE),"") ->  | U71: =VLOOKUP(A71,Trends!$A$3:$H$94,8)+Sens -> 1.0475 | V71: 23.46789581 | AH71: =IF($B71<121,VLOOKUP($B71,Lookups!A:F,6)*(1-VLOOKUP($B71,Lookups!$N$3:$P$103,2))^($A71-$A$3),"") ->  | AI71: =IF($B71<121,VLOOKUP($B71,Lookups!A:G,7)*(1-VLOOKUP($B71,Lookups!$N$3:$P$103,3))^($A71-$A$3),"") -> 
A72: 2093 | B72: 161 | D72: =VLOOKUP(B72,Lookups!A:B,2) -> 17707.23977 | E72: =VLOOKUP(B72,Lookups!A:C,3) -> 2203.965 | G72: =VLOOKUP(B72,Lookups!A:D,4) -> 169401.0034 | H72: =VLOOKUP(B72,Lookups!A:E,5) -> 163549.4017 | J72: =VLOOKUP(A72,Trends!$A$3:$H$94,IF(ExFlg=0,4,2))+Sens -> 1.038 | K72: 16.67850376 | L72: =VLOOKUP(A72,Trends!$A$3:$H$94,IF(ExFlg=0,5,3))+Sens -> 1.038 | M72: 16.67850376 | N72: =VLOOKUP(A72,Trends!$A$3:$H$94,6)+Sens -> 1.036 | O72: 19.36984127 | Q72: =IF(B72<=120,VLOOKUP(B72,Lookups!$A$3:$I$103,8,FALSE),"") ->  | R72: =VLOOKUP(A72,Trends!$A$3:$H$94,7)+Sens -> 1.0475 | S72: 24.58262086 | T72: =IF(B72<=120,VLOOKUP(B72,Lookups!$A$3:$I$103,9,FALSE),"") ->  | U72: =VLOOKUP(A72,Trends!$A$3:$H$94,8)+Sens -> 1.0475 | V72: 24.58262086 | AH72: =IF($B72<121,VLOOKUP($B72,Lookups!A:F,6)*(1-VLOOKUP($B72,Lookups!$N$3:$P$103,2))^($A72-$A$3),"") ->  | AI72: =IF($B72<121,VLOOKUP($B72,Lookups!A:G,7)*(1-VLOOKUP($B72,Lookups!$N$3:$P$103,3))^($A72-$A$3),"") -> 
A73: 2094 | B73: 162 | D73: =VLOOKUP(B73,Lookups!A:B,2) -> 17707.23977 | E73: =VLOOKUP(B73,Lookups!A:C,3) -> 2203.965 | G73: =VLOOKUP(B73,Lookups!A:D,4) -> 169401.0034 | H73: =VLOOKUP(B73,Lookups!A:E,5) -> 163549.4017 | J73: =VLOOKUP(A73,Trends!$A$3:$H$94,IF(ExFlg=0,4,2))+Sens -> 1.038 | K73: 17.3122869 | L73: =VLOOKUP(A73,Trends!$A$3:$H$94,IF(ExFlg=0,5,3))+Sens -> 1.038 | M73: 17.3122869 | N73: =VLOOKUP(A73,Trends!$A$3:$H$94,6)+Sens -> 1.036 | O73: 20.06715555 | Q73: =IF(B73<=120,VLOOKUP(B73,Lookups!$A$3:$I$103,8,FALSE),"") ->  | R73: =VLOOKUP(A73,Trends!$A$3:$H$94,7)+Sens -> 1.0475 | S73: 25.75029535 | T73: =IF(B73<=120,VLOOKUP(B73,Lookups!$A$3:$I$103,9,FALSE),"") ->  | U73: =VLOOKUP(A73,Trends!$A$3:$H$94,8)+Sens -> 1.0475 | V73: 25.75029535 | AH73: =IF($B73<121,VLOOKUP($B73,Lookups!A:F,6)*(1-VLOOKUP($B73,Lookups!$N$3:$P$103,2))^($A73-$A$3),"") ->  | AI73: =IF($B73<121,VLOOKUP($B73,Lookups!A:G,7)*(1-VLOOKUP($B73,Lookups!$N$3:$P$103,3))^($A73-$A$3),"") -> 
A74: 2095 | B74: 163 | D74: =VLOOKUP(B74,Lookups!A:B,2) -> 17707.23977 | E74: =VLOOKUP(B74,Lookups!A:C,3) -> 2203.965 | G74: =VLOOKUP(B74,Lookups!A:D,4) -> 169401.0034 | H74: =VLOOKUP(B74,Lookups!A:E,5) -> 163549.4017 | J74: =VLOOKUP(A74,Trends!$A$3:$H$94,IF(ExFlg=0,4,2))+Sens -> 1.038 | K74: 17.9701538 | L74: =VLOOKUP(A74,Trends!$A$3:$H$94,IF(ExFlg=0,5,3))+Sens -> 1.038 | M74: 17.9701538 | N74: =VLOOKUP(A74,Trends!$A$3:$H$94,6)+Sens -> 1.036 | O74: 20.78957315 | Q74: =IF(B74<=120,VLOOKUP(B74,Lookups!$A$3:$I$103,8,FALSE),"") ->  | R74: =VLOOKUP(A74,Trends!$A$3:$H$94,7)+Sens -> 1.0475 | S74: 26.97343438 | T74: =IF(B74<=120,VLOOKUP(B74,Lookups!$A$3:$I$103,9,FALSE),"") ->  | U74: =VLOOKUP(A74,Trends!$A$3:$H$94,8)+Sens -> 1.0475 | V74: 26.97343438 | AH74: =IF($B74<121,VLOOKUP($B74,Lookups!A:F,6)*(1-VLOOKUP($B74,Lookups!$N$3:$P$103,2))^($A74-$A$3),"") ->  | AI74: =IF($B74<121,VLOOKUP($B74,Lookups!A:G,7)*(1-VLOOKUP($B74,Lookups!$N$3:$P$103,3))^($A74-$A$3),"") -> 
A75: 2096 | B75: 164 | D75: =VLOOKUP(B75,Lookups!A:B,2) -> 17707.23977 | E75: =VLOOKUP(B75,Lookups!A:C,3) -> 2203.965 | G75: =VLOOKUP(B75,Lookups!A:D,4) -> 169401.0034 | H75: =VLOOKUP(B75,Lookups!A:E,5) -> 163549.4017 | J75: =VLOOKUP(A75,Trends!$A$3:$H$94,IF(ExFlg=0,4,2))+Sens -> 1.038 | K75: 18.65301965 | L75: =VLOOKUP(A75,Trends!$A$3:$H$94,IF(ExFlg=0,5,3))+Sens -> 1.038 | M75: 18.65301965 | N75: =VLOOKUP(A75,Trends!$A$3:$H$94,6)+Sens -> 1.036 | O75: 21.53799779 | Q75: =IF(B75<=120,VLOOKUP(B75,Lookups!$A$3:$I$103,8,FALSE),"") ->  | R75: =VLOOKUP(A75,Trends!$A$3:$H$94,7)+Sens -> 1.0475 | S75: 28.25467251 | T75: =IF(B75<=120,VLOOKUP(B75,Lookups!$A$3:$I$103,9,FALSE),"") ->  | U75: =VLOOKUP(A75,Trends!$A$3:$H$94,8)+Sens -> 1.0475 | V75: 28.25467251 | AH75: =IF($B75<121,VLOOKUP($B75,Lookups!A:F,6)*(1-VLOOKUP($B75,Lookups!$N$3:$P$103,2))^($A75-$A$3),"") ->  | AI75: =IF($B75<121,VLOOKUP($B75,Lookups!A:G,7)*(1-VLOOKUP($B75,Lookups!$N$3:$P$103,3))^($A75-$A$3),"") -> 
A76: 2097 | B76: 165 | D76: =VLOOKUP(B76,Lookups!A:B,2) -> 17707.23977 | E76: =VLOOKUP(B76,Lookups!A:C,3) -> 2203.965 | G76: =VLOOKUP(B76,Lookups!A:D,4) -> 169401.0034 | H76: =VLOOKUP(B76,Lookups!A:E,5) -> 163549.4017 | J76: =VLOOKUP(A76,Trends!$A$3:$H$94,IF(ExFlg=0,4,2))+Sens -> 1.038 | K76: 19.36183439 | L76: =VLOOKUP(A76,Trends!$A$3:$H$94,IF(ExFlg=0,5,3))+Sens -> 1.038 | M76: 19.36183439 | N76: =VLOOKUP(A76,Trends!$A$3:$H$94,6)+Sens -> 1.036 | O76: 22.31336571 | Q76: =IF(B76<=120,VLOOKUP(B76,Lookups!$A$3:$I$103,8,FALSE),"") ->  | R76: =VLOOKUP(A76,Trends!$A$3:$H$94,7)+Sens -> 1.0475 | S76: 29.59676946 | T76: =IF(B76<=120,VLOOKUP(B76,Lookups!$A$3:$I$103,9,FALSE),"") ->  | U76: =VLOOKUP(A76,Trends!$A$3:$H$94,8)+Sens -> 1.0475 | V76: 29.59676946 | AH76: =IF($B76<121,VLOOKUP($B76,Lookups!A:F,6)*(1-VLOOKUP($B76,Lookups!$N$3:$P$103,2))^($A76-$A$3),"") ->  | AI76: =IF($B76<121,VLOOKUP($B76,Lookups!A:G,7)*(1-VLOOKUP($B76,Lookups!$N$3:$P$103,3))^($A76-$A$3),"") -> 
A77: 2098 | B77: 166 | D77: =VLOOKUP(B77,Lookups!A:B,2) -> 17707.23977 | E77: =VLOOKUP(B77,Lookups!A:C,3) -> 2203.965 | G77: =VLOOKUP(B77,Lookups!A:D,4) -> 169401.0034 | H77: =VLOOKUP(B77,Lookups!A:E,5) -> 163549.4017 | J77: =VLOOKUP(A77,Trends!$A$3:$H$94,IF(ExFlg=0,4,2))+Sens -> 1.038 | K77: 20.0975841 | L77: =VLOOKUP(A77,Trends!$A$3:$H$94,IF(ExFlg=0,5,3))+Sens -> 1.038 | M77: 20.0975841 | N77: =VLOOKUP(A77,Trends!$A$3:$H$94,6)+Sens -> 1.036 | O77: 23.11664687 | Q77: =IF(B77<=120,VLOOKUP(B77,Lookups!$A$3:$I$103,8,FALSE),"") ->  | R77: =VLOOKUP(A77,Trends!$A$3:$H$94,7)+Sens -> 1.0475 | S77: 31.00261601 | T77: =IF(B77<=120,VLOOKUP(B77,Lookups!$A$3:$I$103,9,FALSE),"") ->  | U77: =VLOOKUP(A77,Trends!$A$3:$H$94,8)+Sens -> 1.0475 | V77: 31.00261601 | AH77: =IF($B77<121,VLOOKUP($B77,Lookups!A:F,6)*(1-VLOOKUP($B77,Lookups!$N$3:$P$103,2))^($A77-$A$3),"") ->  | AI77: =IF($B77<121,VLOOKUP($B77,Lookups!A:G,7)*(1-VLOOKUP($B77,Lookups!$N$3:$P$103,3))^($A77-$A$3),"") -> 
A78: 2099 | B78: 167 | D78: =VLOOKUP(B78,Lookups!A:B,2) -> 17707.23977 | E78: =VLOOKUP(B78,Lookups!A:C,3) -> 2203.965 | G78: =VLOOKUP(B78,Lookups!A:D,4) -> 169401.0034 | H78: =VLOOKUP(B78,Lookups!A:E,5) -> 163549.4017 | J78: =VLOOKUP(A78,Trends!$A$3:$H$94,IF(ExFlg=0,4,2))+Sens -> 1.038 | K78: 20.8612923 | L78: =VLOOKUP(A78,Trends!$A$3:$H$94,IF(ExFlg=0,5,3))+Sens -> 1.038 | M78: 20.8612923 | N78: =VLOOKUP(A78,Trends!$A$3:$H$94,6)+Sens -> 1.036 | O78: 23.94884616 | Q78: =IF(B78<=120,VLOOKUP(B78,Lookups!$A$3:$I$103,8,FALSE),"") ->  | R78: =VLOOKUP(A78,Trends!$A$3:$H$94,7)+Sens -> 1.0475 | S78: 32.47524027 | T78: =IF(B78<=120,VLOOKUP(B78,Lookups!$A$3:$I$103,9,FALSE),"") ->  | U78: =VLOOKUP(A78,Trends!$A$3:$H$94,8)+Sens -> 1.0475 | V78: 32.47524027 | AH78: =IF($B78<121,VLOOKUP($B78,Lookups!A:F,6)*(1-VLOOKUP($B78,Lookups!$N$3:$P$103,2))^($A78-$A$3),"") ->  | AI78: =IF($B78<121,VLOOKUP($B78,Lookups!A:G,7)*(1-VLOOKUP($B78,Lookups!$N$3:$P$103,3))^($A78-$A$3),"") -> 
A79: 2100 | B79: 168 | D79: =VLOOKUP(B79,Lookups!A:B,2) -> 17707.23977 | E79: =VLOOKUP(B79,Lookups!A:C,3) -> 2203.965 | G79: =VLOOKUP(B79,Lookups!A:D,4) -> 169401.0034 | H79: =VLOOKUP(B79,Lookups!A:E,5) -> 163549.4017 | J79: =VLOOKUP(A79,Trends!$A$3:$H$94,IF(ExFlg=0,4,2))+Sens -> 1.038 | K79: 21.6540214 | L79: =VLOOKUP(A79,Trends!$A$3:$H$94,IF(ExFlg=0,5,3))+Sens -> 1.038 | M79: 21.6540214 | N79: =VLOOKUP(A79,Trends!$A$3:$H$94,6)+Sens -> 1.036 | O79: 24.81100462 | Q79: =IF(B79<=120,VLOOKUP(B79,Lookups!$A$3:$I$103,8,FALSE),"") ->  | R79: =VLOOKUP(A79,Trends!$A$3:$H$94,7)+Sens -> 1.0475 | S79: 34.01781418 | T79: =IF(B79<=120,VLOOKUP(B79,Lookups!$A$3:$I$103,9,FALSE),"") ->  | U79: =VLOOKUP(A79,Trends!$A$3:$H$94,8)+Sens -> 1.0475 | V79: 34.01781418 | AH79: =IF($B79<121,VLOOKUP($B79,Lookups!A:F,6)*(1-VLOOKUP($B79,Lookups!$N$3:$P$103,2))^($A79-$A$3),"") ->  | AI79: =IF($B79<121,VLOOKUP($B79,Lookups!A:G,7)*(1-VLOOKUP($B79,Lookups!$N$3:$P$103,3))^($A79-$A$3),"") -> 
A80: 2101 | B80: 169 | D80: =VLOOKUP(B80,Lookups!A:B,2) -> 17707.23977 | E80: =VLOOKUP(B80,Lookups!A:C,3) -> 2203.965 | G80: =VLOOKUP(B80,Lookups!A:D,4) -> 169401.0034 | H80: =VLOOKUP(B80,Lookups!A:E,5) -> 163549.4017 | J80: =VLOOKUP(A80,Trends!$A$3:$H$94,IF(ExFlg=0,4,2))+Sens -> 1.038 | K80: 22.47687422 | L80: =VLOOKUP(A80,Trends!$A$3:$H$94,IF(ExFlg=0,5,3))+Sens -> 1.038 | M80: 22.47687422 | N80: =VLOOKUP(A80,Trends!$A$3:$H$94,6)+Sens -> 1.036 | O80: 25.70420079 | Q80: =IF(B80<=120,VLOOKUP(B80,Lookups!$A$3:$I$103,8,FALSE),"") ->  | R80: =VLOOKUP(A80,Trends!$A$3:$H$94,7)+Sens -> 1.0475 | S80: 35.63366035 | T80: =IF(B80<=120,VLOOKUP(B80,Lookups!$A$3:$I$103,9,FALSE),"") ->  | U80: =VLOOKUP(A80,Trends!$A$3:$H$94,8)+Sens -> 1.0475 | V80: 35.63366035 | AH80: =IF($B80<121,VLOOKUP($B80,Lookups!A:F,6)*(1-VLOOKUP($B80,Lookups!$N$3:$P$103,2))^($A80-$A$3),"") ->  | AI80: =IF($B80<121,VLOOKUP($B80,Lookups!A:G,7)*(1-VLOOKUP($B80,Lookups!$N$3:$P$103,3))^($A80-$A$3),"") -> 
A81: 2102 | B81: 170 | D81: =VLOOKUP(B81,Lookups!A:B,2) -> 17707.23977 | E81: =VLOOKUP(B81,Lookups!A:C,3) -> 2203.965 | G81: =VLOOKUP(B81,Lookups!A:D,4) -> 169401.0034 | H81: =VLOOKUP(B81,Lookups!A:E,5) -> 163549.4017 | J81: =VLOOKUP(A81,Trends!$A$3:$H$94,IF(ExFlg=0,4,2))+Sens -> 1.038 | K81: 23.33099544 | L81: =VLOOKUP(A81,Trends!$A$3:$H$94,IF(ExFlg=0,5,3))+Sens -> 1.038 | M81: 23.33099544 | N81: =VLOOKUP(A81,Trends!$A$3:$H$94,6)+Sens -> 1.036 | O81: 26.62955202 | Q81: =IF(B81<=120,VLOOKUP(B81,Lookups!$A$3:$I$103,8,FALSE),"") ->  | R81: =VLOOKUP(A81,Trends!$A$3:$H$94,7)+Sens -> 1.0475 | S81: 37.32625922 | T81: =IF(B81<=120,VLOOKUP(B81,Lookups!$A$3:$I$103,9,FALSE),"") ->  | U81: =VLOOKUP(A81,Trends!$A$3:$H$94,8)+Sens -> 1.0475 | V81: 37.32625922 | AH81: =IF($B81<121,VLOOKUP($B81,Lookups!A:F,6)*(1-VLOOKUP($B81,Lookups!$N$3:$P$103,2))^($A81-$A$3),"") ->  | AI81: =IF($B81<121,VLOOKUP($B81,Lookups!A:G,7)*(1-VLOOKUP($B81,Lookups!$N$3:$P$103,3))^($A81-$A$3),"") -> 
A82: 2103 | B82: 171 | D82: =VLOOKUP(B82,Lookups!A:B,2) -> 17707.23977 | E82: =VLOOKUP(B82,Lookups!A:C,3) -> 2203.965 | G82: =VLOOKUP(B82,Lookups!A:D,4) -> 169401.0034 | H82: =VLOOKUP(B82,Lookups!A:E,5) -> 163549.4017 | J82: =VLOOKUP(A82,Trends!$A$3:$H$94,IF(ExFlg=0,4,2))+Sens -> 1.038 | K82: 24.21757326 | L82: =VLOOKUP(A82,Trends!$A$3:$H$94,IF(ExFlg=0,5,3))+Sens -> 1.038 | M82: 24.21757326 | N82: =VLOOKUP(A82,Trends!$A$3:$H$94,6)+Sens -> 1.036 | O82: 27.58821589 | Q82: =IF(B82<=120,VLOOKUP(B82,Lookups!$A$3:$I$103,8,FALSE),"") ->  | R82: =VLOOKUP(A82,Trends!$A$3:$H$94,7)+Sens -> 1.0475 | S82: 39.09925653 | T82: =IF(B82<=120,VLOOKUP(B82,Lookups!$A$3:$I$103,9,FALSE),"") ->  | U82: =VLOOKUP(A82,Trends!$A$3:$H$94,8)+Sens -> 1.0475 | V82: 39.09925653 | AH82: =IF($B82<121,VLOOKUP($B82,Lookups!A:F,6)*(1-VLOOKUP($B82,Lookups!$N$3:$P$103,2))^($A82-$A$3),"") ->  | AI82: =IF($B82<121,VLOOKUP($B82,Lookups!A:G,7)*(1-VLOOKUP($B82,Lookups!$N$3:$P$103,3))^($A82-$A$3),"") -> 
A83: 2104 | B83: 172 | D83: =VLOOKUP(B83,Lookups!A:B,2) -> 17707.23977 | E83: =VLOOKUP(B83,Lookups!A:C,3) -> 2203.965 | G83: =VLOOKUP(B83,Lookups!A:D,4) -> 169401.0034 | H83: =VLOOKUP(B83,Lookups!A:E,5) -> 163549.4017 | J83: =VLOOKUP(A83,Trends!$A$3:$H$94,IF(ExFlg=0,4,2))+Sens -> 1.038 | K83: 25.13784105 | L83: =VLOOKUP(A83,Trends!$A$3:$H$94,IF(ExFlg=0,5,3))+Sens -> 1.038 | M83: 25.13784105 | N83: =VLOOKUP(A83,Trends!$A$3:$H$94,6)+Sens -> 1.036 | O83: 28.58139166 | Q83: =IF(B83<=120,VLOOKUP(B83,Lookups!$A$3:$I$103,8,FALSE),"") ->  | R83: =VLOOKUP(A83,Trends!$A$3:$H$94,7)+Sens -> 1.0475 | S83: 40.95647122 | T83: =IF(B83<=120,VLOOKUP(B83,Lookups!$A$3:$I$103,9,FALSE),"") ->  | U83: =VLOOKUP(A83,Trends!$A$3:$H$94,8)+Sens -> 1.0475 | V83: 40.95647122 | AH83: =IF($B83<121,VLOOKUP($B83,Lookups!A:F,6)*(1-VLOOKUP($B83,Lookups!$N$3:$P$103,2))^($A83-$A$3),"") ->  | AI83: =IF($B83<121,VLOOKUP($B83,Lookups!A:G,7)*(1-VLOOKUP($B83,Lookups!$N$3:$P$103,3))^($A83-$A$3),"") -> 
A84: 2105 | B84: 173 | D84: =VLOOKUP(B84,Lookups!A:B,2) -> 17707.23977 | E84: =VLOOKUP(B84,Lookups!A:C,3) -> 2203.965 | G84: =VLOOKUP(B84,Lookups!A:D,4) -> 169401.0034 | H84: =VLOOKUP(B84,Lookups!A:E,5) -> 163549.4017 | J84: =VLOOKUP(A84,Trends!$A$3:$H$94,IF(ExFlg=0,4,2))+Sens -> 1.038 | K84: 26.09307901 | L84: =VLOOKUP(A84,Trends!$A$3:$H$94,IF(ExFlg=0,5,3))+Sens -> 1.038 | M84: 26.09307901 | N84: =VLOOKUP(A84,Trends!$A$3:$H$94,6)+Sens -> 1.036 | O84: 29.61032176 | Q84: =IF(B84<=120,VLOOKUP(B84,Lookups!$A$3:$I$103,8,FALSE),"") ->  | R84: =VLOOKUP(A84,Trends!$A$3:$H$94,7)+Sens -> 1.0475 | S84: 42.9019036 | T84: =IF(B84<=120,VLOOKUP(B84,Lookups!$A$3:$I$103,9,FALSE),"") ->  | U84: =VLOOKUP(A84,Trends!$A$3:$H$94,8)+Sens -> 1.0475 | V84: 42.9019036 | AH84: =IF($B84<121,VLOOKUP($B84,Lookups!A:F,6)*(1-VLOOKUP($B84,Lookups!$N$3:$P$103,2))^($A84-$A$3),"") ->  | AI84: =IF($B84<121,VLOOKUP($B84,Lookups!A:G,7)*(1-VLOOKUP($B84,Lookups!$N$3:$P$103,3))^($A84-$A$3),"") -> 
A85: 2106 | B85: 174 | D85: =VLOOKUP(B85,Lookups!A:B,2) -> 17707.23977 | E85: =VLOOKUP(B85,Lookups!A:C,3) -> 2203.965 | G85: =VLOOKUP(B85,Lookups!A:D,4) -> 169401.0034 | H85: =VLOOKUP(B85,Lookups!A:E,5) -> 163549.4017 | J85: =VLOOKUP(A85,Trends!$A$3:$H$94,IF(ExFlg=0,4,2))+Sens -> 1.038 | K85: 27.08461601 | L85: =VLOOKUP(A85,Trends!$A$3:$H$94,IF(ExFlg=0,5,3))+Sens -> 1.038 | M85: 27.08461601 | N85: =VLOOKUP(A85,Trends!$A$3:$H$94,6)+Sens -> 1.036 | O85: 30.67629335 | Q85: =IF(B85<=120,VLOOKUP(B85,Lookups!$A$3:$I$103,8,FALSE),"") ->  | R85: =VLOOKUP(A85,Trends!$A$3:$H$94,7)+Sens -> 1.0475 | S85: 44.93974402 | T85: =IF(B85<=120,VLOOKUP(B85,Lookups!$A$3:$I$103,9,FALSE),"") ->  | U85: =VLOOKUP(A85,Trends!$A$3:$H$94,8)+Sens -> 1.0475 | V85: 44.93974402 | AH85: =IF($B85<121,VLOOKUP($B85,Lookups!A:F,6)*(1-VLOOKUP($B85,Lookups!$N$3:$P$103,2))^($A85-$A$3),"") ->  | AI85: =IF($B85<121,VLOOKUP($B85,Lookups!A:G,7)*(1-VLOOKUP($B85,Lookups!$N$3:$P$103,3))^($A85-$A$3),"") -> 
A86: 2107 | B86: 175 | D86: =VLOOKUP(B86,Lookups!A:B,2) -> 17707.23977 | E86: =VLOOKUP(B86,Lookups!A:C,3) -> 2203.965 | G86: =VLOOKUP(B86,Lookups!A:D,4) -> 169401.0034 | H86: =VLOOKUP(B86,Lookups!A:E,5) -> 163549.4017 | J86: =VLOOKUP(A86,Trends!$A$3:$H$94,IF(ExFlg=0,4,2))+Sens -> 1.038 | K86: 28.11383142 | L86: =VLOOKUP(A86,Trends!$A$3:$H$94,IF(ExFlg=0,5,3))+Sens -> 1.038 | M86: 28.11383142 | N86: =VLOOKUP(A86,Trends!$A$3:$H$94,6)+Sens -> 1.036 | O86: 31.78063991 | Q86: =IF(B86<=120,VLOOKUP(B86,Lookups!$A$3:$I$103,8,FALSE),"") ->  | R86: =VLOOKUP(A86,Trends!$A$3:$H$94,7)+Sens -> 1.0475 | S86: 47.07438186 | T86: =IF(B86<=120,VLOOKUP(B86,Lookups!$A$3:$I$103,9,FALSE),"") ->  | U86: =VLOOKUP(A86,Trends!$A$3:$H$94,8)+Sens -> 1.0475 | V86: 47.07438186 | AH86: =IF($B86<121,VLOOKUP($B86,Lookups!A:F,6)*(1-VLOOKUP($B86,Lookups!$N$3:$P$103,2))^($A86-$A$3),"") ->  | AI86: =IF($B86<121,VLOOKUP($B86,Lookups!A:G,7)*(1-VLOOKUP($B86,Lookups!$N$3:$P$103,3))^($A86-$A$3),"") -> 
A87: 2108 | B87: 176 | D87: =VLOOKUP(B87,Lookups!A:B,2) -> 17707.23977 | E87: =VLOOKUP(B87,Lookups!A:C,3) -> 2203.965 | G87: =VLOOKUP(B87,Lookups!A:D,4) -> 169401.0034 | H87: =VLOOKUP(B87,Lookups!A:E,5) -> 163549.4017 | J87: =VLOOKUP(A87,Trends!$A$3:$H$94,IF(ExFlg=0,4,2))+Sens -> 1.038 | K87: 29.18215701 | L87: =VLOOKUP(A87,Trends!$A$3:$H$94,IF(ExFlg=0,5,3))+Sens -> 1.038 | M87: 29.18215701 | N87: =VLOOKUP(A87,Trends!$A$3:$H$94,6)+Sens -> 1.036 | O87: 32.92474294 | Q87: =IF(B87<=120,VLOOKUP(B87,Lookups!$A$3:$I$103,8,FALSE),"") ->  | R87: =VLOOKUP(A87,Trends!$A$3:$H$94,7)+Sens -> 1.0475 | S87: 49.310415 | T87: =IF(B87<=120,VLOOKUP(B87,Lookups!$A$3:$I$103,9,FALSE),"") ->  | U87: =VLOOKUP(A87,Trends!$A$3:$H$94,8)+Sens -> 1.0475 | V87: 49.310415 | AH87: =IF($B87<121,VLOOKUP($B87,Lookups!A:F,6)*(1-VLOOKUP($B87,Lookups!$N$3:$P$103,2))^($A87-$A$3),"") ->  | AI87: =IF($B87<121,VLOOKUP($B87,Lookups!A:G,7)*(1-VLOOKUP($B87,Lookups!$N$3:$P$103,3))^($A87-$A$3),"") -> 
A88: 2109 | B88: 177 | D88: =VLOOKUP(B88,Lookups!A:B,2) -> 17707.23977 | E88: =VLOOKUP(B88,Lookups!A:C,3) -> 2203.965 | G88: =VLOOKUP(B88,Lookups!A:D,4) -> 169401.0034 | H88: =VLOOKUP(B88,Lookups!A:E,5) -> 163549.4017 | J88: =VLOOKUP(A88,Trends!$A$3:$H$94,IF(ExFlg=0,4,2))+Sens -> 1.038 | K88: 30.29107898 | L88: =VLOOKUP(A88,Trends!$A$3:$H$94,IF(ExFlg=0,5,3))+Sens -> 1.038 | M88: 30.29107898 | N88: =VLOOKUP(A88,Trends!$A$3:$H$94,6)+Sens -> 1.036 | O88: 34.11003369 | Q88: =IF(B88<=120,VLOOKUP(B88,Lookups!$A$3:$I$103,8,FALSE),"") ->  | R88: =VLOOKUP(A88,Trends!$A$3:$H$94,7)+Sens -> 1.0475 | S88: 51.65265971 | T88: =IF(B88<=120,VLOOKUP(B88,Lookups!$A$3:$I$103,9,FALSE),"") ->  | U88: =VLOOKUP(A88,Trends!$A$3:$H$94,8)+Sens -> 1.0475 | V88: 51.65265971 | AH88: =IF($B88<121,VLOOKUP($B88,Lookups!A:F,6)*(1-VLOOKUP($B88,Lookups!$N$3:$P$103,2))^($A88-$A$3),"") ->  | AI88: =IF($B88<121,VLOOKUP($B88,Lookups!A:G,7)*(1-VLOOKUP($B88,Lookups!$N$3:$P$103,3))^($A88-$A$3),"") -> 
A89: 2110 | B89: 178 | D89: =VLOOKUP(B89,Lookups!A:B,2) -> 17707.23977 | E89: =VLOOKUP(B89,Lookups!A:C,3) -> 2203.965 | G89: =VLOOKUP(B89,Lookups!A:D,4) -> 169401.0034 | H89: =VLOOKUP(B89,Lookups!A:E,5) -> 163549.4017 | J89: =VLOOKUP(A89,Trends!$A$3:$H$94,IF(ExFlg=0,4,2))+Sens -> 1.038 | K89: 31.44213998 | L89: =VLOOKUP(A89,Trends!$A$3:$H$94,IF(ExFlg=0,5,3))+Sens -> 1.038 | M89: 31.44213998 | N89: =VLOOKUP(A89,Trends!$A$3:$H$94,6)+Sens -> 1.036 | O89: 35.3379949 | Q89: =IF(B89<=120,VLOOKUP(B89,Lookups!$A$3:$I$103,8,FALSE),"") ->  | R89: =VLOOKUP(A89,Trends!$A$3:$H$94,7)+Sens -> 1.0475 | S89: 54.10616105 | T89: =IF(B89<=120,VLOOKUP(B89,Lookups!$A$3:$I$103,9,FALSE),"") ->  | U89: =VLOOKUP(A89,Trends!$A$3:$H$94,8)+Sens -> 1.0475 | V89: 54.10616105 | AH89: =IF($B89<121,VLOOKUP($B89,Lookups!A:F,6)*(1-VLOOKUP($B89,Lookups!$N$3:$P$103,2))^($A89-$A$3),"") ->  | AI89: =IF($B89<121,VLOOKUP($B89,Lookups!A:G,7)*(1-VLOOKUP($B89,Lookups!$N$3:$P$103,3))^($A89-$A$3),"") -> 
A90: 2111 | B90: 179 | D90: =VLOOKUP(B90,Lookups!A:B,2) -> 17707.23977 | E90: =VLOOKUP(B90,Lookups!A:C,3) -> 2203.965 | G90: =VLOOKUP(B90,Lookups!A:D,4) -> 169401.0034 | H90: =VLOOKUP(B90,Lookups!A:E,5) -> 163549.4017 | J90: =VLOOKUP(A90,Trends!$A$3:$H$94,IF(ExFlg=0,4,2))+Sens -> 1.038 | K90: 32.6369413 | L90: =VLOOKUP(A90,Trends!$A$3:$H$94,IF(ExFlg=0,5,3))+Sens -> 1.038 | M90: 32.6369413 | N90: =VLOOKUP(A90,Trends!$A$3:$H$94,6)+Sens -> 1.036 | O90: 36.61016272 | Q90: =IF(B90<=120,VLOOKUP(B90,Lookups!$A$3:$I$103,8,FALSE),"") ->  | R90: =VLOOKUP(A90,Trends!$A$3:$H$94,7)+Sens -> 1.0475 | S90: 56.6762037 | T90: =IF(B90<=120,VLOOKUP(B90,Lookups!$A$3:$I$103,9,FALSE),"") ->  | U90: =VLOOKUP(A90,Trends!$A$3:$H$94,8)+Sens -> 1.0475 | V90: 56.6762037 | AH90: =IF($B90<121,VLOOKUP($B90,Lookups!A:F,6)*(1-VLOOKUP($B90,Lookups!$N$3:$P$103,2))^($A90-$A$3),"") ->  | AI90: =IF($B90<121,VLOOKUP($B90,Lookups!A:G,7)*(1-VLOOKUP($B90,Lookups!$N$3:$P$103,3))^($A90-$A$3),"") -> 
A91: 2112 | B91: 180 | D91: =VLOOKUP(B91,Lookups!A:B,2) -> 17707.23977 | E91: =VLOOKUP(B91,Lookups!A:C,3) -> 2203.965 | G91: =VLOOKUP(B91,Lookups!A:D,4) -> 169401.0034 | H91: =VLOOKUP(B91,Lookups!A:E,5) -> 163549.4017 | J91: =VLOOKUP(A91,Trends!$A$3:$H$94,IF(ExFlg=0,4,2))+Sens -> 1.038 | K91: 33.87714507 | L91: =VLOOKUP(A91,Trends!$A$3:$H$94,IF(ExFlg=0,5,3))+Sens -> 1.038 | M91: 33.87714507 | N91: =VLOOKUP(A91,Trends!$A$3:$H$94,6)+Sens -> 1.036 | O91: 37.92812858 | Q91: =IF(B91<=120,VLOOKUP(B91,Lookups!$A$3:$I$103,8,FALSE),"") ->  | R91: =VLOOKUP(A91,Trends!$A$3:$H$94,7)+Sens -> 1.0475 | S91: 59.36832338 | T91: =IF(B91<=120,VLOOKUP(B91,Lookups!$A$3:$I$103,9,FALSE),"") ->  | U91: =VLOOKUP(A91,Trends!$A$3:$H$94,8)+Sens -> 1.0475 | V91: 59.36832338 | AH91: =IF($B91<121,VLOOKUP($B91,Lookups!A:F,6)*(1-VLOOKUP($B91,Lookups!$N$3:$P$103,2))^($A91-$A$3),"") ->  | AI91: =IF($B91<121,VLOOKUP($B91,Lookups!A:G,7)*(1-VLOOKUP($B91,Lookups!$N$3:$P$103,3))^($A91-$A$3),"") -> 
A92: 2113 | B92: 181 | D92: =VLOOKUP(B92,Lookups!A:B,2) -> 17707.23977 | E92: =VLOOKUP(B92,Lookups!A:C,3) -> 2203.965 | G92: =VLOOKUP(B92,Lookups!A:D,4) -> 169401.0034 | H92: =VLOOKUP(B92,Lookups!A:E,5) -> 163549.4017 | J92: =VLOOKUP(A92,Trends!$A$3:$H$94,IF(ExFlg=0,4,2))+Sens -> 1.038 | K92: 35.16447658 | L92: =VLOOKUP(A92,Trends!$A$3:$H$94,IF(ExFlg=0,5,3))+Sens -> 1.038 | M92: 35.16447658 | N92: =VLOOKUP(A92,Trends!$A$3:$H$94,6)+Sens -> 1.036 | O92: 39.2935412 | Q92: =IF(B92<=120,VLOOKUP(B92,Lookups!$A$3:$I$103,8,FALSE),"") ->  | R92: =VLOOKUP(A92,Trends!$A$3:$H$94,7)+Sens -> 1.0475 | S92: 62.18831874 | T92: =IF(B92<=120,VLOOKUP(B92,Lookups!$A$3:$I$103,9,FALSE),"") ->  | U92: =VLOOKUP(A92,Trends!$A$3:$H$94,8)+Sens -> 1.0475 | V92: 62.18831874 | AH92: =IF($B92<121,VLOOKUP($B92,Lookups!A:F,6)*(1-VLOOKUP($B92,Lookups!$N$3:$P$103,2))^($A92-$A$3),"") ->  | AI92: =IF($B92<121,VLOOKUP($B92,Lookups!A:G,7)*(1-VLOOKUP($B92,Lookups!$N$3:$P$103,3))^($A92-$A$3),"") -> 
A93: 2114 | B93: 182 | D93: =VLOOKUP(B93,Lookups!A:B,2) -> 17707.23977 | E93: =VLOOKUP(B93,Lookups!A:C,3) -> 2203.965 | G93: =VLOOKUP(B93,Lookups!A:D,4) -> 169401.0034 | H93: =VLOOKUP(B93,Lookups!A:E,5) -> 163549.4017 | K93: 36.50072669 | M93: 36.50072669 | O93: 40.70810869 | Q93: =IF(B93<=120,VLOOKUP(B93,Lookups!$A$3:$I$103,8,FALSE),"") ->  | S93: 65.14226388 | T93: =IF(B93<=120,VLOOKUP(B93,Lookups!$A$3:$I$103,9,FALSE),"") ->  | V93: 65.14226388 | AH93: =IF($B93<121,VLOOKUP($B93,Lookups!A:F,6)*(1-VLOOKUP($B93,Lookups!$N$3:$P$103,2))^($A93-$A$3),"") ->  | AI93: =IF($B93<121,VLOOKUP($B93,Lookups!A:G,7)*(1-VLOOKUP($B93,Lookups!$N$3:$P$103,3))^($A93-$A$3),"") -> 
AP95: =SUM(AP3:AP93) -> 259138.6307 | AQ95: Sum
AP96: =B1 -> 0 | AQ96: Count
AP97: =AP95*AP96 -> 0 | AQ97: Aggregate
AP100: Total OPEB Liability | AQ100: =AP97 -> 0
AP101: Expected Benefit Payments | AQ101: =SUM(AO3:AP3)*AP96 -> 0

Sheet Log (hidden)
A1: EoP = End of Period | B1: Actives Cohort | G1: Inactive Cohorts
A2: BoP = Beginning of Period | B2: 1 | C2: 2 | D2: 3 | E2: 4 | G2: 1 | H2: 2 | I2: 3 | J2: 4
G3: < 75 | H3: 75-79 | I3: 80-85 | J3: 85+ | L3: Total
A4: Run 1 - EoP Data, BoP Discount Rate, New HC Assumptions
A5: Service Cost (EANC) | L5: =SUM(B5:E5) -> 0
A6: Total OPEB Liability (TOL) | G6: 0 | H6: 0 | I6: 0 | J6: 0 | L6: =SUM(B6:E6,G6:J6) -> 0
A7: Expected Benefit Payments | G7: 0 | H7: 0 | I7: 0 | J7: 0 | L7: =SUM(B7:E7,G7:J7) -> 0
A9: Run 2 - EoP Data, EoP Discount Rate, New HC Assumptions
A10: Service Cost (EANC) | L10: =SUM(B10:E10) -> 0
A11: Total OPEB Liability (TOL) | G11: 0 | H11: 0 | I11: 0 | J11: 0 | L11: =SUM(B11:E11,G11:J11) -> 0
A12: Expected Benefit Payments | G12: 0 | H12: 0 | I12: 0 | J12: 0 | L12: =SUM(B12:E12,G12:J12) -> 0
A14: Run 3 - EoP Data, EoP Discount Rate, New HC Assumptions -1% Sensitvity
A15: Service Cost (EANC) | L15: =SUM(B15:E15) -> 0
A16: Total OPEB Liability (TOL) | G16: 0 | H16: 0 | I16: 0 | J16: 0 | L16: =SUM(B16:E16,G16:J16) -> 0
A17: Expected Benefit Payments | G17: 0 | H17: 0 | I17: 0 | J17: 0 | L17: =SUM(B17:E17,G17:J17) -> 0
A19: Run 4 - EoP Data, EoP Discount Rate, New HC Assumptions +1% Sensitvity
A20: Service Cost (EANC) | L20: =SUM(B20:E20) -> 0
A21: Total OPEB Liability (TOL) | G21: 0 | H21: 0 | I21: 0 | J21: 0 | L21: =SUM(B21:E21,G21:J21) -> 0
A22: Expected Benefit Payments | G22: 0 | H22: 0 | I22: 0 | J22: 0 | L22: =SUM(B22:E22,G22:J22) -> 0
A24: Run 5 - EoP Data, EoP Discount Rate -1% Sensitivity, New HC Assumptions
A25: Service Cost (EANC) | L25: =SUM(B25:E25) -> 0
A26: Total OPEB Liability (TOL) | G26: 0 | H26: 0 | I26: 0 | J26: 0 | L26: =SUM(B26:E26,G26:J26) -> 0
A27: Expected Benefit Payments | G27: 0 | H27: 0 | I27: 0 | J27: 0 | L27: =SUM(B27:E27,G27:J27) -> 0
A28: PVFB
A29: Run 6 - EoP Data, EoP Discount Rate +1% Sensitivity, New HC Assumptions
A30: Service Cost (EANC) | L30: =SUM(B30:E30) -> 0
A31: Total OPEB Liability (TOL) | G31: 0 | H31: 0 | I31: 0 | J31: 0 | L31: =SUM(B31:E31,G31:J31) -> 0
A32: Expected Benefit Payments | G32: 0 | H32: 0 | I32: 0 | J32: 0 | L32: =SUM(B32:E32,G32:J32) -> 0

Sheet Lookups (hidden)
B1: Medical | C1: Medicare | D1: LTC Inst. | E1: LTC Non- | F1: Mortality | G1: Mortality | H1: Institutional LTC Rate | I1: Non-Inst. LTC Rate | K1: =ToolYear - 1 & " Discount" -> 2023 Discount | L1: 0.0365 | O1: MP-2017 Ultimate | R1: Medical | S1: Medicare | T1: LTC Inst. | U1: LTC Non- | W1: Mortality | X1: Mortality
A2: Age | B2: Cost | C2: Cost | D2: Cost | E2: Inst. Cost | F2: Male | G2: Female | K2: =ToolYear & " Discount" -> 2024 Discount | L2: 0.0393 | N2: Age | O2: Male | P2: Female | R2: Cost | S2: Cost | T2: Cost | U2: Inst. Cost | W2: Male | X2: Female
A3: 20 | B3: =R3*PRODUCT(IF(Trends!$A$3:$A$94<ToolYear,IF(ExFlg=1,Trends!$B$3:$B$94,Trends!$D$3:$D$94),1)) -> 0 | C3: 0 | D3: =T3*PRODUCT(IF(Trends!$A$3:$A$94<ToolYear,Trends!$G$3:$G$94,1)) -> 0 | E3: =U3*PRODUCT(IF(Trends!$A$3:$A$94<ToolYear,Trends!$H$3:$H$94,1)) -> 0 | F3: =W3*(1-O3)^(ToolYear-MortBaseYear) -> 0.0008122773349 | G3: =X3*(1-P3)^(ToolYear-MortBaseYear) -> 0.0002997173054 | H3: 0 | I3: 0 | N3: 20 | O3: 0.01 | P3: 0.01 | R3: 0 | S3: 0 | T3: 0 | U3: 0 | W3: 0.000935 | X3: 0.000345 | Z3: Sources
A4: =1+A3 -> 21 | B4: =R4*PRODUCT(IF(Trends!$A$3:$A$94<ToolYear,IF(ExFlg=1,Trends!$B$3:$B$94,Trends!$D$3:$D$94),1)) -> 0 | C4: 0 | D4: =T4*PRODUCT(IF(Trends!$A$3:$A$94<ToolYear,Trends!$G$3:$G$94,1)) -> 0 | E4: =U4*PRODUCT(IF(Trends!$A$3:$A$94<ToolYear,Trends!$H$3:$H$94,1)) -> 0 | F4: 0.0008339959803 | G4: 0.0003170922217 | H4: 0 | I4: 0 | L4: Int Rt | N4: 21 | O4: 0.01 | P4: 0.01 | R4: 0 | S4: 0 | T4: 0 | U4: 0 | W4: 0.00096 | X4: 0.000365 | Z4: Mortality Assumption
A5: 22 | B5: =R5*PRODUCT(IF(Trends!$A$3:$A$94<ToolYear,IF(ExFlg=1,Trends!$B$3:$B$94,Trends!$D$3:$D$94),1)) -> 0 | C5: 0 | D5: =T5*PRODUCT(IF(Trends!$A$3:$A$94<ToolYear,Trends!$G$3:$G$94,1)) -> 0 | E5: =U5*PRODUCT(IF(Trends!$A$3:$A$94<ToolYear,Trends!$H$3:$H$94,1)) -> 0 | F5: 0.0008339959803 | G5: 0.0003301234089 | H5: 0 | I5: 0 | L5: 0.0365 | N5: 22 | O5: 0.01 | P5: 0.01 | R5: 0 | S5: 0 | T5: 0 | U5: 0 | W5: 0.00096 | X5: 0.00038 | Z5: Medical, Medicare, and LTC Costs
A6: 23 | B6: =R6*PRODUCT(IF(Trends!$A$3:$A$94<ToolYear,IF(ExFlg=1,Trends!$B$3:$B$94,Trends!$D$3:$D$94),1)) -> 0 | C6: 0 | D6: =T6*PRODUCT(IF(Trends!$A$3:$A$94<ToolYear,Trends!$G$3:$G$94,1)) -> 0 | E6: =U6*PRODUCT(IF(Trends!$A$3:$A$94<ToolYear,Trends!$H$3:$H$94,1)) -> 0 | F6: 0.0008253085221 | G6: 0.000338810867 | H6: 0 | I6: 0 | N6: 23 | O6: 0.01 | P6: 0.01 | R6: 0 | S6: 0 | T6: 0 | U6: 0 | W6: 0.00095 | X6: 0.00039 | Z6: LTC Probabilities
A7: 24 | B7: =R7*PRODUCT(IF(Trends!$A$3:$A$94<ToolYear,IF(ExFlg=1,Trends!$B$3:$B$94,Trends!$D$3:$D$94),1)) -> 0 | C7: 0 | D7: =T7*PRODUCT(IF(Trends!$A$3:$A$94<ToolYear,Trends!$G$3:$G$94,1)) -> 0 | E7: =U7*PRODUCT(IF(Trends!$A$3:$A$94<ToolYear,Trends!$H$3:$H$94,1)) -> 0 | F7: 0.0008209647931 | G7: 0.0003518420542 | H7: 0 | I7: 0 | L7: Sens | N7: 24 | O7: 0.01 | P7: 0.01 | R7: 0 | S7: 0 | T7: 0 | U7: 0 | W7: 0.000945 | X7: 0.000405 | Z7: Discount Rate
A8: 25 | B8: =R8*PRODUCT(IF(Trends!$A$3:$A$94<ToolYear,IF(ExFlg=1,Trends!$B$3:$B$94,Trends!$D$3:$D$94),1)) -> 0 | C8: 0 | D8: =T8*PRODUCT(IF(Trends!$A$3:$A$94<ToolYear,Trends!$G$3:$G$94,1)) -> 0 | E8: =U8*PRODUCT(IF(Trends!$A$3:$A$94<ToolYear,Trends!$H$3:$H$94,1)) -> 0 | F8: 0.0008209647931 | G8: 0.0003692169704 | H8: 0 | I8: 0 | L8: 0 | N8: 25 | O8: 0.01 | P8: 0.01 | R8: 0 | S8: 0 | T8: 0 | U8: 0 | W8: 0.000945 | X8: 0.000425 | Z8: 2022 Milliman Letter
A9: 26 | B9: =R9*PRODUCT(IF(Trends!$A$3:$A$94<ToolYear,IF(ExFlg=1,Trends!$B$3:$B$94,Trends!$D$3:$D$94),1)) -> 0 | C9: 0 | D9: =T9*PRODUCT(IF(Trends!$A$3:$A$94<ToolYear,Trends!$G$3:$G$94,1)) -> 0 | E9: =U9*PRODUCT(IF(Trends!$A$3:$A$94<ToolYear,Trends!$H$3:$H$94,1)) -> 0 | F9: 0.0008383397093 | G9: 0.0003996230739 | H9: 0 | I9: 0 | N9: 26 | O9: 0.01 | P9: 0.01 | R9: 0 | S9: 0 | T9: 0 | U9: 0 | W9: 0.000965 | X9: 0.00046
A10: 27 | B10: =R10*PRODUCT(IF(Trends!$A$3:$A$94<ToolYear,IF(ExFlg=1,Trends!$B$3:$B$94,Trends!$D$3:$D$94),1)) -> 0 | C10: 0 | D10: =T10*PRODUCT(IF(Trends!$A$3:$A$94<ToolYear,Trends!$G$3:$G$94,1)) -> 0 | E10: =U10*PRODUCT(IF(Trends!$A$3:$A$94<ToolYear,Trends!$H$3:$H$94,1)) -> 0 | F10: 0.0008557146256 | G10: 0.0004213417192 | H10: 0 | I10: 0 | L10: ExFlg | N10: 27 | O10: 0.01 | P10: 0.01 | R10: 0 | S10: 0 | T10: 0 | U10: 0 | W10: 0.000985 | X10: 0.000485
A11: 28 | B11: =R11*PRODUCT(IF(Trends!$A$3:$A$94<ToolYear,IF(ExFlg=1,Trends!$B$3:$B$94,Trends!$D$3:$D$94),1)) -> 0 | C11: 0 | D11: =T11*PRODUCT(IF(Trends!$A$3:$A$94<ToolYear,Trends!$G$3:$G$94,1)) -> 0 | E11: =U11*PRODUCT(IF(Trends!$A$3:$A$94<ToolYear,Trends!$H$3:$H$94,1)) -> 0 | F11: 0.0008730895418 | G11: 0.0004517478226 | H11: 0 | I11: 0 | L11: 0 | N11: 28 | O11: 0.01 | P11: 0.01 | R11: 0 | S11: 0 | T11: 0 | U11: 0 | W11: 0.001005 | X11: 0.00052
A12: 29 | B12: =R12*PRODUCT(IF(Trends!$A$3:$A$94<ToolYear,IF(ExFlg=1,Trends!$B$3:$B$94,Trends!$D$3:$D$94),1)) -> 0 | C12: 0 | D12: =T12*PRODUCT(IF(Trends!$A$3:$A$94<ToolYear,Trends!$G$3:$G$94,1)) -> 0 | E12: =U12*PRODUCT(IF(Trends!$A$3:$A$94<ToolYear,Trends!$H$3:$H$94,1)) -> 0 | F12: 0.0008948081872 | G12: 0.0004821539261 | H12: 0 | I12: 0 | N12: 29 | O12: 0.01 | P12: 0.01 | R12: 0 | S12: 0 | T12: 0 | U12: 0 | W12: 0.00103 | X12: 0.000555
A13: 30 | B13: =R13*PRODUCT(IF(Trends!$A$3:$A$94<ToolYear,IF(ExFlg=1,Trends!$B$3:$B$94,Trends!$D$3:$D$94),1)) -> 0 | C13: 0 | D13: =T13*PRODUCT(IF(Trends!$A$3:$A$94<ToolYear,Trends!$G$3:$G$94,1)) -> 0 | E13: =U13*PRODUCT(IF(Trends!$A$3:$A$94<ToolYear,Trends!$H$3:$H$94,1)) -> 0 | F13: 0.0009121831034 | G13: 0.0005082163005 | H13: 0 | I13: 0 | L13: Valuation Year | N13: 30 | O13: 0.01 | P13: 0.01 | R13: 0 | S13: 0 | T13: 0 | U13: 0 | W13: 0.00105 | X13: 0.000585
A14: 31 | B14: =R14*PRODUCT(IF(Trends!$A$3:$A$94<ToolYear,IF(ExFlg=1,Trends!$B$3:$B$94,Trends!$D$3:$D$94),1)) -> 0 | C14: 0 | D14: =T14*PRODUCT(IF(Trends!$A$3:$A$94<ToolYear,Trends!$G$3:$G$94,1)) -> 0 | E14: =U14*PRODUCT(IF(Trends!$A$3:$A$94<ToolYear,Trends!$H$3:$H$94,1)) -> 0 | F14: 0.0009339017487 | G14: 0.000542966133 | H14: 0 | I14: 0 | L14: 2022 | N14: 31 | O14: 0.01 | P14: 0.01 | R14: 0 | S14: 0 | T14: 0 | U14: 0 | W14: 0.001075 | X14: 0.000625
A15: 32 | B15: =R15*PRODUCT(IF(Trends!$A$3:$A$94<ToolYear,IF(ExFlg=1,Trends!$B$3:$B$94,Trends!$D$3:$D$94),1)) -> 0 | C15: 0 | D15: =T15*PRODUCT(IF(Trends!$A$3:$A$94<ToolYear,Trends!$G$3:$G$94,1)) -> 0 | E15: =U15*PRODUCT(IF(Trends!$A$3:$A$94<ToolYear,Trends!$H$3:$H$94,1)) -> 0 | F15: 0.000955620394 | G15: 0.0005777159655 | H15: 0 | I15: 0 | N15: 32 | O15: 0.01 | P15: 0.01 | R15: 0 | S15: 0 | T15: 0 | U15: 0 | W15: 0.0011 | X15: 0.000665
A16: 33 | B16: =R16*PRODUCT(IF(Trends!$A$3:$A$94<ToolYear,IF(ExFlg=1,Trends!$B$3:$B$94,Trends!$D$3:$D$94),1)) -> 0 | C16: 0 | D16: =T16*PRODUCT(IF(Trends!$A$3:$A$94<ToolYear,Trends!$G$3:$G$94,1)) -> 0 | E16: =U16*PRODUCT(IF(Trends!$A$3:$A$94<ToolYear,Trends!$H$3:$H$94,1)) -> 0 | F16: 0.0009773390394 | G16: 0.000612465798 | H16: 0 | I16: 0 | L16: Tool Year | N16: 33 | O16: 0.01 | P16: 0.01 | R16: 0 | S16: 0 | T16: 0 | U16: 0 | W16: 0.001125 | X16: 0.000705
A17: 34 | B17: =R17*PRODUCT(IF(Trends!$A$3:$A$94<ToolYear,IF(ExFlg=1,Trends!$B$3:$B$94,Trends!$D$3:$D$94),1)) -> 0 | C17: 0 | D17: =T17*PRODUCT(IF(Trends!$A$3:$A$94<ToolYear,Trends!$G$3:$G$94,1)) -> 0 | E17: =U17*PRODUCT(IF(Trends!$A$3:$A$94<ToolYear,Trends!$H$3:$H$94,1)) -> 0 | F17: 0.001003401414 | G17: 0.0006559030886 | H17: 0 | I17: 0 | L17: 2024 | N17: 34 | O17: 0.01 | P17: 0.01 | R17: 0 | S17: 0 | T17: 0 | U17: 0 | W17: 0.001155 | X17: 0.000755
A18: 35 | B18: =R18*PRODUCT(IF(Trends!$A$3:$A$94<ToolYear,IF(ExFlg=1,Trends!$B$3:$B$94,Trends!$D$3:$D$94),1)) -> 0 | C18: 0 | D18: =T18*PRODUCT(IF(Trends!$A$3:$A$94<ToolYear,Trends!$G$3:$G$94,1)) -> 0 | E18: =U18*PRODUCT(IF(Trends!$A$3:$A$94<ToolYear,Trends!$H$3:$H$94,1)) -> 0 | F18: 0.001033807517 | G18: 0.0006949966502 | H18: 0 | I18: 0 | N18: 35 | O18: 0.01 | P18: 0.01 | R18: 0 | S18: 0 | T18: 0 | U18: 0 | W18: 0.00119 | X18: 0.0008
A19: 36 | B19: =R19*PRODUCT(IF(Trends!$A$3:$A$94<ToolYear,IF(ExFlg=1,Trends!$B$3:$B$94,Trends!$D$3:$D$94),1)) -> 0 | C19: 0 | D19: =T19*PRODUCT(IF(Trends!$A$3:$A$94<ToolYear,Trends!$G$3:$G$94,1)) -> 0 | E19: =U19*PRODUCT(IF(Trends!$A$3:$A$94<ToolYear,Trends!$H$3:$H$94,1)) -> 0 | F19: 0.00106855735 | G19: 0.0007427776699 | H19: 0 | I19: 0 | L19: Mortality Base | N19: 36 | O19: 0.01 | P19: 0.01 | R19: 0 | S19: 0 | T19: 0 | U19: 0 | W19: 0.00123 | X19: 0.000855
A20: 37 | B20: =R20*PRODUCT(IF(Trends!$A$3:$A$94<ToolYear,IF(ExFlg=1,Trends!$B$3:$B$94,Trends!$D$3:$D$94),1)) -> 0 | C20: 0 | D20: =T20*PRODUCT(IF(Trends!$A$3:$A$94<ToolYear,Trends!$G$3:$G$94,1)) -> 0 | E20: =U20*PRODUCT(IF(Trends!$A$3:$A$94<ToolYear,Trends!$H$3:$H$94,1)) -> 0 | F20: 0.001107650911 | G20: 0.0007905586896 | H20: 0 | I20: 0 | L20: 2010 | N20: 37 | O20: 0.01 | P20: 0.01 | R20: 0 | S20: 0 | T20: 0 | U20: 0 | W20: 0.001275 | X20: 0.00091
A21: 38 | B21: =R21*PRODUCT(IF(Trends!$A$3:$A$94<ToolYear,IF(ExFlg=1,Trends!$B$3:$B$94,Trends!$D$3:$D$94),1)) -> 0 | C21: 0 | D21: =T21*PRODUCT(IF(Trends!$A$3:$A$94<ToolYear,Trends!$G$3:$G$94,1)) -> 0 | E21: =U21*PRODUCT(IF(Trends!$A$3:$A$94<ToolYear,Trends!$H$3:$H$94,1)) -> 0 | F21: 0.001155431931 | G21: 0.0008383397093 | H21: 0 | I21: 0 | N21: 38 | O21: 0.01 | P21: 0.01 | R21: 0 | S21: 0 | T21: 0 | U21: 0 | W21: 0.00133 | X21: 0.000965
A22: 39 | B22: =R22*PRODUCT(IF(Trends!$A$3:$A$94<ToolYear,IF(ExFlg=1,Trends!$B$3:$B$94,Trends!$D$3:$D$94),1)) -> 0 | C22: 0 | D22: =T22*PRODUCT(IF(Trends!$A$3:$A$94<ToolYear,Trends!$G$3:$G$94,1)) -> 0 | E22: =U22*PRODUCT(IF(Trends!$A$3:$A$94<ToolYear,Trends!$H$3:$H$94,1)) -> 0 | F22: 0.001211900409 | G22: 0.0008948081872 | H22: 0 | I22: 0 | N22: 39 | O22: 0.01 | P22: 0.01 | R22: 0 | S22: 0 | T22: 0 | U22: 0 | W22: 0.001395 | X22: 0.00103
A23: 40 | B23: =R23*PRODUCT(IF(Trends!$A$3:$A$94<ToolYear,IF(ExFlg=1,Trends!$B$3:$B$94,Trends!$D$3:$D$94),1)) -> 0 | C23: 0 | D23: =T23*PRODUCT(IF(Trends!$A$3:$A$94<ToolYear,Trends!$G$3:$G$94,1)) -> 0 | E23: =U23*PRODUCT(IF(Trends!$A$3:$A$94<ToolYear,Trends!$H$3:$H$94,1)) -> 0 | F23: 0.001272712616 | G23: 0.000955620394 | H23: 0 | I23: 0 | N23: 40 | O23: 0.01 | P23: 0.01 | R23: 0 | S23: 0 | T23: 0 | U23: 0 | W23: 0.001465 | X23: 0.0011
A24: 41 | B24: =R24*PRODUCT(IF(Trends!$A$3:$A$94<ToolYear,IF(ExFlg=1,Trends!$B$3:$B$94,Trends!$D$3:$D$94),1)) -> 0 | C24: 0 | D24: =T24*PRODUCT(IF(Trends!$A$3:$A$94<ToolYear,Trends!$G$3:$G$94,1)) -> 0 | E24: =U24*PRODUCT(IF(Trends!$A$3:$A$94<ToolYear,Trends!$H$3:$H$94,1)) -> 0 | F24: 0.00134655601 | G24: 0.00102077633 | H24: 0 | I24: 0 | N24: 41 | O24: 0.01 | P24: 0.01 | R24: 0 | S24: 0 | T24: 0 | U24: 0 | W24: 0.00155 | X24: 0.001175
A25: 42 | B25: =R25*PRODUCT(IF(Trends!$A$3:$A$94<ToolYear,IF(ExFlg=1,Trends!$B$3:$B$94,Trends!$D$3:$D$94),1)) -> 0 | C25: 0 | D25: =T25*PRODUCT(IF(Trends!$A$3:$A$94<ToolYear,Trends!$G$3:$G$94,1)) -> 0 | E25: =U25*PRODUCT(IF(Trends!$A$3:$A$94<ToolYear,Trends!$H$3:$H$94,1)) -> 0 | F25: 0.001429086862 | G25: 0.001090275995 | H25: 0 | I25: 0 | N25: 42 | O25: 0.01 | P25: 0.01 | R25: 0 | S25: 0 | T25: 0 | U25: 0 | W25: 0.001645 | X25: 0.001255
A26: 43 | B26: =R26*PRODUCT(IF(Trends!$A$3:$A$94<ToolYear,IF(ExFlg=1,Trends!$B$3:$B$94,Trends!$D$3:$D$94),1)) -> 0 | C26: 0 | D26: =T26*PRODUCT(IF(Trends!$A$3:$A$94<ToolYear,Trends!$G$3:$G$94,1)) -> 0 | E26: =U26*PRODUCT(IF(Trends!$A$3:$A$94<ToolYear,Trends!$H$3:$H$94,1)) -> 0 | F26: 0.001520305172 | G26: 0.00115977566 | H26: 0 | I26: 0 | N26: 43 | O26: 0.01 | P26: 0.01 | R26: 0 | S26: 0 | T26: 0 | U26: 0 | W26: 0.00175 | X26: 0.001335
A27: 44 | B27: =R27*PRODUCT(IF(Trends!$A$3:$A$94<ToolYear,IF(ExFlg=1,Trends!$B$3:$B$94,Trends!$D$3:$D$94),1)) -> 0 | C27: 0 | D27: =T27*PRODUCT(IF(Trends!$A$3:$A$94<ToolYear,Trends!$G$3:$G$94,1)) -> 0 | E27: =U27*PRODUCT(IF(Trends!$A$3:$A$94<ToolYear,Trends!$H$3:$H$94,1)) -> 0 | F27: 0.001620210941 | G27: 0.001237962783 | H27: 0 | I27: 0 | N27: 44 | O27: 0.01 | P27: 0.01 | R27: 0 | S27: 0 | T27: 0 | U27: 0 | W27: 0.001865 | X27: 0.001425
A28: 45 | B28: =R28*PRODUCT(IF(Trends!$A$3:$A$94<ToolYear,IF(ExFlg=1,Trends!$B$3:$B$94,Trends!$D$3:$D$94),1)) -> 0 | C28: 0 | D28: =T28*PRODUCT(IF(Trends!$A$3:$A$94<ToolYear,Trends!$G$3:$G$94,1)) -> 0 | E28: =U28*PRODUCT(IF(Trends!$A$3:$A$94<ToolYear,Trends!$H$3:$H$94,1)) -> 0 | F28: 0.001737491626 | G28: 0.001476867882 | H28: 0 | I28: 0 | N28: 45 | O28: 0.01 | P28: 0.01 | R28: 0 | S28: 0 | T28: 0 | U28: 0 | W28: 0.002 | X28: 0.0017
A29: 46 | B29: =R29*PRODUCT(IF(Trends!$A$3:$A$94<ToolYear,IF(ExFlg=1,Trends!$B$3:$B$94,Trends!$D$3:$D$94),1)) -> 0 | C29: 0 | D29: =T29*PRODUCT(IF(Trends!$A$3:$A$94<ToolYear,Trends!$G$3:$G$94,1)) -> 0 | E29: =U29*PRODUCT(IF(Trends!$A$3:$A$94<ToolYear,Trends!$H$3:$H$94,1)) -> 0 | F29: 0.002245707926 | G29: 0.001594148566 | H29: 0 | I29: 0 | N29: 46 | O29: 0.01 | P29: 0.01 | R29: 0 | S29: 0 | T29: 0 | U29: 0 | W29: 0.002585 | X29: 0.001835
A30: 47 | B30: =R30*PRODUCT(IF(Trends!$A$3:$A$94<ToolYear,IF(ExFlg=1,Trends!$B$3:$B$94,Trends!$D$3:$D$94),1)) -> 0 | C30: 0 | D30: =T30*PRODUCT(IF(Trends!$A$3:$A$94<ToolYear,Trends!$G$3:$G$94,1)) -> 0 | E30: =U30*PRODUCT(IF(Trends!$A$3:$A$94<ToolYear,Trends!$H$3:$H$94,1)) -> 0 | F30: 0.002432488276 | G30: 0.001728804167 | H30: 0 | I30: 0 | N30: 47 | O30: 0.01 | P30: 0.01 | R30: 0 | S30: 0 | T30: 0 | U30: 0 | W30: 0.0028 | X30: 0.00199
A31: 48 | B31: =R31*PRODUCT(IF(Trends!$A$3:$A$94<ToolYear,IF(ExFlg=1,Trends!$B$3:$B$94,Trends!$D$3:$D$94),1)) -> 0 | C31: 0 | D31: =T31*PRODUCT(IF(Trends!$A$3:$A$94<ToolYear,Trends!$G$3:$G$94,1)) -> 0 | E31: =U31*PRODUCT(IF(Trends!$A$3:$A$94<ToolYear,Trends!$H$3:$H$94,1)) -> 0 | F31: 0.002636643542 | G31: 0.001863459768 | H31: 0 | I31: 0 | N31: 48 | O31: 0.01 | P31: 0.01 | R31: 0 | S31: 0 | T31: 0 | U31: 0 | W31: 0.003035 | X31: 0.002145
A32: 49 | B32: =R32*PRODUCT(IF(Trends!$A$3:$A$94<ToolYear,IF(ExFlg=1,Trends!$B$3:$B$94,Trends!$D$3:$D$94),1)) -> 0 | C32: 0 | D32: =T32*PRODUCT(IF(Trends!$A$3:$A$94<ToolYear,Trends!$G$3:$G$94,1)) -> 0 | E32: =U32*PRODUCT(IF(Trends!$A$3:$A$94<ToolYear,Trends!$H$3:$H$94,1)) -> 0 | F32: 0.002853829995 | G32: 0.002019834015 | H32: 0 | I32: 0 | N32: 49 | O32: 0.01 | P32: 0.01 | R32: 0 | S32: 0 | T32: 0 | U32: 0 | W32: 0.003285 | X32: 0.002325
A33: 50 | B33: =R33*PRODUCT(IF(Trends!$A$3:$A$94<ToolYear,IF(ExFlg=1,Trends!$B$3:$B$94,Trends!$D$3:$D$94),1)) -> 0 | C33: 0 | D33: =T33*PRODUCT(IF(Trends!$A$3:$A$94<ToolYear,Trends!$G$3:$G$94,1)) -> 0 | E33: =U33*PRODUCT(IF(Trends!$A$3:$A$94<ToolYear,Trends!$H$3:$H$94,1)) -> 0 | F33: 0.003084047635 | G33: 0.002184895719 | H33: 0 | I33: 0 | N33: 50 | O33: 0.01 | P33: 0.01 | R33: 0 | S33: 0 | T33: 0 | U33: 0 | W33: 0.00355 | X33: 0.002515
A34: 51 | B34: =R34*PRODUCT(IF(Trends!$A$3:$A$94<ToolYear,IF(ExFlg=1,Trends!$B$3:$B$94,Trends!$D$3:$D$94),1)) -> 0 | C34: 0 | D34: =T34*PRODUCT(IF(Trends!$A$3:$A$94<ToolYear,Trends!$G$3:$G$94,1)) -> 0 | E34: =U34*PRODUCT(IF(Trends!$A$3:$A$94<ToolYear,Trends!$H$3:$H$94,1)) -> 0 | F34: 0.003309921547 | G34: 0.002432488276 | H34: 0 | I34: 0 | N34: 51 | O34: 0.01 | P34: 0.01 | R34: 0 | S34: 0 | T34: 0 | U34: 0 | W34: 0.00381 | X34: 0.0028
A35: 52 | B35: =R35*PRODUCT(IF(Trends!$A$3:$A$94<ToolYear,IF(ExFlg=1,Trends!$B$3:$B$94,Trends!$D$3:$D$94),1)) -> 0 | C35: 0 | D35: =T35*PRODUCT(IF(Trends!$A$3:$A$94<ToolYear,Trends!$G$3:$G$94,1)) -> 0 | E35: =U35*PRODUCT(IF(Trends!$A$3:$A$94<ToolYear,Trends!$H$3:$H$94,1)) -> 0 | F35: =W35*(1-O35)^(ToolYear-MortBaseYear) -> 0.003544482916 | G35: =X35*(1-P35)^(ToolYear-MortBaseYear) -> 0.002706143207 | H35: 0 | I35: 0 | N35: 52 | O35: 0.01 | P35: 0.01 | R35: 0 | S35: 0 | T35: 0 | U35: 0 | W35: 0.00408 | X35: 0.003115
A36: =1+A35 -> 53 | B36: =R36*PRODUCT(IF(Trends!$A$3:$A$94<ToolYear,IF(ExFlg=1,Trends!$B$3:$B$94,Trends!$D$3:$D$94),1)) -> 0 | C36: 0 | D36: =T36*PRODUCT(IF(Trends!$A$3:$A$94<ToolYear,Trends!$G$3:$G$94,1)) -> 0 | E36: =U36*PRODUCT(IF(Trends!$A$3:$A$94<ToolYear,Trends!$H$3:$H$94,1)) -> 0 | F36: 0.003783388015 | G36: 0.00301454797 | H36: 0 | I36: 0 | N36: 53 | O36: 0.01 | P36: 0.01 | R36: 0 | S36: 0 | T36: 0 | U36: 0 | W36: 0.004355 | X36: 0.00347
A37: 54 | B37: =R37*PRODUCT(IF(Trends!$A$3:$A$94<ToolYear,IF(ExFlg=1,Trends!$B$3:$B$94,Trends!$D$3:$D$94),1)) -> 0 | C37: 0 | D37: =T37*PRODUCT(IF(Trends!$A$3:$A$94<ToolYear,Trends!$G$3:$G$94,1)) -> 0 | E37: =U37*PRODUCT(IF(Trends!$A$3:$A$94<ToolYear,Trends!$H$3:$H$94,1)) -> 0 | F37: 0.004044011758 | G37: 0.003349015108 | H37: 0 | I37: 0 | N37: 54 | O37: 0.01 | P37: 0.01 | R37: 0 | S37: 0 | T37: 0 | U37: 0 | W37: 0.004655 | X37: 0.003855
A38: 55 | B38: =R38*PRODUCT(IF(Trends!$A$3:$A$94<ToolYear,IF(ExFlg=1,Trends!$B$3:$B$94,Trends!$D$3:$D$94),1)) -> 0 | C38: 0 | D38: =T38*PRODUCT(IF(Trends!$A$3:$A$94<ToolYear,Trends!$G$3:$G$94,1)) -> 0 | E38: =U38*PRODUCT(IF(Trends!$A$3:$A$94<ToolYear,Trends!$H$3:$H$94,1)) -> 0 | F38: 0.004322010419 | G38: 0.003718232079 | H38: 0 | I38: 0 | N38: 55 | O38: 0.01 | P38: 0.01 | R38: 0 | S38: 0 | T38: 0 | U38: 0 | W38: 0.004975 | X38: 0.00428
A39: 56 | B39: =R39*PRODUCT(IF(Trends!$A$3:$A$94<ToolYear,IF(ExFlg=1,Trends!$B$3:$B$94,Trends!$D$3:$D$94),1)) -> 0 | C39: 0 | D39: =T39*PRODUCT(IF(Trends!$A$3:$A$94<ToolYear,Trends!$G$3:$G$94,1)) -> 0 | E39: =U39*PRODUCT(IF(Trends!$A$3:$A$94<ToolYear,Trends!$H$3:$H$94,1)) -> 0 | F39: 0.00463910264 | G39: 0.004122198882 | H39: 0 | I39: 0 | N39: 56 | O39: 0.01 | P39: 0.01 | R39: 0 | S39: 0 | T39: 0 | U39: 0 | W39: 0.00534 | X39: 0.004745
A40: 57 | B40: =R40*PRODUCT(IF(Trends!$A$3:$A$94<ToolYear,IF(ExFlg=1,Trends!$B$3:$B$94,Trends!$D$3:$D$94),1)) -> 0 | C40: 0 | D40: =T40*PRODUCT(IF(Trends!$A$3:$A$94<ToolYear,Trends!$G$3:$G$94,1)) -> 0 | E40: =U40*PRODUCT(IF(Trends!$A$3:$A$94<ToolYear,Trends!$H$3:$H$94,1)) -> 0 | F40: 0.005003975882 | G40: 0.004565259246 | H40: 0 | I40: 0 | N40: 57 | O40: 0.01 | P40: 0.01 | R40: 0 | S40: 0 | T40: 0 | U40: 0 | W40: 0.00576 | X40: 0.005255
A41: 58 | B41: =R41*PRODUCT(IF(Trends!$A$3:$A$94<ToolYear,IF(ExFlg=1,Trends!$B$3:$B$94,Trends!$D$3:$D$94),1)) -> 0 | C41: 0 | D41: =T41*PRODUCT(IF(Trends!$A$3:$A$94<ToolYear,Trends!$G$3:$G$94,1)) -> 0 | E41: =U41*PRODUCT(IF(Trends!$A$3:$A$94<ToolYear,Trends!$H$3:$H$94,1)) -> 0 | F41: 0.00542966133 | G41: 0.005034381985 | H41: 0 | I41: 0 | N41: 58 | O41: 0.01 | P41: 0.01 | R41: 0 | S41: 0 | T41: 0 | U41: 0 | W41: 0.00625 | X41: 0.005795
A42: 59 | B42: =R42*PRODUCT(IF(Trends!$A$3:$A$94<ToolYear,IF(ExFlg=1,Trends!$B$3:$B$94,Trends!$D$3:$D$94),1)) -> 0 | C42: 0 | D42: =T42*PRODUCT(IF(Trends!$A$3:$A$94<ToolYear,Trends!$G$3:$G$94,1)) -> 0 | E42: =U42*PRODUCT(IF(Trends!$A$3:$A$94<ToolYear,Trends!$H$3:$H$94,1)) -> 0 | F42: 0.005924846443 | G42: 0.005533910827 | H42: 0 | I42: 0 | N42: 59 | O42: 0.01 | P42: 0.01 | R42: 0 | S42: 0 | T42: 0 | U42: 0 | W42: 0.00682 | X42: 0.00637
A43: 60 | B43: =R43*PRODUCT(IF(Trends!$A$3:$A$94<ToolYear,IF(ExFlg=1,Trends!$B$3:$B$94,Trends!$D$3:$D$94),1)) -> 0 | C43: 0 | D43: =T43*PRODUCT(IF(Trends!$A$3:$A$94<ToolYear,Trends!$G$3:$G$94,1)) -> 0 | E43: =U43*PRODUCT(IF(Trends!$A$3:$A$94<ToolYear,Trends!$H$3:$H$94,1)) -> 0 | F43: 0.006489531221 | G43: 0.006046470857 | H43: 0 | I43: 0 | N43: 60 | O43: 0.01 | P43: 0.01 | R43: 0 | S43: 0 | T43: 0 | U43: 0 | W43: 0.00747 | X43: 0.00696
A44: 61 | B44: =R44*PRODUCT(IF(Trends!$A$3:$A$94<ToolYear,IF(ExFlg=1,Trends!$B$3:$B$94,Trends!$D$3:$D$94),1)) -> 0 | C44: 0 | D44: =T44*PRODUCT(IF(Trends!$A$3:$A$94<ToolYear,Trends!$G$3:$G$94,1)) -> 0 | E44: =U44*PRODUCT(IF(Trends!$A$3:$A$94<ToolYear,Trends!$H$3:$H$94,1)) -> 0 | F44: 0.007123715665 | G44: 0.006593780719 | H44: 0 | I44: 0 | N44: 61 | O44: 0.01 | P44: 0.01 | R44: 0 | S44: 0 | T44: 0 | U44: 0 | W44: 0.0082 | X44: 0.00759
A45: 62 | B45: =R45*PRODUCT(IF(Trends!$A$3:$A$94<ToolYear,IF(ExFlg=1,Trends!$B$3:$B$94,Trends!$D$3:$D$94),1)) -> 0 | C45: 0 | D45: =T45*PRODUCT(IF(Trends!$A$3:$A$94<ToolYear,Trends!$G$3:$G$94,1)) -> 0 | E45: =U45*PRODUCT(IF(Trends!$A$3:$A$94<ToolYear,Trends!$H$3:$H$94,1)) -> 0 | F45: 0.007823056044 | G45: 0.007162809226 | H45: 0 | I45: 0 | N45: 62 | O45: 0.01 | P45: 0.01 | R45: 0 | S45: 0 | T45: 0 | U45: 0 | W45: 0.009005 | X45: 0.008245
A46: 63 | B46: =R46*PRODUCT(IF(Trends!$A$3:$A$94<ToolYear,IF(ExFlg=1,Trends!$B$3:$B$94,Trends!$D$3:$D$94),1)) -> 0 | C46: 0 | D46: =T46*PRODUCT(IF(Trends!$A$3:$A$94<ToolYear,Trends!$G$3:$G$94,1)) -> 0 | E46: =U46*PRODUCT(IF(Trends!$A$3:$A$94<ToolYear,Trends!$H$3:$H$94,1)) -> 0 | F46: 0.008574521172 | G46: 0.007770931295 | H46: 0 | I46: 0 | N46: 63 | O46: 0.01 | P46: 0.01 | R46: 0 | S46: 0 | T46: 0 | U46: 0 | W46: 0.00987 | X46: 0.008945
A47: 64 | B47: =R47*PRODUCT(IF(Trends!$A$3:$A$94<ToolYear,IF(ExFlg=1,Trends!$B$3:$B$94,Trends!$D$3:$D$94),1)) -> 0 | C47: 0 | D47: =T47*PRODUCT(IF(Trends!$A$3:$A$94<ToolYear,Trends!$G$3:$G$94,1)) -> 0 | E47: =U47*PRODUCT(IF(Trends!$A$3:$A$94<ToolYear,Trends!$H$3:$H$94,1)) -> 0 | F47: 0.00937376732 | G47: 0.008435521842 | H47: 0 | I47: 0 | N47: 64 | O47: 0.01 | P47: 0.01 | R47: 0 | S47: 0 | T47: 0 | U47: 0 | W47: 0.01079 | X47: 0.00971
A48: 65 | B48: =R48*PRODUCT(IF(Trends!$A$3:$A$94<ToolYear,IF(ExFlg=1,Trends!$C$3:$C$94,Trends!$E$3:$E$94),1)) -> 14712.53959 | C48: =S48*PRODUCT(IF(Trends!$A$3:$A$94<ToolYear,Trends!$F$3:$F$94,1)) -> 2203.965 | D48: =T48*PRODUCT(IF(Trends!$A$3:$A$94<ToolYear,Trends!$G$3:$G$94,1)) -> 237506.7583 | E48: =U48*PRODUCT(IF(Trends!$A$3:$A$94<ToolYear,Trends!$H$3:$H$94,1)) -> 191038.6067 | F48: 0.0102381694 | G48: 0.009178299512 | H48: 0.002257142857 | I48: 0.0069 | N48: 65 | O48: 0.01 | P48: 0.01 | R48: 13057.2 | S48: 2010 | T48: 216455.1429 | U48: 174105.7357 | W48: 0.011785 | X48: 0.010565
A49: 66 | B49: =R49*PRODUCT(IF(Trends!$A$3:$A$94<ToolYear,IF(ExFlg=1,Trends!$C$3:$C$94,Trends!$E$3:$E$94),1)) -> 15064.76976 | C49: =S49*PRODUCT(IF(Trends!$A$3:$A$94<ToolYear,Trends!$F$3:$F$94,1)) -> 2203.965 | D49: =T49*PRODUCT(IF(Trends!$A$3:$A$94<ToolYear,Trends!$G$3:$G$94,1)) -> 236656.0712 | E49: =U49*PRODUCT(IF(Trends!$A$3:$A$94<ToolYear,Trends!$H$3:$H$94,1)) -> 192067.1512 | F49: 0.01118510234 | G49: 0.01001229549 | H49: 0.002542857143 | I49: 0.0075 | N49: 66 | O49: 0.01 | P49: 0.01 | R49: 13369.8 | S49: 2010 | T49: 215679.8571 | U49: 175043.1143 | W49: 0.012875 | X49: 0.011525
A50: 67 | B50: =R50*PRODUCT(IF(Trends!$A$3:$A$94<ToolYear,IF(ExFlg=1,Trends!$C$3:$C$94,Trends!$E$3:$E$94),1)) -> 15425.51837 | C50: =S50*PRODUCT(IF(Trends!$A$3:$A$94<ToolYear,Trends!$F$3:$F$94,1)) -> 2203.965 | D50: =T50*PRODUCT(IF(Trends!$A$3:$A$94<ToolYear,Trends!$G$3:$G$94,1)) -> 235805.3842 | E50: =U50*PRODUCT(IF(Trends!$A$3:$A$94<ToolYear,Trends!$H$3:$H$94,1)) -> 193095.6957 | F50: 0.01222759731 | G50: 0.01094185351 | H50: 0.002828571429 | I50: 0.0081 | N50: 67 | O50: 0.01 | P50: 0.01 | R50: 13689.96 | S50: 2010 | T50: 214904.5714 | U50: 175980.4929 | W50: 0.014075 | X50: 0.012595
A51: 68 | B51: =R51*PRODUCT(IF(Trends!$A$3:$A$94<ToolYear,IF(ExFlg=1,Trends!$C$3:$C$94,Trends!$E$3:$E$94),1)) -> 15794.7854 | C51: =S51*PRODUCT(IF(Trends!$A$3:$A$94<ToolYear,Trends!$F$3:$F$94,1)) -> 2203.965 | D51: =T51*PRODUCT(IF(Trends!$A$3:$A$94<ToolYear,Trends!$G$3:$G$94,1)) -> 234954.6971 | E51: =U51*PRODUCT(IF(Trends!$A$3:$A$94<ToolYear,Trends!$H$3:$H$94,1)) -> 194124.2402 | F51: 0.01341343535 | G51: 0.01198869222 | H51: 0.003114285714 | I51: 0.0087 | N51: 68 | O51: 0.01 | P51: 0.01 | R51: 14017.68 | S51: 2010 | T51: 214129.2857 | U51: 176917.8714 | W51: 0.01544 | X51: 0.0138
A52: 69 | B52: =R52*PRODUCT(IF(Trends!$A$3:$A$94<ToolYear,IF(ExFlg=1,Trends!$C$3:$C$94,Trends!$E$3:$E$94),1)) -> 16172.84128 | C52: =S52*PRODUCT(IF(Trends!$A$3:$A$94<ToolYear,Trends!$F$3:$F$94,1)) -> 2203.965 | D52: =T52*PRODUCT(IF(Trends!$A$3:$A$94<ToolYear,Trends!$G$3:$G$94,1)) -> 234104.01 | E52: =U52*PRODUCT(IF(Trends!$A$3:$A$94<ToolYear,Trends!$H$3:$H$94,1)) -> 195152.7847 | F52: 0.01477736628 | G52: 0.01317453025 | H52: 0.0034 | I52: 0.0093 | N52: 69 | O52: 0.01 | P52: 0.01 | R52: 14353.2 | S52: 2010 | T52: 213354 | U52: 177855.25 | W52: 0.01701 | X52: 0.015165
A53: 70 | B53: =R53*PRODUCT(IF(Trends!$A$3:$A$94<ToolYear,IF(ExFlg=1,Trends!$C$3:$C$94,Trends!$E$3:$E$94),1)) -> 16560.09166 | C53: =S53*PRODUCT(IF(Trends!$A$3:$A$94<ToolYear,Trends!$F$3:$F$94,1)) -> 2203.965 | D53: =T53*PRODUCT(IF(Trends!$A$3:$A$94<ToolYear,Trends!$G$3:$G$94,1)) -> 233405.6847 | E53: =U53*PRODUCT(IF(Trends!$A$3:$A$94<ToolYear,Trends!$H$3:$H$94,1)) -> 195889.006 | F53: 0.0163497962 | G53: 0.01452108626 | H53: 0.0046 | I53: 0.01071428571 | N53: 70 | O53: 0.01 | P53: 0.01 | R53: 14696.88 | S53: 2010 | T53: 212717.5714 | U53: 178526.2157 | W53: 0.01882 | X53: 0.016715
A54: 71 | B54: =R54*PRODUCT(IF(Trends!$A$3:$A$94<ToolYear,IF(ExFlg=1,Trends!$C$3:$C$94,Trends!$E$3:$E$94),1)) -> 16956.53653 | C54: =S54*PRODUCT(IF(Trends!$A$3:$A$94<ToolYear,Trends!$F$3:$F$94,1)) -> 2203.965 | D54: =T54*PRODUCT(IF(Trends!$A$3:$A$94<ToolYear,Trends!$G$3:$G$94,1)) -> 232707.3595 | E54: =U54*PRODUCT(IF(Trends!$A$3:$A$94<ToolYear,Trends!$H$3:$H$94,1)) -> 196625.2273 | F54: 0.0181437563 | G54: 0.01605442262 | H54: 0.0058 | I54: 0.01212857143 | N54: 71 | O54: 0.01 | P54: 0.01 | R54: 15048.72 | S54: 2010 | T54: 212081.1429 | U54: 179197.1814 | W54: 0.020885 | X54: 0.01848
A55: 72 | B55: =R55*PRODUCT(IF(Trends!$A$3:$A$94<ToolYear,IF(ExFlg=1,Trends!$C$3:$C$94,Trends!$E$3:$E$94),1)) -> 17362.44631 | C55: =S55*PRODUCT(IF(Trends!$A$3:$A$94<ToolYear,Trends!$F$3:$F$94,1)) -> 2203.965 | D55: =T55*PRODUCT(IF(Trends!$A$3:$A$94<ToolYear,Trends!$G$3:$G$94,1)) -> 232009.0343 | E55: =U55*PRODUCT(IF(Trends!$A$3:$A$94<ToolYear,Trends!$H$3:$H$94,1)) -> 197361.4486 | F55: 0.02019399642 | G55: 0.0178006017 | H55: 0.007 | I55: 0.01354285714 | N55: 72 | O55: 0.01 | P55: 0.01 | R55: 15408.96 | S55: 2010 | T55: 211444.7143 | U55: 179868.1471 | W55: 0.023245 | X55: 0.02049
A56: 73 | B56: =R56*PRODUCT(IF(Trends!$A$3:$A$94<ToolYear,IF(ExFlg=1,Trends!$C$3:$C$94,Trends!$E$3:$E$94),1)) -> 17729.95557 | C56: =S56*PRODUCT(IF(Trends!$A$3:$A$94<ToolYear,Trends!$F$3:$F$94,1)) -> 2203.965 | D56: =T56*PRODUCT(IF(Trends!$A$3:$A$94<ToolYear,Trends!$G$3:$G$94,1)) -> 231310.7091 | E56: =U56*PRODUCT(IF(Trends!$A$3:$A$94<ToolYear,Trends!$H$3:$H$94,1)) -> 198097.67 | F56: 0.02250486028 | G56: 0.01978568589 | H56: 0.0082 | I56: 0.01495714286 | N56: 73 | O56: 0.01 | P56: 0.01 | R56: 15735.12 | S56: 2010 | T56: 210808.2857 | U56: 180539.1129 | W56: 0.025905 | X56: 0.022775
A57: 74 | B57: =R57*PRODUCT(IF(Trends!$A$3:$A$94<ToolYear,IF(ExFlg=1,Trends!$C$3:$C$94,Trends!$E$3:$E$94),1)) -> 18105.30719 | C57: =S57*PRODUCT(IF(Trends!$A$3:$A$94<ToolYear,Trends!$F$3:$F$94,1)) -> 2203.965 | D57: =T57*PRODUCT(IF(Trends!$A$3:$A$94<ToolYear,Trends!$G$3:$G$94,1)) -> 230612.3838 | E57: =U57*PRODUCT(IF(Trends!$A$3:$A$94<ToolYear,Trends!$H$3:$H$94,1)) -> 198833.8913 | F57: 0.0250937228 | G57: 0.02203139381 | H57: 0.0094 | I57: 0.01637142857 | N57: 74 | O57: 0.01 | P57: 0.01 | R57: 16068.24 | S57: 2010 | T57: 210171.8571 | U57: 181210.0786 | W57: 0.028885 | X57: 0.02536
A58: 75 | B58: =R58*PRODUCT(IF(Trends!$A$3:$A$94<ToolYear,IF(ExFlg=1,Trends!$C$3:$C$94,Trends!$E$3:$E$94),1)) -> 18488.63639 | C58: =S58*PRODUCT(IF(Trends!$A$3:$A$94<ToolYear,Trends!$F$3:$F$94,1)) -> 2203.965 | D58: =T58*PRODUCT(IF(Trends!$A$3:$A$94<ToolYear,Trends!$G$3:$G$94,1)) -> 229914.0586 | E58: =U58*PRODUCT(IF(Trends!$A$3:$A$94<ToolYear,Trends!$H$3:$H$94,1)) -> 199570.1126 | F58: 0.02796927144 | G58: 0.02455944413 | H58: 0.0106 | I58: 0.01778571429 | N58: 75 | O58: 0.01 | P58: 0.01 | R58: 16408.44 | S58: 2010 | T58: 209535.4286 | U58: 181881.0443 | W58: 0.032195 | X58: 0.02827
A59: 76 | B59: =R59*PRODUCT(IF(Trends!$A$3:$A$94<ToolYear,IF(ExFlg=1,Trends!$C$3:$C$94,Trends!$E$3:$E$94),1)) -> 18880.07837 | C59: =S59*PRODUCT(IF(Trends!$A$3:$A$94<ToolYear,Trends!$F$3:$F$94,1)) -> 2203.965 | D59: =T59*PRODUCT(IF(Trends!$A$3:$A$94<ToolYear,Trends!$G$3:$G$94,1)) -> 229215.7334 | E59: =U59*PRODUCT(IF(Trends!$A$3:$A$94<ToolYear,Trends!$H$3:$H$94,1)) -> 200306.3339 | F59: 0.03116625603 | G59: 0.027335087 | H59: 0.0118 | I59: 0.0192 | N59: 76 | O59: 0.01 | P59: 0.01 | R59: 16755.84 | S59: 2010 | T59: 208899 | U59: 182552.01 | W59: 0.035875 | X59: 0.031465
A60: 77 | B60: =R60*PRODUCT(IF(Trends!$A$3:$A$94<ToolYear,IF(ExFlg=1,Trends!$C$3:$C$94,Trends!$E$3:$E$94),1)) -> 19279.76835 | C60: =S60*PRODUCT(IF(Trends!$A$3:$A$94<ToolYear,Trends!$F$3:$F$94,1)) -> 2203.965 | D60: =T60*PRODUCT(IF(Trends!$A$3:$A$94<ToolYear,Trends!$G$3:$G$94,1)) -> 229431.5793 | E60: =U60*PRODUCT(IF(Trends!$A$3:$A$94<ToolYear,Trends!$H$3:$H$94,1)) -> 200977.5945 | F60: 0.03472811387 | G60: 0.03032791632 | H60: 0.01532857143 | I60: 0.02222857143 | N60: 77 | O60: 0.01 | P60: 0.01 | R60: 17110.56 | S60: 2010 | T60: 209095.7143 | U60: 183163.7729 | W60: 0.039975 | X60: 0.03491
A61: 78 | B61: =R61*PRODUCT(IF(Trends!$A$3:$A$94<ToolYear,IF(ExFlg=1,Trends!$C$3:$C$94,Trends!$E$3:$E$94),1)) -> 19385.91065 | C61: =S61*PRODUCT(IF(Trends!$A$3:$A$94<ToolYear,Trends!$F$3:$F$94,1)) -> 2203.965 | D61: =T61*PRODUCT(IF(Trends!$A$3:$A$94<ToolYear,Trends!$G$3:$G$94,1)) -> 229647.4253 | E61: =U61*PRODUCT(IF(Trends!$A$3:$A$94<ToolYear,Trends!$H$3:$H$94,1)) -> 201648.8552 | F61: 0.03870262596 | G61: 0.03355096329 | H61: 0.01885714286 | I61: 0.02525714286 | N61: 78 | O61: 0.01 | P61: 0.01 | R61: 17204.76 | S61: 2010 | T61: 209292.4286 | U61: 183775.5357 | W61: 0.04455 | X61: 0.03862
A62: 79 | B62: =R62*PRODUCT(IF(Trends!$A$3:$A$94<ToolYear,IF(ExFlg=1,Trends!$C$3:$C$94,Trends!$E$3:$E$94),1)) -> 19492.59381 | C62: =S62*PRODUCT(IF(Trends!$A$3:$A$94<ToolYear,Trends!$F$3:$F$94,1)) -> 2203.965 | D62: =T62*PRODUCT(IF(Trends!$A$3:$A$94<ToolYear,Trends!$G$3:$G$94,1)) -> 229863.2713 | E62: =U62*PRODUCT(IF(Trends!$A$3:$A$94<ToolYear,Trends!$H$3:$H$94,1)) -> 202320.1158 | F62: 0.04314626079 | G62: 0.03700857162 | H62: 0.02238571429 | I62: 0.02828571429 | N62: 79 | O62: 0.01 | P62: 0.01 | R62: 17299.44 | S62: 2010 | T62: 209489.1429 | U62: 184387.2986 | W62: 0.049665 | X62: 0.0426
A63: 80 | B63: =R63*PRODUCT(IF(Trends!$A$3:$A$94<ToolYear,IF(ExFlg=1,Trends!$C$3:$C$94,Trends!$E$3:$E$94),1)) -> 19599.81781 | C63: =S63*PRODUCT(IF(Trends!$A$3:$A$94<ToolYear,Trends!$F$3:$F$94,1)) -> 2203.965 | D63: =T63*PRODUCT(IF(Trends!$A$3:$A$94<ToolYear,Trends!$G$3:$G$94,1)) -> 230079.1173 | E63: =U63*PRODUCT(IF(Trends!$A$3:$A$94<ToolYear,Trends!$H$3:$H$94,1)) -> 202991.3764 | F63: 0.04814589294 | G63: 0.04073114743 | H63: 0.02591428571 | I63: 0.03131428571 | N63: 80 | O63: 0.01 | P63: 0.01 | R63: 17394.6 | S63: 2010 | T63: 209685.8571 | U63: 184999.0614 | W63: 0.05542 | X63: 0.046885
A64: 81 | B64: =R64*PRODUCT(IF(Trends!$A$3:$A$94<ToolYear,IF(ExFlg=1,Trends!$C$3:$C$94,Trends!$E$3:$E$94),1)) -> 19707.71788 | C64: =S64*PRODUCT(IF(Trends!$A$3:$A$94<ToolYear,Trends!$F$3:$F$94,1)) -> 2203.965 | D64: =T64*PRODUCT(IF(Trends!$A$3:$A$94<ToolYear,Trends!$G$3:$G$94,1)) -> 230294.9633 | E64: =U64*PRODUCT(IF(Trends!$A$3:$A$94<ToolYear,Trends!$H$3:$H$94,1)) -> 203662.637 | F64: 0.05377102208 | G64: 0.04474040936 | H64: 0.02944285714 | I64: 0.03434285714 | N64: 81 | O64: 0.01 | P64: 0.01 | R64: 17490.36 | S64: 2010 | T64: 209882.5714 | U64: 185610.8243 | W64: 0.061895 | X64: 0.0515
A65: 82 | B65: =R65*PRODUCT(IF(Trends!$A$3:$A$94<ToolYear,IF(ExFlg=1,Trends!$C$3:$C$94,Trends!$E$3:$E$94),1)) -> 19816.29401 | C65: =S65*PRODUCT(IF(Trends!$A$3:$A$94<ToolYear,Trends!$F$3:$F$94,1)) -> 2203.965 | D65: =T65*PRODUCT(IF(Trends!$A$3:$A$94<ToolYear,Trends!$G$3:$G$94,1)) -> 230510.8092 | E65: =U65*PRODUCT(IF(Trends!$A$3:$A$94<ToolYear,Trends!$H$3:$H$94,1)) -> 204333.8976 | F65: 0.06006508549 | G65: 0.04909716961 | H65: 0.03297142857 | I65: 0.03737142857 | N65: 82 | O65: 0.01 | P65: 0.01 | R65: 17586.72 | S65: 2010 | T65: 210079.2857 | U65: 186222.5871 | W65: 0.06914 | X65: 0.056515
A66: 83 | B66: =R66*PRODUCT(IF(Trends!$A$3:$A$94<ToolYear,IF(ExFlg=1,Trends!$C$3:$C$94,Trends!$E$3:$E$94),1)) -> 19500.30095 | C66: =S66*PRODUCT(IF(Trends!$A$3:$A$94<ToolYear,Trends!$F$3:$F$94,1)) -> 2203.965 | D66: =T66*PRODUCT(IF(Trends!$A$3:$A$94<ToolYear,Trends!$G$3:$G$94,1)) -> 230726.6552 | E66: =U66*PRODUCT(IF(Trends!$A$3:$A$94<ToolYear,Trends!$H$3:$H$94,1)) -> 205005.1583 | F66: 0.06747548728 | G66: 0.0538492092 | H66: 0.0365 | I66: 0.0404 | N66: 83 | O66: 0.01 | P66: 0.01 | R66: 17306.28 | S66: 2010 | T66: 210276 | U66: 186834.35 | W66: 0.07767 | X66: 0.061985
A67: 84 | B67: =R67*PRODUCT(IF(Trends!$A$3:$A$94<ToolYear,IF(ExFlg=1,Trends!$C$3:$C$94,Trends!$E$3:$E$94),1)) -> 19189.31078 | C67: =S67*PRODUCT(IF(Trends!$A$3:$A$94<ToolYear,Trends!$F$3:$F$94,1)) -> 2203.965 | D67: =T67*PRODUCT(IF(Trends!$A$3:$A$94<ToolYear,Trends!$G$3:$G$94,1)) -> 227742.902 | E67: =U67*PRODUCT(IF(Trends!$A$3:$A$94<ToolYear,Trends!$H$3:$H$94,1)) -> 202623.2657 | F67: =W67*(1-O67)^(ToolYear-MortBaseYear) -> 0.07590232166 | G67: =X67*(1-P67)^(ToolYear-MortBaseYear) -> 0.0591398712 | H67: 0.04432857143 | I67: 0.04582857143 | N67: 84 | O67: 0.01 | P67: 0.01 | R67: 17030.28 | S67: 2010 | T67: 207556.7143 | U67: 184663.5786 | W67: 0.08737 | X67: 0.068075
A68: =1+A67 -> 85 | B68: =R68*PRODUCT(IF(Trends!$A$3:$A$94<ToolYear,IF(ExFlg=1,Trends!$C$3:$C$94,Trends!$E$3:$E$94),1)) -> 18883.32349 | C68: =S68*PRODUCT(IF(Trends!$A$3:$A$94<ToolYear,Trends!$F$3:$F$94,1)) -> 2203.965 | D68: =T68*PRODUCT(IF(Trends!$A$3:$A$94<ToolYear,Trends!$G$3:$G$94,1)) -> 224759.1487 | E68: =U68*PRODUCT(IF(Trends!$A$3:$A$94<ToolYear,Trends!$H$3:$H$94,1)) -> 200241.3732 | F68: 0.08493727811 | G68: 0.06507340511 | H68: 0.05215714286 | I68: 0.05125714286 | N68: 85 | O68: 0.01 | P68: 0.01 | R68: 16758.72 | S68: 2010 | T68: 204837.4286 | U68: 182492.8071 | W68: 0.09777 | X68: 0.074905
A69: 86 | B69: =R69*PRODUCT(IF(Trends!$A$3:$A$94<ToolYear,IF(ExFlg=1,Trends!$C$3:$C$94,Trends!$E$3:$E$94),1)) -> 18582.20387 | C69: =S69*PRODUCT(IF(Trends!$A$3:$A$94<ToolYear,Trends!$F$3:$F$94,1)) -> 2203.965 | D69: =T69*PRODUCT(IF(Trends!$A$3:$A$94<ToolYear,Trends!$G$3:$G$94,1)) -> 221775.3955 | E69: =U69*PRODUCT(IF(Trends!$A$3:$A$94<ToolYear,Trends!$H$3:$H$94,1)) -> 197859.4807 | F69: 0.09467069573 | G69: 0.07174685055 | H69: 0.05998571429 | I69: 0.05668571429 | N69: 86 | O69: 0.0099 | P69: 0.0099 | R69: 16491.48 | S69: 2010 | T69: 202118.1429 | U69: 180322.0357 | W69: 0.10882 | X69: 0.08247
A70: 87 | B70: =R70*PRODUCT(IF(Trends!$A$3:$A$94<ToolYear,IF(ExFlg=1,Trends!$C$3:$C$94,Trends!$E$3:$E$94),1)) -> 18285.81671 | C70: =S70*PRODUCT(IF(Trends!$A$3:$A$94<ToolYear,Trends!$F$3:$F$94,1)) -> 2203.965 | D70: =T70*PRODUCT(IF(Trends!$A$3:$A$94<ToolYear,Trends!$G$3:$G$94,1)) -> 218791.6422 | E70: =U70*PRODUCT(IF(Trends!$A$3:$A$94<ToolYear,Trends!$H$3:$H$94,1)) -> 195477.5882 | F70: 0.1051986548 | G70: 0.07927850189 | H70: 0.06781428571 | I70: 0.06211428571 | N70: 87 | O70: 0.0097 | P70: 0.0097 | R70: 16228.44 | S70: 2010 | T70: 199398.8571 | U70: 178151.2643 | W70: 0.12058 | X70: 0.09087
A71: 88 | B71: =R71*PRODUCT(IF(Trends!$A$3:$A$94<ToolYear,IF(ExFlg=1,Trends!$C$3:$C$94,Trends!$E$3:$E$94),1)) -> 17994.16201 | C71: =S71*PRODUCT(IF(Trends!$A$3:$A$94<ToolYear,Trends!$F$3:$F$94,1)) -> 2203.965 | D71: =T71*PRODUCT(IF(Trends!$A$3:$A$94<ToolYear,Trends!$G$3:$G$94,1)) -> 215807.889 | E71: =U71*PRODUCT(IF(Trends!$A$3:$A$94<ToolYear,Trends!$H$3:$H$94,1)) -> 193095.6957 | F71: 0.1163339093 | G71: 0.08754202029 | H71: 0.07564285714 | I71: 0.06754285714 | N71: 88 | O71: 0.0096 | P71: 0.0096 | R71: 15969.6 | S71: 2010 | T71: 196679.5714 | U71: 175980.4929 | W71: 0.133155 | X71: 0.1002
A72: 89 | B72: =R72*PRODUCT(IF(Trends!$A$3:$A$94<ToolYear,IF(ExFlg=1,Trends!$C$3:$C$94,Trends!$E$3:$E$94),1)) -> 17707.23977 | C72: =S72*PRODUCT(IF(Trends!$A$3:$A$94<ToolYear,Trends!$F$3:$F$94,1)) -> 2203.965 | D72: =T72*PRODUCT(IF(Trends!$A$3:$A$94<ToolYear,Trends!$G$3:$G$94,1)) -> 212824.1358 | E72: =U72*PRODUCT(IF(Trends!$A$3:$A$94<ToolYear,Trends!$H$3:$H$94,1)) -> 190713.8031 | F72: 0.1285174904 | G72: 0.09687547404 | H72: 0.08347142857 | I72: 0.07297142857 | N72: 89 | O72: 0.0094 | P72: 0.0094 | R72: 15714.96 | S72: 2010 | T72: 193960.2857 | U72: 173809.7214 | W72: 0.146685 | X72: 0.11057
A73: 90 | B73: =R73*PRODUCT(IF(Trends!$A$3:$A$94<ToolYear,IF(ExFlg=1,Trends!$C$3:$C$94,Trends!$E$3:$E$94),1)) -> 17707.23977 | C73: =S73*PRODUCT(IF(Trends!$A$3:$A$94<ToolYear,Trends!$F$3:$F$94,1)) -> 2203.965 | D73: =T73*PRODUCT(IF(Trends!$A$3:$A$94<ToolYear,Trends!$G$3:$G$94,1)) -> 209840.3825 | E73: =U73*PRODUCT(IF(Trends!$A$3:$A$94<ToolYear,Trends!$H$3:$H$94,1)) -> 188331.9106 | F73: 0.1415880293 | G73: 0.1071155666 | H73: 0.0913 | I73: 0.0784 | N73: 90 | O73: 0.0093 | P73: 0.0093 | R73: 15714.96 | S73: 2010 | T73: 191241 | U73: 171638.95 | W73: 0.161375 | X73: 0.122085
A74: 91 | B74: =R74*PRODUCT(IF(Trends!$A$3:$A$94<ToolYear,IF(ExFlg=1,Trends!$C$3:$C$94,Trends!$E$3:$E$94),1)) -> 17707.23977 | C74: =S74*PRODUCT(IF(Trends!$A$3:$A$94<ToolYear,Trends!$F$3:$F$94,1)) -> 2203.965 | D74: =T74*PRODUCT(IF(Trends!$A$3:$A$94<ToolYear,Trends!$G$3:$G$94,1)) -> 204063.3284 | E74: =U74*PRODUCT(IF(Trends!$A$3:$A$94<ToolYear,Trends!$H$3:$H$94,1)) -> 184791.5522 | F74: 0.1556794713 | G74: 0.1183994578 | H74: 0.09974285714 | I74: 0.0811 | N74: 91 | O74: 0.0091 | P74: 0.0091 | R74: 15714.96 | S74: 2010 | T74: 185976 | U74: 168412.3943 | W74: 0.176935 | X74: 0.134565
A75: 92 | B75: =R75*PRODUCT(IF(Trends!$A$3:$A$94<ToolYear,IF(ExFlg=1,Trends!$C$3:$C$94,Trends!$E$3:$E$94),1)) -> 17707.23977 | C75: =S75*PRODUCT(IF(Trends!$A$3:$A$94<ToolYear,Trends!$F$3:$F$94,1)) -> 2203.965 | D75: =T75*PRODUCT(IF(Trends!$A$3:$A$94<ToolYear,Trends!$G$3:$G$94,1)) -> 198286.2742 | E75: =U75*PRODUCT(IF(Trends!$A$3:$A$94<ToolYear,Trends!$H$3:$H$94,1)) -> 181251.1938 | F75: 0.1698211396 | G75: 0.1303429122 | H75: 0.1081857143 | I75: 0.0838 | N75: 92 | O75: 0.009 | P75: 0.009 | R75: 15714.96 | S75: 2010 | T75: 180711 | U75: 165185.8386 | W75: 0.192735 | X75: 0.14793
A76: 93 | B76: =R76*PRODUCT(IF(Trends!$A$3:$A$94<ToolYear,IF(ExFlg=1,Trends!$C$3:$C$94,Trends!$E$3:$E$94),1)) -> 17707.23977 | C76: =S76*PRODUCT(IF(Trends!$A$3:$A$94<ToolYear,Trends!$F$3:$F$94,1)) -> 2203.965 | D76: =T76*PRODUCT(IF(Trends!$A$3:$A$94<ToolYear,Trends!$G$3:$G$94,1)) -> 192509.22 | E76: =U76*PRODUCT(IF(Trends!$A$3:$A$94<ToolYear,Trends!$H$3:$H$94,1)) -> 177710.8354 | F76: 0.1842051099 | G76: 0.1432809498 | H76: 0.1166285714 | I76: 0.0865 | N76: 93 | O76: 0.0088 | P76: 0.0088 | R76: 15714.96 | S76: 2010 | T76: 175446 | U76: 161959.2829 | W76: 0.20847 | X76: 0.162155
A77: 94 | B77: =R77*PRODUCT(IF(Trends!$A$3:$A$94<ToolYear,IF(ExFlg=1,Trends!$C$3:$C$94,Trends!$E$3:$E$94),1)) -> 17707.23977 | C77: =S77*PRODUCT(IF(Trends!$A$3:$A$94<ToolYear,Trends!$F$3:$F$94,1)) -> 2203.965 | D77: =T77*PRODUCT(IF(Trends!$A$3:$A$94<ToolYear,Trends!$G$3:$G$94,1)) -> 186732.1659 | E77: =U77*PRODUCT(IF(Trends!$A$3:$A$94<ToolYear,Trends!$H$3:$H$94,1)) -> 174170.4769 | F77: 0.1982780241 | G77: 0.1568535966 | H77: 0.1250714286 | I77: 0.0892 | N77: 94 | O77: 0.0087 | P77: 0.0087 | R77: 15714.96 | S77: 2010 | T77: 170181 | U77: 158732.7271 | W77: 0.22408 | X77: 0.177265
A78: 95 | B78: =R78*PRODUCT(IF(Trends!$A$3:$A$94<ToolYear,IF(ExFlg=1,Trends!$C$3:$C$94,Trends!$E$3:$E$94),1)) -> 17707.23977 | C78: =S78*PRODUCT(IF(Trends!$A$3:$A$94<ToolYear,Trends!$F$3:$F$94,1)) -> 2203.965 | D78: =T78*PRODUCT(IF(Trends!$A$3:$A$94<ToolYear,Trends!$G$3:$G$94,1)) -> 180955.1117 | E78: =U78*PRODUCT(IF(Trends!$A$3:$A$94<ToolYear,Trends!$H$3:$H$94,1)) -> 170630.1185 | F78: 0.2126993162 | G78: 0.1722136829 | H78: 0.1335142857 | I78: 0.0919 | N78: 95 | O78: 0.0085 | P78: 0.0085 | R78: 15714.96 | S78: 2010 | T78: 164916 | U78: 155506.1714 | W78: 0.2397 | X78: 0.194075
A79: 96 | B79: =R79*PRODUCT(IF(Trends!$A$3:$A$94<ToolYear,IF(ExFlg=1,Trends!$C$3:$C$94,Trends!$E$3:$E$94),1)) -> 17707.23977 | C79: =S79*PRODUCT(IF(Trends!$A$3:$A$94<ToolYear,Trends!$F$3:$F$94,1)) -> 2203.965 | D79: =T79*PRODUCT(IF(Trends!$A$3:$A$94<ToolYear,Trends!$G$3:$G$94,1)) -> 175178.0576 | E79: =U79*PRODUCT(IF(Trends!$A$3:$A$94<ToolYear,Trends!$H$3:$H$94,1)) -> 167089.7601 | F79: 0.2280614283 | G79: 0.1898005799 | H79: 0.1419571429 | I79: 0.0946 | N79: 96 | O79: 0.0081 | P79: 0.0081 | R79: 15714.96 | S79: 2010 | T79: 159651 | U79: 152279.6157 | W79: 0.255565 | X79: 0.21269
A80: 97 | B80: =R80*PRODUCT(IF(Trends!$A$3:$A$94<ToolYear,IF(ExFlg=1,Trends!$C$3:$C$94,Trends!$E$3:$E$94),1)) -> 17707.23977 | C80: =S80*PRODUCT(IF(Trends!$A$3:$A$94<ToolYear,Trends!$F$3:$F$94,1)) -> 2203.965 | D80: =T80*PRODUCT(IF(Trends!$A$3:$A$94<ToolYear,Trends!$G$3:$G$94,1)) -> 169401.0034 | E80: =U80*PRODUCT(IF(Trends!$A$3:$A$94<ToolYear,Trends!$H$3:$H$94,1)) -> 163549.4017 | F80: 0.2440613037 | G80: 0.2084018163 | H80: 0.1504 | I80: 0.0973 | N80: 97 | O80: 0.0077 | P80: 0.0077 | R80: 15714.96 | S80: 2010 | T80: 154386 | U80: 149053.06 | W80: 0.271955 | X80: 0.23222
A81: 98 | B81: =R81*PRODUCT(IF(Trends!$A$3:$A$94<ToolYear,IF(ExFlg=1,Trends!$C$3:$C$94,Trends!$E$3:$E$94),1)) -> 17707.23977 | C81: =S81*PRODUCT(IF(Trends!$A$3:$A$94<ToolYear,Trends!$F$3:$F$94,1)) -> 2203.965 | D81: =T81*PRODUCT(IF(Trends!$A$3:$A$94<ToolYear,Trends!$G$3:$G$94,1)) -> 169401.0034 | E81: =U81*PRODUCT(IF(Trends!$A$3:$A$94<ToolYear,Trends!$H$3:$H$94,1)) -> 163549.4017 | F81: 0.2613066153 | G81: 0.2281829233 | H81: 0.1504 | I81: 0.0973 | N81: 98 | O81: 0.0072 | P81: 0.0072 | R81: 15714.96 | S81: 2010 | T81: 154386 | U81: 149053.06 | W81: 0.289125 | X81: 0.252475
A82: 99 | B82: =R82*PRODUCT(IF(Trends!$A$3:$A$94<ToolYear,IF(ExFlg=1,Trends!$C$3:$C$94,Trends!$E$3:$E$94),1)) -> 17707.23977 | C82: =S82*PRODUCT(IF(Trends!$A$3:$A$94<ToolYear,Trends!$F$3:$F$94,1)) -> 2203.965 | D82: =T82*PRODUCT(IF(Trends!$A$3:$A$94<ToolYear,Trends!$G$3:$G$94,1)) -> 169401.0034 | E82: =U82*PRODUCT(IF(Trends!$A$3:$A$94<ToolYear,Trends!$H$3:$H$94,1)) -> 163549.4017 | F82: 0.2792263305 | G82: 0.2483556949 | H82: 0.1504 | I82: 0.0973 | N82: 99 | O82: 0.0068 | P82: 0.0068 | R82: 15714.96 | S82: 2010 | T82: 154386 | U82: 149053.06 | W82: 0.307215 | X82: 0.27325
A83: 100 | B83: =R83*PRODUCT(IF(Trends!$A$3:$A$94<ToolYear,IF(ExFlg=1,Trends!$C$3:$C$94,Trends!$E$3:$E$94),1)) -> 17707.23977 | C83: =S83*PRODUCT(IF(Trends!$A$3:$A$94<ToolYear,Trends!$F$3:$F$94,1)) -> 2203.965 | D83: =T83*PRODUCT(IF(Trends!$A$3:$A$94<ToolYear,Trends!$G$3:$G$94,1)) -> 169401.0034 | E83: =U83*PRODUCT(IF(Trends!$A$3:$A$94<ToolYear,Trends!$H$3:$H$94,1)) -> 163549.4017 | F83: 0.2981623297 | G83: 0.2690549298 | H83: 0.1504 | I83: 0.0973 | N83: 100 | O83: 0.0064 | P83: 0.0064 | R83: 15714.96 | S83: 2010 | T83: 154386 | U83: 149053.06 | W83: 0.326205 | X83: 0.29436
A84: 101 | B84: =R84*PRODUCT(IF(Trends!$A$3:$A$94<ToolYear,IF(ExFlg=1,Trends!$C$3:$C$94,Trends!$E$3:$E$94),1)) -> 17707.23977 | C84: =S84*PRODUCT(IF(Trends!$A$3:$A$94<ToolYear,Trends!$F$3:$F$94,1)) -> 2203.965 | D84: =T84*PRODUCT(IF(Trends!$A$3:$A$94<ToolYear,Trends!$G$3:$G$94,1)) -> 169401.0034 | E84: =U84*PRODUCT(IF(Trends!$A$3:$A$94<ToolYear,Trends!$H$3:$H$94,1)) -> 163549.4017 | F84: 0.3178956638 | G84: 0.2901174804 | H84: 0.1504 | I84: 0.0973 | N84: 101 | O84: 0.006 | P84: 0.006 | R84: 15714.96 | S84: 2010 | T84: 154386 | U84: 149053.06 | W84: 0.34584 | X84: 0.31562
A85: 102 | B85: =R85*PRODUCT(IF(Trends!$A$3:$A$94<ToolYear,IF(ExFlg=1,Trends!$C$3:$C$94,Trends!$E$3:$E$94),1)) -> 17707.23977 | C85: =S85*PRODUCT(IF(Trends!$A$3:$A$94<ToolYear,Trends!$F$3:$F$94,1)) -> 2203.965 | D85: =T85*PRODUCT(IF(Trends!$A$3:$A$94<ToolYear,Trends!$G$3:$G$94,1)) -> 169401.0034 | E85: =U85*PRODUCT(IF(Trends!$A$3:$A$94<ToolYear,Trends!$H$3:$H$94,1)) -> 163549.4017 | F85: 0.3383778541 | G85: 0.3118660039 | H85: 0.1504 | I85: 0.0973 | N85: 102 | O85: 0.0055 | P85: 0.0055 | R85: 15714.96 | S85: 2010 | T85: 154386 | U85: 149053.06 | W85: 0.36554 | X85: 0.3369
A86: 103 | B86: =R86*PRODUCT(IF(Trends!$A$3:$A$94<ToolYear,IF(ExFlg=1,Trends!$C$3:$C$94,Trends!$E$3:$E$94),1)) -> 17707.23977 | C86: =S86*PRODUCT(IF(Trends!$A$3:$A$94<ToolYear,Trends!$F$3:$F$94,1)) -> 2203.965 | D86: =T86*PRODUCT(IF(Trends!$A$3:$A$94<ToolYear,Trends!$G$3:$G$94,1)) -> 169401.0034 | E86: =U86*PRODUCT(IF(Trends!$A$3:$A$94<ToolYear,Trends!$H$3:$H$94,1)) -> 163549.4017 | F86: 0.3582689454 | G86: 0.3332691077 | H86: 0.1504 | I86: 0.0973 | N86: 103 | O86: 0.0051 | P86: 0.0051 | R86: 15714.96 | S86: 2010 | T86: 154386 | U86: 149053.06 | W86: 0.384855 | X86: 0.358
A87: 104 | B87: =R87*PRODUCT(IF(Trends!$A$3:$A$94<ToolYear,IF(ExFlg=1,Trends!$C$3:$C$94,Trends!$E$3:$E$94),1)) -> 17707.23977 | C87: =S87*PRODUCT(IF(Trends!$A$3:$A$94<ToolYear,Trends!$F$3:$F$94,1)) -> 2203.965 | D87: =T87*PRODUCT(IF(Trends!$A$3:$A$94<ToolYear,Trends!$G$3:$G$94,1)) -> 169401.0034 | E87: =U87*PRODUCT(IF(Trends!$A$3:$A$94<ToolYear,Trends!$H$3:$H$94,1)) -> 163549.4017 | F87: 0.377886184 | G87: 0.3545567557 | H87: 0.1504 | I87: 0.0973 | N87: 104 | O87: 0.0047 | P87: 0.0047 | R87: 15714.96 | S87: 2010 | T87: 154386 | U87: 149053.06 | W87: 0.40365 | X87: 0.37873
A88: 105 | B88: =R88*PRODUCT(IF(Trends!$A$3:$A$94<ToolYear,IF(ExFlg=1,Trends!$C$3:$C$94,Trends!$E$3:$E$94),1)) -> 17707.23977 | C88: =S88*PRODUCT(IF(Trends!$A$3:$A$94<ToolYear,Trends!$F$3:$F$94,1)) -> 2203.965 | D88: =T88*PRODUCT(IF(Trends!$A$3:$A$94<ToolYear,Trends!$G$3:$G$94,1)) -> 169401.0034 | E88: =U88*PRODUCT(IF(Trends!$A$3:$A$94<ToolYear,Trends!$H$3:$H$94,1)) -> 163549.4017 | F88: 0.3971005852 | G88: 0.3755648252 | H88: 0.1504 | I88: 0.0973 | N88: 105 | O88: 0.0043 | P88: 0.0043 | R88: 15714.96 | S88: 2010 | T88: 154386 | U88: 149053.06 | W88: 0.421795 | X88: 0.39892
A89: 106 | B89: =R89*PRODUCT(IF(Trends!$A$3:$A$94<ToolYear,IF(ExFlg=1,Trends!$C$3:$C$94,Trends!$E$3:$E$94),1)) -> 17707.23977 | C89: =S89*PRODUCT(IF(Trends!$A$3:$A$94<ToolYear,Trends!$F$3:$F$94,1)) -> 2203.965 | D89: =T89*PRODUCT(IF(Trends!$A$3:$A$94<ToolYear,Trends!$G$3:$G$94,1)) -> 169401.0034 | E89: =U89*PRODUCT(IF(Trends!$A$3:$A$94<ToolYear,Trends!$H$3:$H$94,1)) -> 163549.4017 | F89: 0.4163887836 | G89: 0.3966921251 | H89: 0.1504 | I89: 0.0973 | N89: 106 | O89: 0.0038 | P89: 0.0038 | R89: 15714.96 | S89: 2010 | T89: 154386 | U89: 149053.06 | W89: 0.439185 | X89: 0.41841
A90: 107 | B90: =R90*PRODUCT(IF(Trends!$A$3:$A$94<ToolYear,IF(ExFlg=1,Trends!$C$3:$C$94,Trends!$E$3:$E$94),1)) -> 17707.23977 | C90: =S90*PRODUCT(IF(Trends!$A$3:$A$94<ToolYear,Trends!$F$3:$F$94,1)) -> 2203.965 | D90: =T90*PRODUCT(IF(Trends!$A$3:$A$94<ToolYear,Trends!$G$3:$G$94,1)) -> 169401.0034 | E90: =U90*PRODUCT(IF(Trends!$A$3:$A$94<ToolYear,Trends!$H$3:$H$94,1)) -> 163549.4017 | F90: 0.4345149695 | G90: 0.4167095188 | H90: 0.1504 | I90: 0.0973 | N90: 107 | O90: 0.0034 | P90: 0.0034 | R90: 15714.96 | S90: 2010 | T90: 154386 | U90: 149053.06 | W90: 0.455735 | X90: 0.43706
A91: 108 | B91: =R91*PRODUCT(IF(Trends!$A$3:$A$94<ToolYear,IF(ExFlg=1,Trends!$C$3:$C$94,Trends!$E$3:$E$94),1)) -> 17707.23977 | C91: =S91*PRODUCT(IF(Trends!$A$3:$A$94<ToolYear,Trends!$F$3:$F$94,1)) -> 2203.965 | D91: =T91*PRODUCT(IF(Trends!$A$3:$A$94<ToolYear,Trends!$G$3:$G$94,1)) -> 169401.0034 | E91: =U91*PRODUCT(IF(Trends!$A$3:$A$94<ToolYear,Trends!$H$3:$H$94,1)) -> 163549.4017 | F91: 0.4519587114 | G91: 0.4360376838 | H91: 0.1504 | I91: 0.0973 | N91: 108 | O91: 0.003 | P91: 0.003 | R91: 15714.96 | S91: 2010 | T91: 154386 | U91: 149053.06 | W91: 0.471375 | X91: 0.45477
A92: 109 | B92: =R92*PRODUCT(IF(Trends!$A$3:$A$94<ToolYear,IF(ExFlg=1,Trends!$C$3:$C$94,Trends!$E$3:$E$94),1)) -> 17707.23977 | C92: =S92*PRODUCT(IF(Trends!$A$3:$A$94<ToolYear,Trends!$F$3:$F$94,1)) -> 2203.965 | D92: =T92*PRODUCT(IF(Trends!$A$3:$A$94<ToolYear,Trends!$G$3:$G$94,1)) -> 169401.0034 | E92: =U92*PRODUCT(IF(Trends!$A$3:$A$94<ToolYear,Trends!$H$3:$H$94,1)) -> 163549.4017 | F92: 0.4686681542 | G92: 0.4545762425 | H92: 0.1504 | I92: 0.0973 | N92: 109 | O92: 0.0026 | P92: 0.0026 | R92: 15714.96 | S92: 2010 | T92: 154386 | U92: 149053.06 | W92: 0.486065 | X92: 0.47145
A93: 110 | B93: =R93*PRODUCT(IF(Trends!$A$3:$A$94<ToolYear,IF(ExFlg=1,Trends!$C$3:$C$94,Trends!$E$3:$E$94),1)) -> 17707.23977 | C93: =S93*PRODUCT(IF(Trends!$A$3:$A$94<ToolYear,Trends!$F$3:$F$94,1)) -> 2203.965 | D93: =T93*PRODUCT(IF(Trends!$A$3:$A$94<ToolYear,Trends!$G$3:$G$94,1)) -> 169401.0034 | E93: =U93*PRODUCT(IF(Trends!$A$3:$A$94<ToolYear,Trends!$H$3:$H$94,1)) -> 163549.4017 | F93: 0.4821830212 | G93: 0.4729245556 | H93: 0.1504 | I93: 0.0973 | N93: 110 | O93: 0.0021 | P93: 0.0021 | R93: 15714.96 | S93: 2010 | T93: 154386 | U93: 149053.06 | W93: 0.496585 | X93: 0.48705
A94: 111 | B94: =R94*PRODUCT(IF(Trends!$A$3:$A$94<ToolYear,IF(ExFlg=1,Trends!$C$3:$C$94,Trends!$E$3:$E$94),1)) -> 17707.23977 | C94: =S94*PRODUCT(IF(Trends!$A$3:$A$94<ToolYear,Trends!$F$3:$F$94,1)) -> 2203.965 | D94: =T94*PRODUCT(IF(Trends!$A$3:$A$94<ToolYear,Trends!$G$3:$G$94,1)) -> 169401.0034 | E94: =U94*PRODUCT(IF(Trends!$A$3:$A$94<ToolYear,Trends!$H$3:$H$94,1)) -> 163549.4017 | F94: 0.488230605 | G94: 0.488230605 | H94: 0.1504 | I94: 0.0973 | N94: 111 | O94: 0.0017 | P94: 0.0017 | R94: 15714.96 | S94: 2010 | T94: 154386 | U94: 149053.06 | W94: 0.5 | X94: 0.5
A95: 112 | B95: =R95*PRODUCT(IF(Trends!$A$3:$A$94<ToolYear,IF(ExFlg=1,Trends!$C$3:$C$94,Trends!$E$3:$E$94),1)) -> 17707.23977 | C95: =S95*PRODUCT(IF(Trends!$A$3:$A$94<ToolYear,Trends!$F$3:$F$94,1)) -> 2203.965 | D95: =T95*PRODUCT(IF(Trends!$A$3:$A$94<ToolYear,Trends!$G$3:$G$94,1)) -> 169401.0034 | E95: =U95*PRODUCT(IF(Trends!$A$3:$A$94<ToolYear,Trends!$H$3:$H$94,1)) -> 163549.4017 | F95: 0.4909764966 | G95: 0.4909764966 | H95: 0.1504 | I95: 0.0973 | N95: 112 | O95: 0.0013 | P95: 0.0013 | R95: 15714.96 | S95: 2010 | T95: 154386 | U95: 149053.06 | W95: 0.5 | X95: 0.5
A96: 113 | B96: =R96*PRODUCT(IF(Trends!$A$3:$A$94<ToolYear,IF(ExFlg=1,Trends!$C$3:$C$94,Trends!$E$3:$E$94),1)) -> 17707.23977 | C96: =S96*PRODUCT(IF(Trends!$A$3:$A$94<ToolYear,Trends!$F$3:$F$94,1)) -> 2203.965 | D96: =T96*PRODUCT(IF(Trends!$A$3:$A$94<ToolYear,Trends!$G$3:$G$94,1)) -> 169401.0034 | E96: =U96*PRODUCT(IF(Trends!$A$3:$A$94<ToolYear,Trends!$H$3:$H$94,1)) -> 163549.4017 | F96: 0.4937367226 | G96: 0.4937367226 | H96: 0.1504 | I96: 0.0973 | N96: 113 | O96: 0.0009 | P96: 0.0009 | R96: 15714.96 | S96: 2010 | T96: 154386 | U96: 149053.06 | W96: 0.5 | X96: 0.5
A97: 114 | B97: =R97*PRODUCT(IF(Trends!$A$3:$A$94<ToolYear,IF(ExFlg=1,Trends!$C$3:$C$94,Trends!$E$3:$E$94),1)) -> 17707.23977 | C97: =S97*PRODUCT(IF(Trends!$A$3:$A$94<ToolYear,Trends!$F$3:$F$94,1)) -> 2203.965 | D97: =T97*PRODUCT(IF(Trends!$A$3:$A$94<ToolYear,Trends!$G$3:$G$94,1)) -> 169401.0034 | E97: =U97*PRODUCT(IF(Trends!$A$3:$A$94<ToolYear,Trends!$H$3:$H$94,1)) -> 163549.4017 | F97: 0.4972072684 | G97: 0.4972072684 | H97: 0.1504 | I97: 0.0973 | N97: 114 | O97: 0.0004 | P97: 0.0004 | R97: 15714.96 | S97: 2010 | T97: 154386 | U97: 149053.06 | W97: 0.5 | X97: 0.5
A98: 115 | B98: =R98*PRODUCT(IF(Trends!$A$3:$A$94<ToolYear,IF(ExFlg=1,Trends!$C$3:$C$94,Trends!$E$3:$E$94),1)) -> 17707.23977 | C98: =S98*PRODUCT(IF(Trends!$A$3:$A$94<ToolYear,Trends!$F$3:$F$94,1)) -> 2203.965 | D98: =T98*PRODUCT(IF(Trends!$A$3:$A$94<ToolYear,Trends!$G$3:$G$94,1)) -> 169401.0034 | E98: =U98*PRODUCT(IF(Trends!$A$3:$A$94<ToolYear,Trends!$H$3:$H$94,1)) -> 163549.4017 | F98: 0.5 | G98: 0.5 | H98: 0.1504 | I98: 0.0973 | N98: 115 | O98: 0 | P98: 0 | R98: 15714.96 | S98: 2010 | T98: 154386 | U98: 149053.06 | W98: 0.5 | X98: 0.5
A99: 116 | B99: =R99*PRODUCT(IF(Trends!$A$3:$A$94<ToolYear,IF(ExFlg=1,Trends!$C$3:$C$94,Trends!$E$3:$E$94),1)) -> 17707.23977 | C99: =S99*PRODUCT(IF(Trends!$A$3:$A$94<ToolYear,Trends!$F$3:$F$94,1)) -> 2203.965 | D99: =T99*PRODUCT(IF(Trends!$A$3:$A$94<ToolYear,Trends!$G$3:$G$94,1)) -> 169401.0034 | E99: =U99*PRODUCT(IF(Trends!$A$3:$A$94<ToolYear,Trends!$H$3:$H$94,1)) -> 163549.4017 | F99: 0.5 | G99: 0.5 | H99: 0.1504 | I99: 0.0973 | N99: 116 | O99: 0 | P99: 0 | R99: 15714.96 | S99: 2010 | T99: 154386 | U99: 149053.06 | W99: 0.5 | X99: 0.5
A100: 117 | B100: =R100*PRODUCT(IF(Trends!$A$3:$A$94<ToolYear,IF(ExFlg=1,Trends!$C$3:$C$94,Trends!$E$3:$E$94),1)) -> 17707.23977 | C100: =S100*PRODUCT(IF(Trends!$A$3:$A$94<ToolYear,Trends!$F$3:$F$94,1)) -> 2203.965 | D100: =T100*PRODUCT(IF(Trends!$A$3:$A$94<ToolYear,Trends!$G$3:$G$94,1)) -> 169401.0034 | E100: =U100*PRODUCT(IF(Trends!$A$3:$A$94<ToolYear,Trends!$H$3:$H$94,1)) -> 163549.4017 | F100: 0.5 | G100: 0.5 | H100: 0.1504 | I100: 0.0973 | N100: 117 | O100: 0 | P100: 0 | R100: 15714.96 | S100: 2010 | T100: 154386 | U100: 149053.06 | W100: 0.5 | X100: 0.5
A101: 118 | B101: =R101*PRODUCT(IF(Trends!$A$3:$A$94<ToolYear,IF(ExFlg=1,Trends!$C$3:$C$94,Trends!$E$3:$E$94),1)) -> 17707.23977 | C101: =S101*PRODUCT(IF(Trends!$A$3:$A$94<ToolYear,Trends!$F$3:$F$94,1)) -> 2203.965 | D101: =T101*PRODUCT(IF(Trends!$A$3:$A$94<ToolYear,Trends!$G$3:$G$94,1)) -> 169401.0034 | E101: =U101*PRODUCT(IF(Trends!$A$3:$A$94<ToolYear,Trends!$H$3:$H$94,1)) -> 163549.4017 | F101: 0.5 | G101: 0.5 | H101: 0.1504 | I101: 0.0973 | N101: 118 | O101: 0 | P101: 0 | R101: 15714.96 | S101: 2010 | T101: 154386 | U101: 149053.06 | W101: 0.5 | X101: 0.5
A102: 119 | B102: =R102*PRODUCT(IF(Trends!$A$3:$A$94<ToolYear,IF(ExFlg=1,Trends!$C$3:$C$94,Trends!$E$3:$E$94),1)) -> 17707.23977 | C102: =S102*PRODUCT(IF(Trends!$A$3:$A$94<ToolYear,Trends!$F$3:$F$94,1)) -> 2203.965 | D102: =T102*PRODUCT(IF(Trends!$A$3:$A$94<ToolYear,Trends!$G$3:$G$94,1)) -> 169401.0034 | E102: =U102*PRODUCT(IF(Trends!$A$3:$A$94<ToolYear,Trends!$H$3:$H$94,1)) -> 163549.4017 | F102: 0.5 | G102: 0.5 | H102: 0.1504 | I102: 0.0973 | N102: 119 | O102: 0 | P102: 0 | R102: 15714.96 | S102: 2010 | T102: 154386 | U102: 149053.06 | W102: 0.5 | X102: 0.5
A103: 120 | B103: =R103*PRODUCT(IF(Trends!$A$3:$A$94<ToolYear,IF(ExFlg=1,Trends!$C$3:$C$94,Trends!$E$3:$E$94),1)) -> 17707.23977 | C103: =S103*PRODUCT(IF(Trends!$A$3:$A$94<ToolYear,Trends!$F$3:$F$94,1)) -> 2203.965 | D103: =T103*PRODUCT(IF(Trends!$A$3:$A$94<ToolYear,Trends!$G$3:$G$94,1)) -> 169401.0034 | E103: =U103*PRODUCT(IF(Trends!$A$3:$A$94<ToolYear,Trends!$H$3:$H$94,1)) -> 163549.4017 | F103: 1 | G103: 1 | H103: 0.1504 | I103: 0.0973 | N103: 120 | O103: 0 | P103: 0 | R103: 15714.96 | S103: 2010 | T103: 154386 | U103: 149053.06 | W103: 1 | X103: 1

Sheet Trends (hidden)
A1: Beginning of | B1: Costs Trends
A2: Year | B2: Placeholder | C2: Placeholder | D2: Medical No Excise Tax - Age<65 | E2: Medical No Excise Tax - Age>=65 | F2: Medicare Part B | G2: LTC Inst. | H2: LTC Non-Inst.
A3: =ValYear -> 2022 | B3: =D3 -> 1.059 | C3: =E3 -> 1.059 | D3: 1.059 | E3: 1.059 | F3: 1.02 | G3: 1.0475 | H3: 1.0475 | J3: Trends Source:
A4: =1+A3 -> 2023 | B4: =D4 -> 1.064 | C4: =E4 -> 1.064 | D4: 1.064 | E4: 1.064 | F4: 1.075 | G4: 1.0475 | H4: 1.0475 | J4: Medical, Medicare, and LTC Costs
A5: 2024 | B5: 1.065 | C5: 1.065 | D5: 1.065 | E5: 1.065 | F5: 1.084 | G5: 1.0475 | H5: 1.0475 | J5: 2022 Milliman Letter
A6: 2025 | B6: 1.06 | C6: 1.06 | D6: 1.06 | E6: 1.06 | F6: 1.086 | G6: 1.0475 | H6: 1.0475
A7: 2026 | B7: 1.054 | C7: 1.054 | D7: 1.054 | E7: 1.054 | F7: 1.071 | G7: 1.0475 | H7: 1.0475
A8: 2027 | B8: 1.05 | C8: 1.05 | D8: 1.05 | E8: 1.05 | F8: 1.06 | G8: 1.0475 | H8: 1.0475
A9: 2028 | B9: 1.048 | C9: 1.048 | D9: 1.048 | E9: 1.048 | F9: 1.056 | G9: 1.0475 | H9: 1.0475
A10: 2029 | B10: 1.046 | C10: 1.046 | D10: 1.046 | E10: 1.046 | F10: 1.057 | G10: 1.0475 | H10: 1.0475
A11: 2030 | B11: 1.044 | C11: 1.044 | D11: 1.044 | E11: 1.044 | F11: 1.059 | G11: 1.0475 | H11: 1.0475
A12: 2031 | B12: 1.043 | C12: 1.043 | D12: 1.043 | E12: 1.043 | F12: 1.057 | G12: 1.0475 | H12: 1.0475
A13: 2032 | B13: 1.042 | C13: 1.042 | D13: 1.042 | E13: 1.042 | F13: 1.057 | G13: 1.0475 | H13: 1.0475
A14: 2033 | B14: 1.042 | C14: 1.042 | D14: 1.042 | E14: 1.042 | F14: 1.057 | G14: 1.0475 | H14: 1.0475
A15: 2034 | B15: 1.042 | C15: 1.042 | D15: 1.042 | E15: 1.042 | F15: 1.057 | G15: 1.0475 | H15: 1.0475
A16: 2035 | B16: 1.042 | C16: 1.042 | D16: 1.042 | E16: 1.042 | F16: 1.057 | G16: 1.0475 | H16: 1.0475
A17: 2036 | B17: 1.042 | C17: 1.042 | D17: 1.042 | E17: 1.042 | F17: 1.057 | G17: 1.0475 | H17: 1.0475
A18: 2037 | B18: 1.042 | C18: 1.042 | D18: 1.042 | E18: 1.042 | F18: 1.057 | G18: 1.0475 | H18: 1.0475
A19: 2038 | B19: 1.042 | C19: 1.042 | D19: 1.042 | E19: 1.042 | F19: 1.057 | G19: 1.0475 | H19: 1.0475
A20: 2039 | B20: 1.042 | C20: 1.042 | D20: 1.042 | E20: 1.042 | F20: 1.049 | G20: 1.0475 | H20: 1.0475
A21: 2040 | B21: 1.042 | C21: 1.042 | D21: 1.042 | E21: 1.042 | F21: 1.042 | G21: 1.0475 | H21: 1.0475
A22: 2041 | B22: 1.042 | C22: 1.042 | D22: 1.042 | E22: 1.042 | F22: 1.042 | G22: 1.0475 | H22: 1.0475
A23: 2042 | B23: 1.042 | C23: 1.042 | D23: 1.042 | E23: 1.042 | F23: 1.042 | G23: 1.0475 | H23: 1.0475
A24: 2043 | B24: 1.042 | C24: 1.042 | D24: 1.042 | E24: 1.042 | F24: 1.042 | G24: 1.0475 | H24: 1.0475
A25: 2044 | B25: 1.042 | C25: 1.042 | D25: 1.042 | E25: 1.042 | F25: 1.042 | G25: 1.0475 | H25: 1.0475
A26: 2045 | B26: 1.042 | C26: 1.042 | D26: 1.042 | E26: 1.042 | F26: 1.042 | G26: 1.0475 | H26: 1.0475
A27: 2046 | B27: 1.042 | C27: 1.042 | D27: 1.042 | E27: 1.042 | F27: 1.042 | G27: 1.0475 | H27: 1.0475
A28: 2047 | B28: 1.042 | C28: 1.042 | D28: 1.042 | E28: 1.042 | F28: 1.042 | G28: 1.0475 | H28: 1.0475
A29: 2048 | B29: 1.042 | C29: 1.042 | D29: 1.042 | E29: 1.042 | F29: 1.042 | G29: 1.0475 | H29: 1.0475
A30: 2049 | B30: 1.042 | C30: 1.042 | D30: 1.042 | E30: 1.042 | F30: 1.04 | G30: 1.0475 | H30: 1.0475
A31: 2050 | B31: 1.042 | C31: 1.042 | D31: 1.042 | E31: 1.042 | F31: 1.039 | G31: 1.0475 | H31: 1.0475
A32: 2051 | B32: 1.042 | C32: 1.042 | D32: 1.042 | E32: 1.042 | F32: 1.039 | G32: 1.0475 | H32: 1.0475
A33: 2052 | B33: 1.042 | C33: 1.042 | D33: 1.042 | E33: 1.042 | F33: 1.039 | G33: 1.0475 | H33: 1.0475
A34: 2053 | B34: 1.042 | C34: 1.042 | D34: 1.042 | E34: 1.042 | F34: 1.039 | G34: 1.0475 | H34: 1.0475
A35: 2054 | B35: 1.042 | C35: 1.042 | D35: 1.042 | E35: 1.042 | F35: 1.039 | G35: 1.0475 | H35: 1.0475
A36: 2055 | B36: 1.042 | C36: 1.042 | D36: 1.042 | E36: 1.042 | F36: 1.039 | G36: 1.0475 | H36: 1.0475
A37: =1+A36 -> 2056 | B37: 1.042 | C37: 1.042 | D37: 1.042 | E37: 1.042 | F37: 1.039 | G37: 1.0475 | H37: 1.0475
A38: 2057 | B38: 1.042 | C38: 1.042 | D38: 1.042 | E38: 1.042 | F38: 1.039 | G38: 1.0475 | H38: 1.0475
A39: 2058 | B39: 1.042 | C39: 1.042 | D39: 1.042 | E39: 1.042 | F39: 1.039 | G39: 1.0475 | H39: 1.0475
A40: 2059 | B40: 1.042 | C40: 1.042 | D40: 1.042 | E40: 1.042 | F40: 1.038 | G40: 1.0475 | H40: 1.0475
A41: 2060 | B41: 1.042 | C41: 1.042 | D41: 1.042 | E41: 1.042 | F41: 1.038 | G41: 1.0475 | H41: 1.0475
A42: 2061 | B42: 1.042 | C42: 1.042 | D42: 1.042 | E42: 1.042 | F42: 1.038 | G42: 1.0475 | H42: 1.0475
A43: 2062 | B43: 1.042 | C43: 1.042 | D43: 1.042 | E43: 1.042 | F43: 1.038 | G43: 1.0475 | H43: 1.0475
A44: 2063 | B44: 1.042 | C44: 1.042 | D44: 1.042 | E44: 1.042 | F44: 1.038 | G44: 1.0475 | H44: 1.0475
A45: 2064 | B45: 1.042 | C45: 1.042 | D45: 1.042 | E45: 1.042 | F45: 1.038 | G45: 1.0475 | H45: 1.0475
A46: 2065 | B46: 1.041 | C46: 1.041 | D46: 1.041 | E46: 1.041 | F46: 1.038 | G46: 1.0475 | H46: 1.0475
A47: 2066 | B47: 1.041 | C47: 1.041 | D47: 1.041 | E47: 1.041 | F47: 1.038 | G47: 1.0475 | H47: 1.0475
A48: 2067 | B48: 1.04 | C48: 1.04 | D48: 1.04 | E48: 1.04 | F48: 1.038 | G48: 1.0475 | H48: 1.0475
A49: 2068 | B49: 1.04 | C49: 1.04 | D49: 1.04 | E49: 1.04 | F49: 1.038 | G49: 1.0475 | H49: 1.0475
A50: 2069 | B50: 1.039 | C50: 1.039 | D50: 1.039 | E50: 1.039 | F50: 1.038 | G50: 1.0475 | H50: 1.0475
A51: 2070 | B51: 1.039 | C51: 1.039 | D51: 1.039 | E51: 1.039 | F51: 1.038 | G51: 1.0475 | H51: 1.0475
A52: 2071 | B52: 1.039 | C52: 1.039 | D52: 1.039 | E52: 1.039 | F52: 1.038 | G52: 1.0475 | H52: 1.0475
A53: 2072 | B53: 1.038 | C53: 1.038 | D53: 1.038 | E53: 1.038 | F53: 1.038 | G53: 1.0475 | H53: 1.0475
A54: 2073 | B54: 1.038 | C54: 1.038 | D54: 1.038 | E54: 1.038 | F54: 1.038 | G54: 1.0475 | H54: 1.0475
A55: 2074 | B55: 1.038 | C55: 1.038 | D55: 1.038 | E55: 1.038 | F55: 1.038 | G55: 1.0475 | H55: 1.0475
A56: 2075 | B56: 1.038 | C56: 1.038 | D56: 1.038 | E56: 1.038 | F56: 1.038 | G56: 1.0475 | H56: 1.0475
A57: 2076 | B57: 1.038 | C57: 1.038 | D57: 1.038 | E57: 1.038 | F57: 1.038 | G57: 1.0475 | H57: 1.0475
A58: 2077 | B58: 1.038 | C58: 1.038 | D58: 1.038 | E58: 1.038 | F58: 1.038 | G58: 1.0475 | H58: 1.0475
A59: 2078 | B59: 1.038 | C59: 1.038 | D59: 1.038 | E59: 1.038 | F59: 1.038 | G59: 1.0475 | H59: 1.0475
A60: 2079 | B60: 1.038 | C60: 1.038 | D60: 1.038 | E60: 1.038 | F60: 1.038 | G60: 1.0475 | H60: 1.0475
A61: 2080 | B61: 1.038 | C61: 1.038 | D61: 1.038 | E61: 1.038 | F61: 1.038 | G61: 1.0475 | H61: 1.0475
A62: 2081 | B62: 1.038 | C62: 1.038 | D62: 1.038 | E62: 1.038 | F62: 1.038 | G62: 1.0475 | H62: 1.0475
A63: 2082 | B63: 1.038 | C63: 1.038 | D63: 1.038 | E63: 1.038 | F63: 1.038 | G63: 1.0475 | H63: 1.0475
A64: 2083 | B64: 1.038 | C64: 1.038 | D64: 1.038 | E64: 1.038 | F64: 1.038 | G64: 1.0475 | H64: 1.0475
A65: 2084 | B65: 1.038 | C65: 1.038 | D65: 1.038 | E65: 1.038 | F65: 1.038 | G65: 1.0475 | H65: 1.0475
A66: 2085 | B66: 1.038 | C66: 1.038 | D66: 1.038 | E66: 1.038 | F66: 1.038 | G66: 1.0475 | H66: 1.0475
A67: 2086 | B67: 1.038 | C67: 1.038 | D67: 1.038 | E67: 1.038 | F67: 1.038 | G67: 1.0475 | H67: 1.0475
A68: 2087 | B68: =D68 -> 1.038 | C68: =E68 -> 1.038 | D68: 1.038 | E68: 1.038 | F68: 1.038 | G68: 1.0475 | H68: 1.0475
A69: =1+A68 -> 2088 | B69: 1.038 | C69: 1.038 | D69: 1.038 | E69: 1.038 | F69: 1.038 | G69: 1.0475 | H69: 1.0475
A70: 2089 | B70: 1.038 | C70: 1.038 | D70: 1.038 | E70: 1.038 | F70: 1.037 | G70: 1.0475 | H70: 1.0475
A71: 2090 | B71: 1.038 | C71: 1.038 | D71: 1.038 | E71: 1.038 | F71: 1.036 | G71: 1.0475 | H71: 1.0475
A72: 2091 | B72: 1.038 | C72: 1.038 | D72: 1.038 | E72: 1.038 | F72: 1.036 | G72: 1.0475 | H72: 1.0475
A73: 2092 | B73: 1.038 | C73: 1.038 | D73: 1.038 | E73: 1.038 | F73: 1.036 | G73: 1.0475 | H73: 1.0475
A74: 2093 | B74: 1.038 | C74: 1.038 | D74: 1.038 | E74: 1.038 | F74: 1.036 | G74: 1.0475 | H74: 1.0475
A75: 2094 | B75: 1.038 | C75: 1.038 | D75: 1.038 | E75: 1.038 | F75: 1.036 | G75: 1.0475 | H75: 1.0475
A76: 2095 | B76: 1.038 | C76: 1.038 | D76: 1.038 | E76: 1.038 | F76: 1.036 | G76: 1.0475 | H76: 1.0475
A77: 2096 | B77: 1.038 | C77: 1.038 | D77: 1.038 | E77: 1.038 | F77: 1.036 | G77: 1.0475 | H77: 1.0475
A78: 2097 | B78: 1.038 | C78: 1.038 | D78: 1.038 | E78: 1.038 | F78: 1.036 | G78: 1.0475 | H78: 1.0475
A79: 2098 | B79: 1.038 | C79: 1.038 | D79: 1.038 | E79: 1.038 | F79: 1.036 | G79: 1.0475 | H79: 1.0475
A80: 2099 | B80: 1.038 | C80: 1.038 | D80: 1.038 | E80: 1.038 | F80: 1.036 | G80: 1.0475 | H80: 1.0475
A81: 2100 | B81: 1.038 | C81: 1.038 | D81: 1.038 | E81: 1.038 | F81: 1.036 | G81: 1.0475 | H81: 1.0475
A82: 2101 | B82: 1.038 | C82: 1.038 | D82: 1.038 | E82: 1.038 | F82: 1.036 | G82: 1.0475 | H82: 1.0475
A83: 2102 | B83: 1.038 | C83: 1.038 | D83: 1.038 | E83: 1.038 | F83: 1.036 | G83: 1.0475 | H83: 1.0475
A84: 2103 | B84: 1.038 | C84: 1.038 | D84: 1.038 | E84: 1.038 | F84: 1.036 | G84: 1.0475 | H84: 1.0475
A85: 2104 | B85: 1.038 | C85: 1.038 | D85: 1.038 | E85: 1.038 | F85: 1.036 | G85: 1.0475 | H85: 1.0475
A86: 2105 | B86: 1.038 | C86: 1.038 | D86: 1.038 | E86: 1.038 | F86: 1.036 | G86: 1.0475 | H86: 1.0475
A87: 2106 | B87: 1.038 | C87: 1.038 | D87: 1.038 | E87: 1.038 | F87: 1.036 | G87: 1.0475 | H87: 1.0475
A88: 2107 | B88: 1.038 | C88: 1.038 | D88: 1.038 | E88: 1.038 | F88: 1.036 | G88: 1.0475 | H88: 1.0475
A89: 2108 | B89: 1.038 | C89: 1.038 | D89: 1.038 | E89: 1.038 | F89: 1.036 | G89: 1.0475 | H89: 1.0475
A90: 2109 | B90: 1.038 | C90: 1.038 | D90: 1.038 | E90: 1.038 | F90: 1.036 | G90: 1.0475 | H90: 1.0475
A91: 2110 | B91: 1.038 | C91: 1.038 | D91: 1.038 | E91: 1.038 | F91: 1.036 | G91: 1.0475 | H91: 1.0475
A92: 2111 | B92: 1.038 | C92: 1.038 | D92: 1.038 | E92: 1.038 | F92: 1.036 | G92: 1.0475 | H92: 1.0475
A93: 2112 | B93: 1.038 | C93: 1.038 | D93: 1.038 | E93: 1.038 | F93: 1.036 | G93: 1.0475 | H93: 1.0475
A94: 2113 | B94: 1.038 | C94: 1.038 | D94: 1.038 | E94: 1.038 | F94: 1.036 | G94: 1.0475 | H94: 1.0475
